Workbook

Sheet Title

Sheet Read Me
A5: PC.design&check

Sheet PCcheck_SI
B3: PC.design&check SI
B4: IACS Unified Requirements for Polar Class Ships - Calculations | J4: <= macros | AC4: Q | AD4: Hull Areas | AE4: Questions | AF4: Frame Types
AC6: check | AD6: Bi | AE6: Yes | AF6: bulbs
E7: check | F7: check | G7: check | H7: check | I7: check | J7: check | K7: check | L7: check | M7: check | N7: check | AC7: - | AD7: BIi | AE7: No | AF7: angles
B8: Vessel Particulars | E8: 1 | F8: 2 | G8: 3 | H8: 4 | I8: 5 | J8: 6 | K8: 7 | L8: 8 | M8: 9 | N8: 10 | AD8: BIl | AF8: half_I
B9: Item | C9: Units | D9: Var | E9: Value | F9: Value | G9: Value | H9: Value | I9: Value | J9: Value | K9: Value | L9: Value | M9: Value | N9: Value | AD9: BIb | AF9: cropped_I
B10: PC Class | D10: Class | E10: 7 | F10: =Class -> 7 | G10: 7 | H10: 7 | I10: 7 | J10: 7 | K10: 7 | L10: 7 | M10: 7 | N10: 7 | Q10: user edit values in green only | AD10: Mi | AF10: flatbars
B11: Displacement | C11: kt | D11: Disp | E11: 50.0 | F11: 50.0 | G11: 50.0 | H11: 50.0 | I11: 50.0 | J11: 50.0 | K11: 50.0 | L11: 50.0 | M11: 50.0 | N11: 50.0 | Q11: macros fill the purple cells, but users may overwrite | AD11: Ml | AF11: built_t
B12: Displacement Class Factor | D12: Cfdis | E12: =VLOOKUP(Class,class_tab,2) -> 22.00 | F12: =VLOOKUP(Class,class_tab,2) -> 22.00 | G12: 22.00 | H12: 22.00 | I12: 22.00 | J12: 22.00 | K12: 22.00 | L12: 22.00 | M12: 22.00 | N12: 22.00 | AD12: Mb | AF12: fort
B13: Crushing Failure Class Factor | D13: CFc | E13: =VLOOKUP(Class,class_tab,3) -> 1.800 | F13: =VLOOKUP(Class,class_tab,3) -> 1.800 | G13: 1.800 | H13: 1.800 | I13: 1.800 | J13: 1.800 | K13: 1.800 | L13: 1.800 | M13: 1.800 | N13: 1.800 | AD13: Si | AF13: any
B14: Flexural Failure Class Factor | D14: CFf | E14: =VLOOKUP(Class,class_tab,4) -> 4.060 | F14: =VLOOKUP(Class,class_tab,4) -> 4.060 | G14: 4.060 | H14: 4.060 | I14: 4.060 | J14: 4.060 | K14: 4.060 | L14: 4.060 | M14: 4.060 | N14: 4.060 | AD14: Sl
D15: CFd | E15: =VLOOKUP(Class,class_tab,5) -> 1.110 | F15: =VLOOKUP(Class,class_tab,5) -> 1.110 | G15: 1.110 | H15: 1.110 | I15: 1.110 | J15: 1.110 | K15: 1.110 | L15: 1.110 | M15: 1.110 | N15: 1.110 | AD15: Sb
B16: Load Patch Dimensions Class Factor | D16: CFb | E16: =VLOOKUP(Class,class_tab,6) -> 2.600 | F16: =VLOOKUP(Class,class_tab,6) -> 2.600 | G16: 2.600 | H16: 2.600 | I16: 2.600 | J16: 2.600 | K16: 2.600 | L16: 2.600 | M16: 2.600 | N16: 2.600
B18: Offered Frame Data
B19: Item | C19: Units | D19: Var | E19: Frames ………… (copy more columns if desired)
B20: Case Frame Number | C20: -- | D20: FrameNum | E20: any | F20: any | G20: any | H20: any | I20: any | J20: any | K20: any | L20: any | M20: any | N20: any
B21: Case Frame Description | C21: -- | D21: FrameRef | E21: HP 300*14.0 | F21: HP 280*14.0 | G21: HP 220*10.0 | H21: HP 180*8.0 | I21: T 200 x 9, 110 x 9 | J21: HP 180*8.0 | K21: IPE 120 A_cropped | L21: HP 200*9.0 | M21: HP 180*8.0 | N21: HP 100*6.0
B22: Hull Region | C22: -- | D22: HA | E22: Bi | F22: BIi | G22: BIl | H22: BIb | I22: Mi | J22: Ml | K22: Mb | L22: Si | M22: Sl | N22: Sb
B23: Hull Family | C23: -- | D23: HF | E23: 1 | F23: 1 | G23: 1 | H23: 1 | I23: 1 | J23: 1 | K23: 1 | L23: 1 | M23: 1 | N23: 1
B24: Frame Orientation Angle (to waterline) | C24: deg | D24: OA | E24: 90 | F24: 90 | G24: 90 | H24: 90 | I24: 90 | J24: 90 | K24: 90 | L24: 90 | M24: 90 | N24: 90
B25: Frame Orientation Type | C25: -- | D25: FO | E25: =IF(OR(HA="Bib",HA="Sb",HA="Mb"),"Transverse",IF(E24>=70,"Transverse",IF(E24<=20,"Longitudinal","Between"))) -> Transverse | F25: Transverse | G25: Transverse | H25: =IF(OR(HA="Bib",HA="Sb",HA="Mb"),"Transverse",IF(H24>=70,"Transverse",IF(H24<=20,"Longitudinal","Between"))) -> Transverse | I25: Transverse | J25: Transverse | K25: Transverse | L25: Transverse | M25: Transverse | N25: Transverse
B26: Protective Hull Coating Used? | C26: yes/no | D26: Coating? | E26: Yes | F26: Yes | G26: Yes | H26: Yes | I26: Yes | J26: Yes | K26: Yes | L26: Yes | M26: Yes | N26: Yes
B27: Bottom Longitudinals? | C27: yes/no | D27: BotLongs? | E27: No | F27: No | G27: No | H27: No | I27: No | J27: No | K27: No | L27: No | M27: No | N27: No
B28: Load Distributing Stringers? | C28: yes/no | D28: LDString? | E28: No | F28: No | G28: No | H28: No | I28: No | J28: No | K28: No | L28: No | M28: No | N28: No
B29: Water Density | C29: t/m3 | D29: rhow | E29: 1.025 | F29: 1.025 | G29: 1.025 | H29: 1.025 | I29: 1.025 | J29: 1.025 | K29: 1.025 | L29: 1.025 | M29: 1.025 | N29: 1.025
B30: Frame Attachment Parameter | C30: -- | D30: j | E30: 2 | F30: 2 | G30: 2 | H30: 2 | I30: 2 | J30: 2 | K30: 2 | L30: 2 | M30: 2 | N30: 2
B31: Yield Strength - Framing Material | C31: MPa | D31: Fy_f | E31: 350 | F31: 350 | G31: 350 | H31: 350 | I31: 350 | J31: 350 | K31: 350 | L31: 350 | M31: 350 | N31: 350
B32: Yield Strength - Plating Material | C32: MPa | D32: Fy_p | E32: 350 | F32: 350 | G32: 350 | H32: 350 | I32: 350 | J32: 350 | K32: 350 | L32: 350 | M32: 350 | N32: 350
B33: Young's Modulus of Plating Material | C33: MPa | D33: E_plate | E33: 207000 | F33: 207000 | G33: 207000 | H33: 207000 | I33: 207000 | J33: 207000 | K33: 207000 | L33: 207000 | M33: 207000 | N33: 207000
B34: Main Frame Span (=web frame spacing for long'l) | C34: mm | D34: a | E34: 2000 | F34: =E34 -> 2000 | G34: =F34 -> 2000 | H34: 2000 | I34: 2000 | J34: 2000 | K34: 2000 | L34: 2000 | M34: 2000 | N34: 2000
B35: Main Frame Spacing | C35: mm | D35: s | E35: 380 | F35: =E35 -> 380 | G35: =F35 -> 380 | H35: 380 | I35: 380 | J35: 380 | K35: 380 | L35: 380 | M35: 380 | N35: 380
B36: Thickness of Plate (gross) | C36: mm | D36: tp | E36: 19.5 | F36: 18.5 | G36: 13.5 | H36: 10.5 | I36: 13.0 | J36: 10.5 | K36: 7.0 | L36: 12.0 | M36: 10.5 | N36: 10.0
B37: Height of Web | C37: mm | D37: hw | E37: 268.18 | F37: 250.4 | G37: 197.06 | H37: 161.5 | I37: 200 | J37: 161.5 | K37: 100.8 | L37: 179.28 | M37: 161.5 | N37: 88.53
B38: Thickness of Web (gross) | C38: mm | D38: tw | E38: 14.0 | F38: 14.0 | G38: 10.0 | H38: 8.0 | I38: 9.0 | J38: 8.0 | K38: 3.8 | L38: 9.0 | M38: 8.0 | N38: 6.0
B39: Angle of web | C39: deg | D39: fiw | E39: 90 | F39: 90 | G39: 90 | H39: 90 | I39: 90 | J39: 90 | K39: 90 | L39: 90 | M39: 90 | N39: 90
B40: Width of Flange | C40: mm | D40: wf | E40: 57 | F40: 54 | G40: 41 | H40: 33 | I40: 110 | J40: 33 | K40: 64 | L40: 37 | M40: 33 | N40: 21.5
B41: Thickness of Flange (gross) | C41: mm | D41: tf | E41: 31.8 | F41: 29.6 | G41: 22.9 | H41: 18.5 | I41: 9.0 | J41: 18.5 | K41: 5.1 | L41: 20.7 | M41: 18.5 | N41: 11.5
B42: Flange Offset Distance | C42: mm | D42: bw | E42: 0 | F42: 0 | G42: 0 | H42: 0 | I42: 0 | J42: 0 | K42: 0 | L42: 0 | M42: 0 | N42: 0 | O42: non-ice
D43: pl&fr&Str tonnes/m2 | E43: =(tp*s+hw*tw+tf*wf)/s/1000*7.8+E127 -> 0.266 | F43: =(tp*s+hw*tw+tf*wf)/s/1000*7.8+F127 -> 0.249 | G43: 0.165 | H43: 0.121 | I43: 0.159 | J43: 0.121 | K43: 0.069 | L43: 0.142 | M43: 0.121 | N43: 0.094 | O43: 0.2 | P43: total
D44: area m2 | E44: 637 | F44: 294 | G44: 535 | H44: 540 | I44: 168 | J44: 258 | K44: 417 | L44: 513 | M44: 777 | N44: 115 | O44: 1622 | P44: =SUM(E44:O44) -> 5877 | Q44: m2 | R44: example only
D45: Tonnes | E45: =E43*E44 -> 170 | F45: =F43*F44 -> 73 | G45: 88 | H45: 65 | I45: 27 | J45: 31 | K45: 29 | L45: 73 | M45: =M43*M44 -> 94 | N45: 11 | O45: 324 | P45: =SUM(E45:O45) -> 986 | Q45: Tonnes
B46: Assesment Results for Offered Frames (net)
B47: Web Buckling Constant | C47: -- | D47: wbc | E47: =hw/tw*SQRT(Fy_f) -> 358.4 | F47: =hw/tw*SQRT(Fy_f) -> 334.6 | G47: =hw/tw*SQRT(Fy_f) -> 368.7 | H47: =hw/tw*SQRT(Fy_f) -> 377.7 | I47: =hw/tw*SQRT(Fy_f) -> 415.7 | J47: 377.7 | K47: 496.3 | L47: 372.7 | M47: 377.7 | N47: 276.0
B48: Frame Stability Check (12.9.1) | C48: -- | D48: frstab | E48: =IF(OR(tf=0,wf=0),IF(wbc>282,"FAIL","OK"),IF(wbc>805,"FAIL","OK")) -> OK | F48: OK | G48: OK | H48: OK | I48: OK | J48: OK | K48: OK | L48: OK | M48: OK | N48: OK
B49: Web Thickness Min (12.9.3) | C49: -- | D49: webmin | E49: =IF(tw<0.35*tp*SQRT(Fy_f/235),"FAIL","OK") -> OK | F49: OK | G49: OK | H49: OK | I49: OK | J49: OK | K49: OK | L49: OK | M49: OK | N49: OK
B50: Dist. to Plastc NA | C50: mm | D50: zna | E50: =IF(s*tp >hw*tw+wf*tf,0,(wf*tf+hw*tw-tp*s)/(2*tw)) -> 0.0 | F50: 0.0 | G50: 0.0 | H50: 0.0 | I50: 0.0 | J50: 0.0 | K50: 0.0 | L50: 0.0 | M50: 0.0 | N50: 0.0
B51: Shell Plate Thickness - offered (net) | C51: mm | D51: tp | E51: =tp-E70 -> 17.5 | F51: =tp-F70 -> 16.5 | G51: =tp-G70 -> 11.5 | H51: 8.5 | I51: =tp-I70 -> 11.0 | J51: 8.5 | K51: 5.0 | L51: 10.0 | M51: 8.5 | N51: 8.0
B52: required value (12.4.2) (excl CA) | C52: mm | D52: t_reqd | E52: =E117 -> 17.1 | F52: =F117 -> 16.2 | G52: 11.5 | H52: 8.1 | I52: =I117 -> 10.9 | J52: 8.1 | K52: 3.6 | L52: 9.6 | M52: 8.1 | N52: 3.6
E53: =IF(E51<E52,"FAIL","OK") -> OK | F53: =IF(F51<F52,"FAIL","OK") -> OK | G53: OK | H53: OK | I53: =IF(I51<I52,"FAIL","OK") -> OK | J53: OK | K53: OK | L53: OK | M53: OK | N53: OK
B54: Frame Shear Area - offered (12.5.7) (net) | C54: cm2 | D54: Aw | E54: =(hw+tf)*(tw-1)*SIN(fiw*deg)/100 -> 39.0 | F54: =(hw+tf)*(tw-1)*SIN(fiw*deg)/100 -> 36.4 | G54: =(hw+tf)*(tw-1)*SIN(fiw*deg)/100 -> 19.8 | H54: =(hw+tf)*(tw-1)*SIN(fiw*deg)/100 -> 12.6 | I54: =(hw+tf)*(tw-1)*SIN(fiw*deg)/100 -> 16.7 | J54: 12.6 | K54: 3.0 | L54: 16.0 | M54: 12.6 | N54: 5.0
B55: required value (12.6.2 or 12.7.2 ) | C55: cm2 | D55: At or AL | E55: =E121 -> 32.2 | F55: =F121 -> 29.7 | G55: 14.8 | H55: 7.4 | I55: =I121 -> 13.4 | J55: 7.4 | K55: 1.5 | L55: 10.4 | M55: 7.4 | N55: 1.5
E56: =IF(E54<E55,"FAIL","OK") -> OK | F56: =IF(F54<F55,"FAIL","OK") -> OK | G56: OK | H56: OK | I56: =IF(I54<I55,"FAIL","OK") -> OK | J56: OK | K56: OK | L56: OK | M56: OK | N56: OK
B57: Frame Modulus - offered (12.5.8) (net) | C57: cm3 | D57: Zp | E57: =IF((s*E51) > (hw*(tw-1)+wf*(tf-1)),((tf-1)*wf+hw*(tw-1))*E51/2+hw^2*(tw-1)/2*SIN(fiw*deg)+(tf-1)*wf*((hw+tf/2)*SIN(fiw*deg)-bw*COS(fiw*deg)),s*(tp-E70)*(zna+(tp-E70)/2)*SIN(fiw*deg)+((hw-zna)^2+zna^2)*(tw-1)/2*SIN(fiw*deg)+wf*(tf-1)*((hw+tf/2-zna)*SIN(fiw*deg)-bw*COS(fiw*deg)))/1000 -> 1012.4 | F57: =IF((s*F51) > (hw*(tw-1)+wf*(tf-1)),((tf-1)*wf+hw*(tw-1))*F51/2+hw^2*(tw-1)/2*SIN(fiw*deg)+(tf-1)*wf*((hw+tf/2)*SIN(fiw*deg)-bw*COS(fiw*deg)),s*(tp-F70)*(zna+(tp-F70)/2)*SIN(fiw*deg)+((hw-zna)^2+zna^2)*(tw-1)/2*SIN(fiw*deg)+wf*(tf-1)*((hw+tf/2-zna)*SIN(fiw*deg)-bw*COS(fiw*deg)))/1000 -> 856.7 | G57: 377.7 | H57: 197.2 | I57: 353.6 | J57: 197.2 | K57: 42.7 | L57: 277.8 | M57: 197.2 | N57: 43.5
B58: required value (12.6.3 or 12.7.3) | C58: cm3 | D58: Zpt or ZpL | E58: =E122 -> 912.9 | F58: =F122 -> 773.5 | G58: 375.4 | H58: 179.9 | I58: =I122 -> 340.1 | J58: 179.9 | K58: 35.0 | L58: 255.3 | M58: 179.9 | N58: 34.5
E59: =IF(E57<E58,"FAIL","OK") -> OK | F59: =IF(F57<F58,"FAIL","OK") -> OK | G59: =IF(G57<G58,"FAIL","OK") -> OK | H59: =IF(H57<H58,"FAIL","OK") -> OK | I59: =IF(I57<I58,"FAIL","OK") -> OK | J59: OK | K59: OK | L59: OK | M59: OK | N59: OK
B61: Load Parameters
B62: Force | C62: MN | D62: F | E62: =IF(HA="Bi",Fmax,0.36*CFc*IF(Disp<=Cfdis,Disp^0.64,Cfdis^0.64+0.1*(Disp-Cfdis))) -> 7.474 | F62: =IF(HA="Bi",Fmax,0.36*F13*IF(F11<=F12,F11^0.64,F12^0.64+0.1*(F11-F12))) -> 6.500 | G62: =IF(HA="Bi",Fmax,0.36*G13*IF(G11<=G12,G11^0.64,G12^0.64+0.1*(G11-G12))) -> 6.500 | H62: 6.500 | I62: 6.500 | J62: 6.500 | K62: 6.500 | L62: 6.500 | M62: 6.500 | N62: 6.500
B63: Aspect Ratio | D63: AR | E63: =IF(HA="Bi",ARbow,3.6) -> 4.932 | F63: 3.600 | G63: 3.600 | H63: 3.600 | I63: 3.600 | J63: 3.600 | K63: 3.600 | L63: 3.600 | M63: 3.600 | N63: 3.600
B64: Line Load | C64: MN/m | D64: Q | E64: =IF(HA="Bi",Qmax,0.639*E62^0.61*CFd) -> 2.409 | F64: =IF(HA="Bi",Qmax,0.639*F62^0.61*CFd) -> 2.222 | G64: 2.222 | H64: 2.222 | I64: 2.222 | J64: 2.222 | K64: 2.222 | L64: 2.222 | M64: 2.222 | N64: 2.222
B65: Pressure | C65: MPa | D65: P | E65: =IF(HA="Bi",Pmax,E64/E67) -> 3.086 | F65: =IF(HA="Bi",Pmax,F64/F67) -> 2.734 | G65: =IF(HA="Bi",Pmax,G64/G67) -> 2.734 | H65: 2.734 | I65: 2.734 | J65: 2.734 | K65: 2.734 | L65: 2.734 | M65: 2.734 | N65: 2.734
B66: Ice Load Patch Width | C66: m | D66: w | E66: =IF(HA="Bi",wbow,E62/E64) -> 3.102 | F66: =IF(HA="Bi",wbow,F62/F64) -> 2.926 | G66: 2.926 | H66: 2.926 | I66: 2.926 | J66: 2.926 | K66: 2.926 | L66: 2.926 | M66: 2.926 | N66: 2.926
B67: Ice Load Patch Height | C67: m | D67: b | E67: =IF(HA="Bi",bbow,E66/3.6) -> 0.781 | F67: =IF(HA="Bi",bbow,F66/3.6) -> 0.813 | G67: 0.813 | H67: 0.813 | I67: 0.813 | J67: 0.813 | K67: 0.813 | L67: 0.813 | M67: 0.813 | N67: 0.813
B68: Average Patch Pressure | C68: MPa | D68: Pavg | E68: =E62/E66/E67 -> 3.086 | F68: =F62/F66/F67 -> 2.734 | G68: =G62/G66/G67 -> 2.734 | H68: =H62/H66/H67 -> 2.734 | I68: =I62/I66/I67 -> 2.734 | J68: 2.734 | K68: 2.734 | L68: 2.734 | M68: 2.734 | N68: 2.734
B69: Hull Area Factor | D69: AF | E69: =VLOOKUP(Class,HAF_tab_r,HLOOKUP(HA,HAF_tab_r,2,FALSE)) -> 1 | F69: =VLOOKUP(Class,HAF_tab_r,HLOOKUP(HA,HAF_tab_r,2,FALSE)) -> 1 | G69: 0.5 | H69: 0.25 | I69: 0.45 | J69: 0.25 | K69: 0.05 | L69: 0.35 | M69: 0.25 | N69: 0.05
B70: Corrosion and Abrasion Allowance | C70: mm | D70: t_wear | E70: =IF(Coating?="Yes",VLOOKUP(Class,WA_coat_tab,HLOOKUP(HA,WA_coat_tab,2,FALSE)),VLOOKUP(Class,WA_nocoat_tab,HLOOKUP(HA,WA_nocoat_tab,2,FALSE))) -> 2 | F70: 2 | G70: 2 | H70: 2 | I70: 2 | J70: 2 | K70: 2 | L70: 2 | M70: 2 | N70: 2
B72: Transverse Plating
B73: Peak Pressure Factor - Plate (trans) | C73: - | D73: PPFpt | E73: =MAX(1.8-s/1000,1.2) -> 1.42 | F73: 1.42 | G73: 1.42 | H73: 1.42 | I73: 1.42 | J73: 1.42 | K73: 1.42 | L73: 1.42 | M73: 1.42 | N73: 1.42
B74: height of design load patch | C74: m | D74: bpt | E74: =MIN(b*1,a/1000-s/4000) -> 0.781 | F74: =MIN(b*1,a/1000-s/4000) -> 0.813 | G74: 0.813 | H74: 0.813 | I74: 0.813 | J74: 0.813 | K74: 0.813 | L74: 0.813 | M74: 0.813 | N74: 0.813
B75: Plate Thickness Required to Resist Ice Load | C75: mm | D75: t_net | E75: =0.5*s*SQRT(AF*PPFpt*Pavg/Fy_p)/(1+s/(2000*bt)) -> 17.1 | F75: 16.2 | G75: 11.5 | H75: 8.1 | I75: 10.9 | J75: 8.1 | K75: 3.6 | L75: 9.6 | M75: 8.1 | N75: 3.6
B76: Required Minimum Shell Plate Thickness | C76: mm | D76: t_min | E76: =E75+E70 -> 19.098 | F76: =F75+F70 -> 18.218 | G76: =G75+G70 -> 13.468 | H76: =H75+H70 -> 10.109 | I76: =I75+I70 -> 12.880 | J76: 10.109 | K76: 5.627 | L76: 11.595 | M76: 10.109 | N76: 5.627
B78: Transverse Framing
B79: Peak Pressure Factor - Transverse Frame | C79: - | D79: PPFt | E79: =IF(LDString?="Yes",MAX(1.6-s/1000,1),MAX(1.8-s/1000,1.2)) -> 1.42 | F79: 1.42 | G79: 1.42 | H79: 1.42 | I79: 1.42 | J79: 1.42 | K79: 1.42 | L79: 1.42 | M79: 1.42 | N79: 1.42
B80: Length of Loaded Portion of Span | C80: m | D80: LL | E80: =IF(a/1000<b,a/1000,b) -> 0.781 | F80: 0.813 | G80: 0.813 | H80: 0.813 | I80: 0.813 | J80: 0.813 | K80: 0.813 | L80: 0.813 | M80: 0.813 | N80: 0.813
B81: Required Shear Area of Transverse Frame | C81: cm2 | D81: At | E81: =100^2*0.5*LL*s/1000*(AF*PPFt*Pavg)/(0.577*Fy_f) -> 32.2 | F81: 29.7 | G81: 14.8 | H81: 7.4 | I81: 13.4 | J81: 7.4 | K81: 1.5 | L81: 10.4 | M81: 7.4 | N81: 1.5
B82: Ratio of Minimum Shear Area / Fitted Shear Area | D82: a_1 | E82: =E81/E54 -> 0.825 | F82: =F81/F54 -> 0.815 | G82: =G81/G54 -> 0.750 | H82: =H81/H54 -> 0.589 | I82: =I81/I54 -> 0.799 | J82: 0.589 | K82: 0.500 | L82: 0.649 | M82: 0.589 | N82: 0.297
B84: Load Length Parameter | C84: - | D84: Y | E84: =1-0.5*(LL/a*1000) -> 0.805 | F84: =1-0.5*(LL/a*1000) -> 0.797 | G84: 0.797 | H84: 0.797 | I84: 0.797 | J84: 0.797 | K84: 0.797 | L84: 0.797 | M84: 0.797 | N84: 0.797
B85: Shear Parameter | C85: - | D85: kw | E85: =1/(1+2*wf*tf/((hw+tf)*tw)) -> 0.537 | F85: 0.551 | G85: 0.539 | H85: 0.541 | I85: 0.487 | J85: 0.541 | K85: 0.381 | L85: 0.540 | M85: 0.541 | N85: 0.549
B86: Width of Plating Acting Effectively With Frame | C86: mm | D86: beff | E86: =s/2 -> 190 | F86: 190 | G86: 190 | H86: 190 | I86: 190 | J86: 190 | K86: 190 | L86: 190 | M86: 190 | N86: 190
B87: Sum of Plastic Moduli of Flange and Plate | C87: cm3 | D87: z_p | E87: =(wf*tf^2/4+beff*tp^2/4)/1000 -> 32.5 | F87: 28.1 | G87: 14.1 | H87: 8.1 | I87: 10.3 | J87: 8.1 | K87: 2.7 | L87: 10.8 | M87: 8.1 | N87: 5.5
B88: Shear Parameter | C88: - | D88: kz | E88: =z_p/Zp -> 0.0321 | F88: 0.0328 | G88: 0.0372 | H88: 0.0409 | I88: 0.0290 | J88: 0.0409 | K88: 0.0642 | L88: 0.0389 | M88: 0.0409 | N88: 0.1255
B89: Interaction Eq For 3H Mechanism (Sym Load) | C89: - | D89: A1A | E89: =IF(a_1>1,1000,1/(1+j/2+kw*j/2*((1-a_1^2)^0.5-1))) -> 0.566 | F89: 0.566 | G89: 0.550 | H89: 0.527 | I89: 0.554 | J89: 0.527 | K89: 0.513 | L89: 0.535 | M89: 0.527 | N89: 0.506
B90: Interaction Eq For Shear Mechanism (Asym Load) | C90: - | D90: A1B | E90: =(1-1/(2*a_1*Y))/(0.275+1.44*kz^0.7) -> 0.611 | F90: 0.567 | G90: 0.389 | H90: -0.153 | I90: 0.542 | J90: -0.153 | K90: -0.522 | L90: 0.079 | M90: -0.153 | N90: -1.821
B91: Interaction parameter | C91: - | D91: A1_ | E91: =MAX(E89,E90) -> 0.611 | F91: =MAX(F89,F90) -> 0.567 | G91: =MAX(G89,G90) -> 0.550 | H91: =MAX(H89,H90) -> 0.527 | I91: =MAX(I89,I90) -> 0.554 | J91: 0.527 | K91: 0.513 | L91: 0.535 | M91: 0.527 | N91: 0.506
B92: Required Plastic Section Modulus of Transverse Frame | C92: cm3 | D92: Zpt | E92: =100^3*LL*Y*s/1000*(AF*PPFt*Pavg*a/1000*A1_/(4*Fy_f)) -> 912.9 | F92: 773.5 | G92: 375.4 | H92: 179.9 | I92: 340.1 | J92: 179.9 | K92: 35.0 | L92: 255.3 | M92: 179.9 | N92: 34.5
B94: Longitudinal Plating (b>=s)
B95: Peak Pressure Factor - Plate (longl) | C95: - | D95: PPFpl | E95: =MAX(2.2-1.2*s/1000,1.5) -> 1.744 | F95: 1.744 | G95: 1.744 | H95: 1.744 | I95: 1.744 | J95: 1.744 | K95: 1.744 | L95: 1.744 | M95: 1.744 | N95: 1.744
B96: Plate Thickness Required to Resist Ice Load | C96: mm | D96: t_net | E96: =0.5*s*SQRT(AF*PPFpl*Pavg/Fy_p)/(1+s/(2*a)) -> 21.52 | F96: 20.3 | G96: 14.3 | H96: 10.1 | I96: 13.6 | J96: 10.1 | K96: 4.5 | L96: 12.0 | M96: 10.1 | N96: 4.5
B97: Required Minimum Shell Plate Thickness | C97: mm | D97: t_min | E97: =E96+E70 -> 23.5 | F97: =F96+F70 -> 22.3 | G97: =G96+G70 -> 16.3 | H97: =H96+H70 -> 12.1 | I97: =I96+I70 -> 15.6 | J97: 12.1 | K97: 6.5 | L97: 14.0 | M97: 12.1 | N97: 6.5
B98: Longitudinal Plating (b<s)
B99: Plate Thickness Required to Resist Ice Load | C99: mm | D99: t_net | E99: =0.5*s*SQRT(AF*PPFpl*Pavg/Fy_p)*(2000*b/s-(1000*b/s)^2)^0.5/(1+s/(2000*a)) -> 
B100: Required Minimum Shell Plate Thickness | C100: mm | D100: t_min | E100: =E99+E70 ->  | F100: =F99+F70 ->  | G100: =G99+G70 ->  | H100: =H99+H70 ->  | I100: =I99+I70 -> 
B102: Longitudinal Framing
B103: Peak Pressure Factor - Transverse Frame | C103: - | D103: PPFs | E103: =IF(a/1000<0.5*w,2-2*a/1000/w,1) -> 1 | F103: 1 | G103: 1 | H103: 1 | I103: 1 | J103: 1 | K103: 1 | L103: 1 | M103: 1 | N103: 1
B104: Length of Loaded Portion of Span | C104: m | D104: b_1 | E104: =ko*b_2 -> 0.325 | F104: =ko*b_2 -> 0.327 | G104: 0.327 | H104: 0.327 | I104: 0.327 | J104: 0.327 | K104: 0.327 | L104: 0.327 | M104: 0.327 | N104: 0.327
B105: load height parameter | C105: - | D105: ko | E105: =1-0.3/bpri -> 0.854 | F105: =1-0.3/bpri -> 0.860 | G105: 0.860 | H105: 0.860 | I105: 0.860 | J105: 0.860 | K105: 0.860 | L105: 0.860 | M105: 0.860 | N105: 0.860
B106: load height parameter | C106: m | D106: b_2 | E106: =IF(bpri<2,b*(1-0.25*bpri),s/1000) -> 0.380 | F106: 0.380 | G106: 0.380 | H106: 0.380 | I106: 0.380 | J106: 0.380 | K106: 0.380 | L106: 0.380 | M106: 0.380 | N106: 0.380
B107: load height parameter | C107: - | D107: bpri | E107: =b/s*1000 -> 2.054 | F107: =b/s*1000 -> 2.139 | G107: 2.139 | H107: 2.139 | I107: 2.139 | J107: 2.139 | K107: 2.139 | L107: 2.139 | M107: 2.139 | N107: 2.139
B108: Required Shear Area of Longitudinal Frame | C108: cm2 | D108: AL | E108: =100^2*(AF*PPFs*Pavg)*0.5*b_1*a/1000/(0.577*Fy_f) -> 49.6 | F108: =100^2*(AF*PPFs*Pavg)*0.5*b_1*a/1000/(0.577*Fy_f) -> 44.2 | G108: 22.1 | H108: 11.1 | I108: 19.9 | J108: 11.1 | K108: 2.2 | L108: 15.5 | M108: 11.1 | N108: 2.2
B109: Ratio of Minimum Shear Area / Fitted Shear Area | D109: a_4 | E109: =E108/E54 -> 1.271 | F109: =F108/F54 -> 1.215 | G109: =G108/G54 -> 1.117 | H109: =H108/H54 -> 0.878 | I109: =I108/I54 -> 1.190 | J109: 0.878 | K109: 0.746 | L109: 0.967 | M109: 0.878 | N109: 0.442
B111: Shear Parameter | C111: - | D111: kwl | E111: =1/(1+2*wf*tf/((hw+tf)*tw)) -> 0.537 | F111: 0.551 | G111: 0.539 | H111: 0.541 | I111: 0.487 | J111: 0.541 | K111: 0.381 | L111: 0.540 | M111: 0.541 | N111: 0.549
B112: Interaction Eq For 3H Mechanism (Sym Load) | C112: - | D112: A4_ | E112: =1/(2+kwl*((1-(IF(a_4>1,1,a_4))^2)^0.5-1)) -> 0.683 | F112: 0.690 | G112: 0.684 | H112: 0.582 | I112: 0.661 | J112: 0.582 | K112: 0.534 | L112: 0.626 | M112: 0.582 | N112: 0.515
B113: Required Plastic Section Modulus of Longitudinal Frame | C113: cm3 | D113: ZpL | E113: =100^3*(AF*PPFs*Pavg)*b_1*(a/1000)^2*A4_/(8*Fy_f)*IF(a_4>1,1000,1) -> 977555.8 | F113: =100^3*(AF*PPFs*Pavg)*b_1*(a/1000)^2*A4_/(8*Fy_f)*IF(a_4>1,1000,1) -> 880440.9 | G113: 436683.9 | H113: 185.6 | I113: 379534.1 | J113: 185.6 | K113: 34.1 | L113: 279.7 | M113: 185.6 | N113: 32.8
B115: Required Plating
B116: ratio | D116: angFac | E116: =IF(FO="Transverse",0,IF(OA<20,1,(70-OA)/50)) -> 0.00 | F116: 0.00 | G116: 0.00 | H116: 0.00 | I116: 0.00 | J116: 0.00 | K116: 0.00 | L116: 0.00 | M116: 0.00 | N116: 0.00
B117: Plate Thickness Required to Resist Ice Load | C117: mm | D117: t_reqd | E117: =E75+angFac*(IF(b<s/1000,E99,E96)-E75) -> 17.1 | F117: =F75+angFac*(F96-F75) -> 16.2 | G117: 11.5 | H117: 8.1 | I117: 10.9 | J117: 8.1 | K117: 3.6 | L117: 9.6 | M117: 8.1 | N117: 3.6
B118: Required Minimum Shell Plate Thickness | C118: mm | D118: t_min | E118: =E117+E70 -> 19.1 | F118: =F117+F70 -> 18.2 | G118: =G117+G70 -> 13.5 | H118: =H117+H70 -> 10.1 | I118: =I117+I70 -> 12.9 | J118: 10.1 | K118: 5.6 | L118: 11.6 | M118: 10.1 | N118: 5.6
B120: Required Framing
B121: Required Shear Area of Between Frame | C121: cm2 | D121: A_reqd | E121: =E81+angFac*(E108-E81) -> 32.2 | F121: =F81+angFac*(F108-F81) -> 29.7 | G121: 14.8 | H121: 7.4 | I121: 13.4 | J121: 7.4 | K121: 1.5 | L121: 10.4 | M121: 7.4 | N121: 1.5
B122: Required Plastic Section Modulus of Longitudinal Frame | C122: cm3 | D122: Z_reqd | E122: =E92+angFac*(E113-E92) -> 912.9 | F122: 773.5 | G122: 375.4 | H122: 179.9 | I122: 340.1 | J122: 179.9 | K122: 35.0 | L122: 255.3 | M122: 179.9 | N122: 34.5

Sheet Bow Load Calcs
B3: PC.design&check
B9: Vessel Particulars (Bow Area) | C9: Item
B13: station of collision | C13: Location | D13: 1 | E13: 2 | F13: 3 | G13: 4
B14: Increment | C14: x/L | D14: =O17 -> 0.0498 | E14: =O18 -> 0.1003 | F14: =O19 -> 0.1494 | G14: =O20 -> 0.1999 | M14: user edit
L15: L | M15: 69.30
B16: waterline angle | C16: alf | D16: 28.20 | E16: 22.80 | F16: 8.40 | G16: 0.10 | H16: user edit | L16: Lb | M16: 22.20 | O16: x/L
B17: frame angle | C17: beta | D17: 45.00 | E17: 43.00 | F17: 13.60 | G17: 7.20 | H17: user edit | M17: 1 | N17: =69.3/2-31.2 -> 3.45 | O17: =N17/M$15 -> 0.04978354978
B18: normal frame angle | C18: betap | D18: =ATAN(TAN(D17*deg)*COS(D16*deg))/deg -> 41.39 | E18: =ATAN(TAN(E17*deg)*COS(E16*deg))/deg -> 40.68 | F18: =ATAN(TAN(F17*deg)*COS(F16*deg))/deg -> 13.46 | G18: =ATAN(TAN(G17*deg)*COS(G16*deg))/deg -> 7.20 | M18: 3 | N18: =69.3/2-27.7 -> 6.95 | O18: =N18/M$15 -> 0.1002886003
M19: 5 | N19: =69.3/2-24.3 -> 10.35 | O19: =N19/M$15 -> 0.1493506494
B20: shape factor 5.1a | C20: fa_a | D20: =(0.097-0.68*(D14-0.15)^2)*D16/SQRT(D18) -> 0.395 | E20: =(0.097-0.68*(E14-0.15)^2)*E16/SQRT(E18) -> 0.341 | F20: =(0.097-0.68*(F14-0.15)^2)*F16/SQRT(F18) -> 0.222 | G20: =(0.097-0.68*(G14-0.15)^2)*G16/SQRT(G18) -> 0.004 | I20: do not edit other values | M20: 7 | N20: =69.3/2-20.8 -> 13.85 | O20: =N20/M$15 -> 0.1998556999
B21: shape factor 5.1b | C21: fa_b | D21: =(1.2*CFf)/(SIN(D18*deg)*CFc*Disp^0.64) -> 0.33 | E21: =(1.2*CFf)/(SIN(E18*deg)*CFc*Disp^0.64) -> 0.34 | F21: =(1.2*CFf)/(SIN(F18*deg)*CFc*Disp^0.64) -> 0.95 | G21: =(1.2*CFf)/(SIN(G18*deg)*CFc*Disp^0.64) -> 1.77
B22: shape factor 5.1c | C22: fa_c | D22: 0.60 | E22: 0.60 | F22: 0.60 | G22: 0.60
B23: shape factor | C23: fa | D23: =MAX(MIN(D20,D21,D22),0.001) -> 0.335 | E23: =MAX(MIN(E20,E21,E22),0.001) -> 0.340 | F23: =MAX(MIN(F20,F21,F22),0.001) -> 0.222 | G23: =MAX(MIN(G20,G21,G22),0.001) -> 0.004 | L23: B | M23: 18 | N23: =M$16/8*M23 -> 49.95 | O23: =N23/M$15 -> 0.7207792208
B24: Design Ice Load Particulars
B25: Force (MN) | C25: F | D25: =fa*CFc*Disp^0.64 -> 7.369 | E25: =fa*CFc*Disp^0.64 -> 7.474 | F25: =fa*CFc*Disp^0.64 -> 4.888 | G25: =fa*CFc*Disp^0.64 -> 0.078 | H25: =MAX(D25:G25) -> 7.474 | L25: ,04 L | M25: =0.04*M15 -> 2.772
B26: Aspect Ratio | C26: AR | D26: =MAX(7.46*SIN(betap*deg),1.3) -> 4.932 | E26: =MAX(7.46*SIN(betap*deg),1.3) -> 4.863 | F26: =MAX(7.46*SIN(betap*deg),1.3) -> 1.736 | G26: =MAX(7.46*SIN(betap*deg),1.3) -> 1.300 | H26: =MAX(D26:G26) -> 4.932 | L26: ,15 L | M26: =0.15*M15 -> 10.395
B27: Line load (MN/m) | C27: Q | D27: =D25^0.61*CFd*(1/D26)^0.35 -> 2.147 | E27: =E25^0.61*CFd*(1/E26)^0.35 -> 2.177 | F27: =F25^0.61*CFd*(1/F26)^0.35 -> 2.409 | G27: =G25^0.61*CFd*(1/G26)^0.35 -> 0.214 | H27: =MAX(D27:G27) -> 2.409 | L27: .7 B | M27: =0.7*M23 -> 12.6
B28: Pressure (Mpa) | C28: P | D28: =D25^0.22*CFd^2*(D26)^0.3 -> 3.086 | E28: =E25^0.22*CFd^2*(E26)^0.3 -> 3.082 | F28: =F25^0.22*CFd^2*(F26)^0.3 -> 2.061 | G28: =G25^0.22*CFd^2*(G26)^0.3 -> 0.761 | H28: =MAX(D28:G28) -> 3.086
B29: Load Patch Width (m) | C29: w | D29: =D25/D27 -> 3.432 | E29: =E25/E27 -> 3.434 | F29: =F25/F27 -> 2.029 | G29: =G25/G27 -> 0.365 | H29: =Fmax/Qmax -> 3.102
B30: Load Patch Height (m) | C30: b | D30: =D27/D28 -> 0.696 | E30: =E27/E28 -> 0.706 | F30: =F27/F28 -> 1.169 | G30: =G27/G28 -> 0.281 | H30: =Qmax/Pmax -> 0.781
C32: deg | D32: =PI()/180 -> 0.01745329252

Sheet Class Factors
B3: PC.design&check
J4: no user editable values on this sheet
B5: Tabular Data for IACS Polar Rules
B7: class_tab
B8: Class | C8: Cfdis | D8: CFc | E8: CFf | F8: CFd | G8: CFb
C9: kT | I9: OK
B10: PC 1 | C10: 250 | D10: 17.69 | E10: 68.60 | F10: 2.01 | G10: 33.00
B11: PC 2 | C11: 210 | D11: 9.89 | E11: 46.80 | F11: 1.75 | G11: 18.00
B12: PC 3 | C12: 180 | D12: 6.06 | E12: 21.17 | F12: 1.53 | G12: 10.00
B13: PC 4 | C13: 130 | D13: 4.50 | E13: 13.48 | F13: 1.42 | G13: 6.90
B14: PC 5 | C14: 70 | D14: 3.10 | E14: 9.00 | F14: 1.31 | G14: 4.60
B15: PC 6 | C15: 40 | D15: 2.40 | E15: 5.49 | F15: 1.17 | G15: 3.40
B16: PC 7 | C16: 22 | D16: 1.80 | E16: 4.06 | F16: 1.11 | G16: 2.60
B17: PC 8 | C17: =T40 -> 4 | D17: =U40 -> 1.00 | E17: =V40 -> 2.40 | F17: =W40 -> 1.00 | G17: 1.39
B19: HAF_tab_r | O19: Class | P19: Vs | Q19: Po | R19: h_ice | S19: sig_f | T19: Cfdis | U19: CFc | V19: CFf | W19: CFd | X19: CFb
B20: Hull Area Factors | C20: Area of Ice Strength | P20: m/s | Q20: Mpa | R20: m | S20: Mpa | T20: kT
B21: Area / | C21: Bi | D21: BIi | E21: BIl | F21: BIb | G21: Mi | H21: Ml | I21: Mb | J21: Si | K21: Sl | L21: Sb | N21: OK | O21: PC 1 | P21: 5.70 | Q21: 6.000 | R21: 7.0 | S21: 1.40 | T21: 250 | U21: 17.69 | V21: 68.60 | W21: 2.01 | X21: =P21^0.94*Q21^0.53*R21^0.47 -> 33.1
B22: Ice Class | C22: 2 | D22: 3 | E22: 4 | F22: 5 | G22: 6 | H22: 7 | I22: 8 | J22: 9 | K22: 10 | L22: 11 | O22: PC 2 | P22: 4.00 | Q22: 4.200 | R22: 6.0 | S22: 1.30 | T22: 210 | U22: 9.89 | V22: 46.80 | W22: 1.75 | X22: =P22^0.94*Q22^0.53*R22^0.47 -> 18.3
B23: PC 1 | C23: 1 | D23: 0.9 | E23: 0.7 | F23: 0.55 | G23: 0.7 | H23: 0.5 | I23: 0.3 | J23: 0.75 | K23: 0.45 | L23: 0.35 | O23: PC 3 | P23: 3.00 | Q23: 3.000 | R23: 4.3 | S23: 1.20 | T23: 180 | U23: 6.06 | V23: 21.17 | W23: 1.53 | X23: 9.9
B24: PC 2 | C24: 1 | D24: 0.85 | E24: 0.65 | F24: 0.5 | G24: 0.65 | H24: 0.45 | I24: 0.3 | J24: 0.7 | K24: 0.4 | L24: 0.3 | O24: PC 4 | P24: 2.50 | Q24: 2.450 | R24: 3.5 | S24: 1.10 | T24: 130 | U24: 4.50 | V24: 13.48 | W24: 1.42 | X24: 6.9
B25: PC 3 | C25: 1 | D25: 0.85 | E25: 0.65 | F25: 0.45 | G25: 0.55 | H25: 0.4 | I25: 0.25 | J25: 0.65 | K25: 0.35 | L25: 0.3 | O25: PC 5 | P25: 2.00 | Q25: 2.000 | R25: 3.0 | S25: 1.00 | T25: 70 | U25: 3.10 | V25: 9.00 | W25: 1.31 | X25: 4.6
B26: PC 4 | C26: 1 | D26: 0.8 | E26: 0.6 | F26: 0.4 | G26: 0.55 | H26: 0.35 | I26: 0.05 | J26: 0.6 | K26: 0.3 | L26: 0.25 | O26: PC 6 | P26: 1.75 | Q26: 1.500 | R26: 2.8 | S26: 0.70 | T26: 40 | U26: 2.40 | V26: 5.49 | W26: 1.17 | X26: 3.4
B27: PC 5 | C27: 1 | D27: 0.8 | E27: 0.55 | F27: 0.35 | G27: 0.5 | H27: 0.3 | I27: 0.05 | J27: 0.5 | K27: 0.25 | L27: 0.15 | O27: PC 7 | P27: 1.50 | Q27: 1.300 | R27: 2.5 | S27: 0.65 | T27: 22 | U27: 1.80 | V27: 4.06 | W27: 1.11 | X27: 2.6
B28: PC 6 | C28: 1 | D28: 1 | E28: 0.55 | F28: 0.3 | G28: 0.45 | H28: 0.25 | I28: 0.05 | J28: 0.4 | K28: 0.25 | L28: 0.05
B29: PC 7 | C29: 1 | D29: 1 | E29: 0.5 | F29: 0.25 | G29: 0.45 | H29: 0.25 | I29: 0.05 | J29: 0.35 | K29: 0.25 | L29: 0.05
B30: PC 8 | C30: 1 | D30: 1 | E30: 0.5 | F30: 0.25 | G30: 0.45 | H30: 0.25 | I30: 0.05 | J30: 0.35 | K30: 0.25 | L30: 0.05
O31: Class | P31: Vs | Q31: Po | R31: h_ice | S31: sig_f | T31: Cfdis | U31: CFc | V31: CFf | W31: CFd
B32: WA_coat_tab | P32: m/s | Q32: Mpa | R32: m | S32: Mpa | T32: kT
B33: WA coating | C33: Area of Ice Strength | O33: PC 1 | P33: 5.700 | Q33: 6.000 | R33: 7.0 | S33: 1.40 | T33: 250 | U33: =Q33^0.36*P33^1.28 -> 17.687 | V33: =S33*R33^2 -> 68.6 | W33: =Q33^0.39 -> 2.011
C34: Bi | D34: BIi | E34: BIl | F34: BIb | G34: Mi | H34: Ml | I34: Mb | J34: Si | K34: Sl | L34: Sb | O34: PC 2 | P34: 4.000 | Q34: 4.200 | R34: 6.0 | S34: 1.30 | T34: 210 | U34: 9.886 | V34: 46.8 | W34: 1.750
B35: Ice Class | C35: 2 | D35: 3 | E35: 4 | F35: 5 | G35: 6 | H35: 7 | I35: 8 | J35: 9 | K35: 10 | L35: 11 | O35: PC 3 | P35: 3.000 | Q35: 3.000 | R35: 5.0 | S35: 1.20 | T35: 180 | U35: 6.060 | V35: 30.0 | W35: 1.535
B36: PC 1 | C36: 3.5 | D36: 3.5 | E36: 2.5 | F36: 2 | G36: 2.5 | H36: 2 | I36: 2 | J36: 2.5 | K36: 2 | L36: 2 | O36: PC 4 | P36: 2.500 | Q36: 2.450 | R36: 4.0 | S36: 1.10 | T36: 130 | U36: 4.461 | V36: 17.6 | W36: 1.418
B37: PC 2 | C37: 3.5 | D37: 3.5 | E37: 2.5 | F37: 2 | G37: 2.5 | H37: 2 | I37: 2 | J37: 2.5 | K37: 2 | L37: 2 | O37: PC 5 | P37: 2.000 | Q37: 2.000 | R37: 3.0 | S37: 1.00 | T37: 70 | U37: 3.117 | V37: 9.0 | W37: 1.310
B38: PC 3 | C38: 3.5 | D38: 3.5 | E38: 2.5 | F38: 2 | G38: 2.5 | H38: 2 | I38: 2 | J38: 2.5 | K38: 2 | L38: 2 | O38: PC 6 | P38: 1.750 | Q38: 1.500 | R38: 2.8 | S38: 0.70 | T38: 40 | U38: 2.369 | V38: 5.5 | W38: 1.171
B39: PC 4 | C39: 2.5 | D39: 2.5 | E39: 2 | F39: 2 | G39: 2 | H39: 2 | I39: 2 | J39: 2 | K39: 2 | L39: 2 | O39: PC 7 | P39: 1.500 | Q39: 1.300 | R39: 2.5 | S39: 0.65 | T39: 22 | U39: 1.847 | V39: 4.1 | W39: 1.108
B40: PC 5 | C40: 2.5 | D40: 2.5 | E40: 2 | F40: 2 | G40: 2 | H40: 2 | I40: 2 | J40: 2 | K40: 2 | L40: 2 | O40: PC 8 | P40: 1.000 | Q40: 1.000 | R40: 2.0 | S40: 0.60 | T40: 4 | U40: =Q40^0.36*P40^1.28 -> 1.000 | V40: =S40*R40^2 -> 2.4 | W40: =Q40^0.39 -> 1.000 | X40: =P40^0.94*Q40^0.53*R40^0.47 -> 1.4
B41: PC 6 | C41: 2 | D41: 2 | E41: 2 | F41: 2 | G41: 2 | H41: 2 | I41: 2 | J41: 2 | K41: 2 | L41: 2
B42: PC 7 | C42: 2 | D42: 2 | E42: 2 | F42: 2 | G42: 2 | H42: 2 | I42: 2 | J42: 2 | K42: 2 | L42: 2
B43: PC 8 | C43: 2 | D43: 2 | E43: 2 | F43: 2 | G43: 2 | H43: 2 | I43: 2 | J43: 2 | K43: 2 | L43: 2
B45: WA_nocoat_tab
B46: WA no coating | C46: Area of Ice Strength
C47: Bi | D47: BIi | E47: BIl | F47: BIb | G47: Mi | H47: Ml | I47: Mb | J47: Si | K47: Sl | L47: Sb
B48: Ice Class | C48: 2 | D48: 3 | E48: 4 | F48: 5 | G48: 6 | H48: 7 | I48: 8 | J48: 9 | K48: 10 | L48: 11
B49: PC 1 | C49: 7 | D49: 7 | E49: 5 | F49: 4 | G49: 5 | H49: 4 | I49: 4 | J49: 5 | K49: 4 | L49: 4
B50: PC 2 | C50: 7 | D50: 7 | E50: 5 | F50: 4 | G50: 5 | H50: 4 | I50: 4 | J50: 5 | K50: 4 | L50: 4
B51: PC 3 | C51: 7 | D51: 7 | E51: 5 | F51: 4 | G51: 5 | H51: 4 | I51: 4 | J51: 5 | K51: 4 | L51: 4
B52: PC 4 | C52: 5 | D52: 5 | E52: 4 | F52: 3 | G52: 4 | H52: 3 | I52: 3 | J52: 4 | K52: 3 | L52: 3
B53: PC 5 | C53: 5 | D53: 5 | E53: 4 | F53: 3 | G53: 4 | H53: 3 | I53: 3 | J53: 4 | K53: 3 | L53: 3
B54: PC 6 | C54: 4 | D54: 4 | E54: 3 | F54: 2.5 | G54: 3 | H54: 2.5 | I54: 2.5 | J54: 3 | K54: 2.5 | L54: 2.5
B55: PC 7 | C55: 4 | D55: 4 | E55: 3 | F55: 2.5 | G55: 3 | H55: 2.5 | I55: 2.5 | J55: 3 | K55: 2.5 | L55: 2.5
B56: PC 8 | C56: 4 | D56: 4 | E56: 3 | F56: 2.5 | G56: 3 | H56: 2.5 | I56: 2.5 | J56: 3 | K56: 2.5 | L56: 2.5

Sheet bulbs
C1: Bulb Dimensions | I1: Converted to T or L
C2: hw | D2: tw | E2: bf | G2: A | H2: e | I2: hw | J2: tw | K2: wf | L2: tf | N2: W | O2: I | Q2: tf | R2: A | S2: e_appr
I3: mm | J3: mm | K3: mm | L3: mm
A4: HP | B4: HP 60*4.0 | C4: 60 | D4: 4 | E4: 17 | G4: 3.5 | H4: 38.2 | I4: 50.38 | J4: 4 | K4: 17 | L4: 9.62 | N4: 10.1 | O4: 49 | Q4: 9.62 | R4: 365.06 | S4: 38.63
A5: HP | B5: HP 60*5.0 | C5: 60 | D5: 5 | E5: 18 | G5: 4.1 | H5: 37 | I5: 50.38 | J5: 5 | K5: 18 | L5: 9.62 | N5: 11.6 | O5: 61 | Q5: 9.62 | R5: 425.06 | S5: 37.41
A6: HP | B6: HP 60*6.0 | C6: 60 | D6: 6 | E6: 19 | G6: 4.7 | H6: 36.2 | I6: 50.38 | J6: 6 | K6: 19 | L6: 9.62 | N6: 13.2 | O6: 72 | Q6: 9.62 | R6: 485.06 | S6: 36.49
A7: HP | B7: HP 80*5.0 | C7: 80 | D7: 5 | E7: 19 | G7: 5.4 | H7: 48.9 | I7: 69.64 | J7: 5 | K7: 19 | L7: 10.36 | N7: 19.7 | O7: 127 | Q7: 10.36 | R7: 545.04 | S7: 49.27
A8: HP | B8: HP 80*6.0 | C8: 80 | D8: 6 | E8: 20 | G8: 6.2 | H8: 47.8 | I8: 69.64 | J8: 6 | K8: 20 | L8: 10.36 | N8: 22.3 | O8: 151 | Q8: 10.36 | R8: 625.04 | S8: 48.08
A9: HP | B9: HP 80*7.0 | C9: 80 | D9: 7 | E9: 21 | G9: 7 | H9: 46.9 | I9: 69.64 | J9: 7 | K9: 21 | L9: 10.36 | N9: 24.9 | O9: 175 | Q9: 10.36 | R9: 705.04 | S9: 47.16
A10: HP | B10: HP 100*6.0 | C10: 100 | D10: 6 | E10: 21.5 | G10: 7.7 | H10: 59.8 | I10: 88.53 | J10: 6 | K10: 21.5 | L10: 11.47 | N10: 33.9 | O10: 275 | Q10: 11.47 | R10: 777.79 | S10: 60.12
A11: HP | B11: HP 100*7.0 | C11: 100 | D11: 7 | E11: 22.5 | G11: 8.7 | H11: 58.7 | I11: 88.53 | J11: 7 | K11: 22.5 | L11: 11.47 | N11: 37.9 | O11: 320 | Q11: 11.47 | R11: 877.79 | S11: 58.97
A12: HP | B12: HP 120*6.0 | C12: 120 | D12: 6 | E12: 23 | G12: 9.3 | H12: 72 | I12: 107.42 | J12: 6 | K12: 23 | L12: 12.58 | N12: 48.2 | O12: 451 | Q12: 12.58 | R12: 933.86 | S12: 72.30
A13: HP | B13: HP 100*8.0 | C13: 100 | D13: 8 | E13: 23.5 | G13: 9.7 | H13: 57.8 | I13: 88.53 | J13: 8 | K13: 23.5 | L13: 11.47 | N13: 42 | O13: 365 | Q13: 11.47 | R13: 977.79 | S13: 58.05
A14: HP | B14: HP 120*7.0 | C14: 120 | D14: 7 | E14: 24 | G14: 10.5 | H14: 70.7 | I14: 107.42 | J14: 7 | K14: 24 | L14: 12.58 | N14: 53.8 | O14: 525 | Q14: 12.58 | R14: 1053.86 | S14: 70.90
A15: HP | B15: HP 140*6.0 | C15: 140 | D15: 6 | E15: 25 | G15: 11 | H15: 84.8 | I15: 125.94 | J15: 6 | K15: 25 | L15: 14.06 | N15: 66.3 | O15: 700 | Q15: 14.06 | R15: 1107.14 | S15: 85.19
A16: HP | B16: HP 120*8.0 | C16: 120 | D16: 8 | E16: 25 | G16: 11.7 | H16: 69.6 | I16: 107.42 | J16: 8 | K16: 25 | L16: 12.58 | N16: 59.5 | O16: 600 | Q16: 12.58 | R16: 1173.86 | S16: 69.79
A17: HP | B17: HP 140*7.0 | C17: 140 | D17: 7 | E17: 26 | G17: 12.4 | H17: 83.1 | I17: 125.94 | J17: 7 | K17: 26 | L17: 14.06 | N17: 73.8 | O17: 817 | Q17: 14.06 | R17: 1247.14 | S17: 83.49
A18: HP | B18: HP 140*8.0 | C18: 140 | D18: 8 | E18: 27 | G18: 13.8 | H18: 81.8 | I18: 125.94 | J18: 8 | K18: 27 | L18: 14.06 | N18: 81.3 | O18: 921 | Q18: 14.06 | R18: 1387.14 | S18: 82.13
A19: HP | B19: HP 160*7.0 | C19: 160 | D19: 7 | E19: 29 | G19: 14.6 | H19: 96.6 | I19: 143.72 | J19: 7 | K19: 29 | L19: 16.28 | N19: 100.1 | O19: 1212 | Q19: 16.28 | R19: 1478.16 | S19: 97.41
A20: HP | B20: HP 140*9.0 | C20: 140 | D20: 9 | E20: 28 | G20: 15.2 | H20: 80.7 | I20: 125.94 | J20: 9 | K20: 28 | L20: 14.06 | N20: 89 | O20: 1044 | Q20: 14.06 | R20: 1527.14 | S20: 81.02
A21: HP | B21: HP 160*8.0 | C21: 160 | D21: 8 | E21: 30 | G21: 16.2 | H21: 94.9 | I21: 143.72 | J21: 8 | K21: 30 | L21: 16.28 | N21: 109.9 | O21: 1383 | Q21: 16.28 | R21: 1638.16 | S21: 95.71
A22: HP | B22: HP 160*9.0 | C22: 160 | D22: 9 | E22: 31 | G22: 17.8 | H22: 93.6 | I22: 143.72 | J22: 9 | K22: 31 | L22: 16.28 | N22: 119.8 | O22: 1556 | Q22: 16.28 | R22: 1798.16 | S22: 94.31
A23: HP | B23: HP 180*8.0 | C23: 180 | D23: 8 | E23: 33 | G23: 18.8 | H23: 108.8 | I23: 161.5 | J23: 8 | K23: 33 | L23: 18.5 | N23: 146.2 | O23: 1999 | Q23: 18.5 | R23: 1902.50 | S23: 109.63
A24: HP | B24: HP 180*9.0 | C24: 180 | D24: 9 | E24: 34 | G24: 20.6 | H24: 107.2 | I24: 161.5 | J24: 9 | K24: 34 | L24: 18.5 | N24: 158.6 | O24: 2235 | Q24: 18.5 | R24: 2082.50 | S24: 107.93
A25: HP | B25: HP 180*10.0 | C25: 180 | D25: 10 | E25: 35 | G25: 22.4 | H25: 105.8 | I25: 161.5 | J25: 10 | K25: 35 | L25: 18.5 | N25: 171.1 | O25: 2495 | Q25: 18.5 | R25: 2262.50 | S25: 106.51
A26: HP | B26: HP 200*9.0 | C26: 200 | D26: 9 | E26: 37 | G26: 23.6 | H26: 121.1 | I26: 179.28 | J26: 9 | K26: 37 | L26: 20.72 | N26: 204.4 | O26: 3094 | Q26: 20.72 | R26: 2380.16 | S26: 121.85
A27: HP | B27: HP 180*11.0 | C27: 180 | D27: 11 | E27: 36 | G27: 24.2 | H27: 104.6 | I27: 161.5 | J27: 11 | K27: 36 | L27: 18.5 | N27: 183.6 | O27: 2750 | Q27: 18.5 | R27: 2442.50 | S27: 105.29
A28: HP | B28: HP 200*10.0 | C28: 200 | D28: 10 | E28: 38 | G28: 25.6 | H28: 119.5 | I28: 179.28 | J28: 10 | K28: 38 | L28: 20.72 | N28: 219.8 | O28: 3423 | Q28: 20.72 | R28: 2580.16 | S28: 120.16
A29: HP | B29: HP 200*11.0 | C29: 200 | D29: 11 | E29: 39 | G29: 27.6 | H29: 118.1 | I29: 179.28 | J29: 11 | K29: 39 | L29: 20.72 | N29: 235.2 | O29: 3773 | Q29: 20.72 | R29: 2780.16 | S29: 118.71
A30: HP | B30: HP 200*11.5 | C30: 200 | D30: 11.5 | E30: 39.5 | G30: 28.6 | H30: 117.4 | I30: 179.28 | J30: 11.5 | K30: 39.5 | L30: 20.72 | N30: 243 | O30: 3947 | Q30: 20.72 | R30: 2880.16 | S30: 118.06
A31: HP | B31: HP 220*10.0 | C31: 220 | D31: 10 | E31: 41 | G31: 28.9 | H31: 133.4 | I31: 197.06 | J31: 10 | K31: 41 | L31: 22.94 | N31: 276.4 | O31: 4652 | Q31: 22.94 | R31: 2911.14 | S31: 134.07
A32: HP | B32: HP 200*12.0 | C32: 200 | D32: 12 | E32: 40 | G32: 29.6 | H32: 116.8 | I32: 179.28 | J32: 12 | K32: 40 | L32: 20.72 | N32: 250.8 | O32: 4122 | Q32: 20.72 | R32: 2980.16 | S32: 117.45
A33: HP | B33: HP 220*11.0 | C33: 220 | D33: 11 | E33: 42 | G33: 31.1 | H33: 131.7 | I33: 197.06 | J33: 11 | K33: 42 | L33: 22.94 | N33: 295 | O33: 5095 | Q33: 22.94 | R33: 3131.14 | S33: 132.38
A34: HP | B34: HP 220*11.5 | C34: 220 | D34: 11.5 | E34: 42.5 | G34: 32.2 | H34: 131 | I34: 197.06 | J34: 11.5 | K34: 42.5 | L34: 22.94 | N34: 304.4 | O34: 5317 | Q34: 22.94 | R34: 3241.14 | S34: 131.62
A35: HP | B35: HP 240*10.0 | C35: 240 | D35: 10 | E35: 44 | G35: 32.4 | H35: 147.6 | I35: 214.84 | J35: 10 | K35: 44 | L35: 25.16 | N35: 341.4 | O35: 5999 | Q35: 25.16 | R35: 3255.44 | S35: 148.23
A36: HP | B36: HP 220*12.0 | C36: 220 | D36: 12 | E36: 43 | G36: 33.3 | H36: 130.3 | I36: 197.06 | J36: 12 | K36: 43 | L36: 22.94 | N36: 313.7 | O36: 5539 | Q36: 22.94 | R36: 3351.14 | S36: 130.91
A37: HP | B37: HP 240*11.0 | C37: 240 | D37: 11 | E37: 45 | G37: 34.8 | H37: 145.7 | I37: 214.84 | J37: 11 | K37: 45 | L37: 25.16 | N37: 363.5 | O37: 6659 | Q37: 25.16 | R37: 3495.44 | S37: 146.29
A38: HP | B38: HP 260*10.0 | C38: 260 | D38: 10 | E38: 47 | G38: 36 | H38: 162 | I38: 232.62 | J38: 10 | K38: 47 | L38: 27.38 | N38: 415.2 | O38: 7746 | Q38: 27.38 | R38: 3613.06 | S38: 162.61
A39: HP | B39: HP 240*12.0 | C39: 240 | D39: 12 | E39: 46 | G39: 37.2 | H39: 144 | I39: 214.84 | J39: 12 | K39: 46 | L39: 25.16 | N39: 385.7 | O39: 7231 | Q39: 25.16 | R39: 3735.44 | S39: 144.60
A40: HP | B40: HP 260*11.0 | C40: 260 | D40: 11 | E40: 48 | G40: 38.6 | H40: 159.8 | I40: 232.62 | J40: 11 | K40: 48 | L40: 27.38 | N40: 441.2 | O40: 8505 | Q40: 27.38 | R40: 3873.06 | S40: 160.42
A41: HP | B41: HP 260*12.0 | C41: 260 | D41: 12 | E41: 49 | G41: 41.2 | H41: 157.9 | I41: 232.62 | J41: 12 | K41: 49 | L41: 27.38 | N41: 467.2 | O41: 9246 | Q41: 27.38 | R41: 4133.06 | S41: 158.51
A42: HP | B42: HP 280*11.0 | C42: 280 | D42: 11 | E42: 51 | G42: 42.6 | H42: 174.2 | I42: 250.4 | J42: 11 | K42: 51 | L42: 29.6 | N42: 528.5 | O42: 10635 | Q42: 29.6 | R42: 4264.00 | S42: 174.76
A43: HP | B43: HP 260*13.0 | C43: 260 | D43: 13 | E43: 50 | G43: 43.8 | H43: 156.3 | I43: 232.62 | J43: 13 | K43: 50 | L43: 27.38 | N43: 493.3 | O43: 9978 | Q43: 27.38 | R43: 4393.06 | S43: 156.82
A44: HP | B44: HP 280*12.0 | C44: 280 | D44: 12 | E44: 52 | G44: 45.4 | H44: 172.1 | I44: 250.4 | J44: 12 | K44: 52 | L44: 29.6 | N44: 558.8 | O44: 11611 | Q44: 29.6 | R44: 4544.00 | S44: 172.62
A45: HP | B45: HP 300*11.0 | C45: 300 | D45: 11 | E45: 54 | G45: 46.7 | H45: 188.8 | I45: 268.18 | J45: 11 | K45: 54 | L45: 31.82 | N45: 625.9 | O45: 13186 | Q45: 31.82 | R45: 4668.26 | S45: 189.30
A46: HP | B46: HP 280*13.0 | C46: 280 | D46: 13 | E46: 53 | G46: 48.2 | H46: 170.2 | I46: 250.4 | J46: 13 | K46: 53 | L46: 29.6 | N46: 589 | O46: 12546 | Q46: 29.6 | R46: 4824.00 | S46: 170.73
A47: HP | B47: HP 300*12.0 | C47: 300 | D47: 12 | E47: 55 | G47: 49.7 | H47: 186.4 | I47: 268.18 | J47: 12 | K47: 55 | L47: 31.82 | N47: 660.7 | O47: 14405 | Q47: 31.82 | R47: 4968.26 | S47: 186.93
A48: HP | B48: HP 280*14.0 | C48: 280 | D48: 14 | E48: 54 | G48: 51 | H48: 168.6 | I48: 250.4 | J48: 14 | K48: 54 | L48: 29.6 | N48: 619.3 | O48: 13497 | Q48: 29.6 | R48: 5104.00 | S48: 169.04
A49: HP | B49: HP 300*13.0 | C49: 300 | D49: 13 | E49: 56 | G49: 52.7 | H49: 184.3 | I49: 268.18 | J49: 13 | K49: 56 | L49: 31.82 | N49: 695.5 | O49: 15601 | Q49: 31.82 | R49: 5268.26 | S49: 184.83
A50: HP | B50: HP 320*12.0 | C50: 320 | D50: 12 | E50: 58 | G50: 54.1 | H50: 200.9 | I50: 285.96 | J50: 12 | K50: 58 | L50: 34.04 | N50: 773.6 | O50: 17502 | Q50: 34.04 | R50: 5405.84 | S50: 201.42
A51: HP | B51: HP 300*14.0 | C51: 300 | D51: 14 | E51: 57 | G51: 55.7 | H51: 182.5 | I51: 268.18 | J51: 14 | K51: 57 | L51: 31.82 | N51: 730.2 | O51: 16761 | Q51: 31.82 | R51: 5568.26 | S51: 182.95
A52: HP | B52: HP 320*13.0 | C52: 320 | D52: 13 | E52: 59 | G52: 57.3 | H52: 198.6 | I52: 285.96 | J52: 13 | K52: 59 | L52: 34.04 | N52: 813.2 | O52: 18969 | Q52: 34.04 | R52: 5725.84 | S52: 199.10
A53: HP | B53: HP 300*15.0 | C53: 300 | D53: 15 | E53: 58 | G53: 58.7 | H53: 180.8 | I53: 268.18 | J53: 15 | K53: 58 | L53: 31.82 | N53: 765.1 | O53: 17930 | Q53: 31.82 | R53: 5868.26 | S53: 181.26
A54: HP | B54: HP 340*12.0 | C54: 340 | D54: 12 | E54: 61 | G54: 58.7 | H54: 215.6 | I54: 303.74 | J54: 12 | K54: 61 | L54: 36.26 | N54: 897.9 | O54: 20978 | Q54: 36.26 | R54: 5856.74 | S54: 216.07
A55: HP | B55: HP 320*14.0 | C55: 320 | D55: 14 | E55: 60 | G55: 60.5 | H55: 196.6 | I55: 285.96 | J55: 14 | K55: 60 | L55: 34.04 | N55: 852.8 | O55: 20420 | Q55: 34.04 | R55: 6045.84 | S55: 197.03
A56: HP | B56: HP 340*13.0 | C56: 340 | D56: 13 | E56: 62 | G56: 62.1 | H56: 213.1 | I56: 303.74 | J56: 13 | K56: 62 | L56: 36.26 | N56: 942.7 | O56: 22777 | Q56: 36.26 | R56: 6196.74 | S56: 213.54
A57: HP | B57: HP 320*15.0 | C57: 320 | D57: 15 | E57: 61 | G57: 63.7 | H57: 194.8 | I57: 285.96 | J57: 15 | K57: 61 | L57: 34.04 | N57: 892.4 | O57: 21820 | Q57: 34.04 | R57: 6365.84 | S57: 195.17
A58: HP | B58: HP 340*14.0 | C58: 340 | D58: 14 | E58: 63 | G58: 65.5 | H58: 210.9 | I58: 303.74 | J58: 14 | K58: 63 | L58: 36.26 | N58: 987.5 | O58: 24512 | Q58: 36.26 | R58: 6536.74 | S58: 211.28
A59: HP | B59: HP 320*16.0 | C59: 320 | D59: 16 | E59: 62 | G59: 66.9 | H59: 193.1 | I59: 285.96 | J59: 16 | K59: 62 | L59: 34.04 | N59: 932.1 | O59: 23238 | Q59: 34.04 | R59: 6685.84 | S59: 193.49
A60: HP | B60: HP 340*15.0 | C60: 340 | D60: 15 | E60: 64 | G60: 68.9 | H60: 208.9 | I60: 303.74 | J60: 15 | K60: 64 | L60: 36.26 | N60: 1032.2 | O60: 26229 | Q60: 36.26 | R60: 6876.74 | S60: 209.24
A61: HP | B61: HP 370*13.0 | C61: 370 | D61: 13 | E61: 66.5 | G61: 69.5 | H61: 235.1 | I61: 330.41 | J61: 13 | K61: 66.5 | L61: 39.59 | N61: 1160 | O61: 29480 | Q61: 39.59 | R61: 6928.07 | S61: 235.51
A62: HP | B62: HP 340*16.0 | C62: 340 | D62: 16 | E62: 65 | G62: 72.3 | H62: 207 | I62: 303.74 | J62: 16 | K62: 65 | L62: 36.26 | N62: 1076.9 | O62: 27909 | Q62: 36.26 | R62: 7216.74 | S62: 207.39
A63: HP | B63: HP 370*14.0 | C63: 370 | D63: 14 | E63: 67.5 | G63: 73.2 | H63: 232.6 | I63: 330.41 | J63: 14 | K63: 67.5 | L63: 39.59 | N63: 1213.2 | O63: 31631 | Q63: 39.59 | R63: 7298.07 | S63: 232.95
A64: HP | B64: HP 370*15.0 | C64: 370 | D64: 15 | E64: 68.5 | G64: 76.9 | H64: 230.3 | I64: 330.41 | J64: 15 | K64: 68.5 | L64: 39.59 | N64: 1266.3 | O64: 33914 | Q64: 39.59 | R64: 7668.07 | S64: 230.63
A65: HP | B65: HP 370*16.0 | C65: 370 | D65: 16 | E65: 69.5 | G65: 80.6 | H65: 228.2 | I65: 330.41 | J65: 16 | K65: 69.5 | L65: 39.59 | N65: 1319.3 | O65: 36139 | Q65: 39.59 | R65: 8038.07 | S65: 228.53
A66: HP | B66: HP 400*14.0 | C66: 400 | D66: 14 | E66: 72 | G66: 81.2 | H66: 254.6 | I66: 357.08 | J66: 14 | K66: 72 | L66: 42.92 | N66: 1468.7 | O66: 40356 | Q66: 42.92 | R66: 8089.36 | S66: 254.94
A67: HP | B67: HP 370*17.0 | C67: 370 | D67: 17 | E67: 70.5 | G67: 84.3 | H67: 226.3 | I67: 330.41 | J67: 17 | K67: 70.5 | L67: 39.59 | N67: 1372.3 | O67: 38324 | Q67: 39.59 | R67: 8408.07 | S67: 226.62
A68: HP | B68: HP 400*15.0 | C68: 400 | D68: 15 | E68: 73 | G68: 85.2 | H68: 252.1 | I68: 357.08 | J68: 15 | K68: 73 | L68: 42.92 | N68: 1530.9 | O68: 43105 | Q68: 42.92 | R68: 8489.36 | S68: 252.35
A69: HP | B69: HP 370*18.0 | C69: 370 | D69: 18 | E69: 71.5 | G69: 88 | H69: 224.6 | I69: 330.41 | J69: 18 | K69: 71.5 | L69: 39.59 | N69: 1425.4 | O69: 40458 | Q69: 39.59 | R69: 8778.07 | S69: 224.86
A70: HP | B70: HP 400*16.0 | C70: 400 | D70: 16 | E70: 74 | G70: 89.2 | H70: 249.7 | I70: 357.08 | J70: 16 | K70: 74 | L70: 42.92 | N70: 1593.1 | O70: 46013 | Q70: 42.92 | R70: 8889.36 | S70: 250.00
A71: HP | B71: HP 400*17.0 | C71: 400 | D71: 17 | E71: 75 | G71: 93.2 | H71: 247.6 | I71: 357.08 | J71: 17 | K71: 75 | L71: 42.92 | N71: 1655.1 | O71: 48602 | Q71: 42.92 | R71: 9289.36 | S71: 247.85
A72: HP | B72: HP 430*15.0 | C72: 430 | D72: 15 | E72: 77.5 | G72: 93.9 | H72: 274.1 | I72: 383.75 | J72: 15 | K72: 77.5 | L72: 46.25 | N72: 1827.7 | O72: 53730 | Q72: 46.25 | R72: 9340.63 | S72: 274.38
A73: HP | B73: HP 400*18.0 | C73: 400 | D73: 18 | E73: 76 | G73: 97.2 | H73: 245.6 | I73: 357.08 | J73: 18 | K73: 76 | L73: 42.92 | N73: 1717.1 | O73: 51381 | Q73: 42.92 | R73: 9689.36 | S73: 245.87
A74: HP | B74: HP 430*16.0 | C74: 430 | D74: 16 | E74: 78.5 | G74: 98.2 | H74: 271.5 | I74: 383.75 | J74: 16 | K74: 78.5 | L74: 46.25 | N74: 1899.8 | O74: 57149 | Q74: 46.25 | R74: 9770.63 | S74: 271.77
A75: HP | B75: HP 400*19.0 | C75: 400 | D75: 19 | E75: 77 | G75: 101.2 | H75: 243.8 | I75: 357.08 | J75: 19 | K75: 77 | L75: 42.92 | N75: 1779.2 | O75: 54103 | Q75: 42.92 | R75: 10089.36 | S75: 244.05
A76: HP | B76: HP 430*17.0 | C76: 430 | D76: 17 | E76: 79.5 | G76: 102.5 | H76: 269.2 | I76: 383.75 | J76: 17 | K76: 79.5 | L76: 46.25 | N76: 1971.7 | O76: 60832 | Q76: 46.25 | R76: 10200.63 | S76: 269.37
A77: HP | B77: HP 430*18.0 | C77: 430 | D77: 18 | E77: 80.5 | G77: 106.8 | H77: 267 | I77: 383.75 | J77: 18 | K77: 80.5 | L77: 46.25 | N77: 2043.5 | O77: 64325 | Q77: 46.25 | R77: 10630.63 | S77: 267.17
A78: HP | B78: HP 430*19.0 | C78: 430 | D78: 19 | E78: 81.5 | G78: 111.1 | H78: 265 | I78: 383.75 | J78: 19 | K78: 81.5 | L78: 46.25 | N78: 2115.2 | O78: 67752 | Q78: 46.25 | R78: 11060.63 | S78: 265.15
A79: HP | B79: HP 430*20.0 | C79: 430 | D79: 20 | E79: 82.5 | G79: 115.4 | H79: 263.1 | I79: 383.75 | J79: 20 | K79: 82.5 | L79: 46.25 | N79: 2187 | O79: 71353 | Q79: 46.25 | R79: 11490.63 | S79: 263.27
A80: HP | B80: HP 430*21.0 | C80: 430 | D80: 21 | E80: 83.5 | G80: 119.7 | H80: 261.4 | I80: 383.75 | J80: 21 | K80: 83.5 | L80: 46.25 | N80: 2258.8 | O80: 74658 | Q80: 46.25 | R80: 11920.63 | S80: 261.53
A81: HP | B81: outside range | C81: 10000 | D81: 100 | E81: 100 | G81: 1000 | I81: 10000 | J81: 100 | K81: 100 | L81: 100 | Q81: 51.8 | R81: 48626 | S81: 803.9955291

Sheet angles
C1: Angle Dimensions
C2: h | D2: t | E2: b | F2: tf | G2: A | I2: hw | J2: tw | K2: wf | L2: tf
A4: L | B4: L 65*9.0*50*9.0 | C4: 65 | D4: 9 | E4: 50 | F4: 9 | G4: 960 | I4: 56 | J4: 9 | K4: 50 | L4: 9 | M4: =I4*SQRT(360)/J4 -> 118.058366
A5: L | B5: L 75*9.0*50*9.0 | C5: 75 | D5: 9 | E5: 50 | F5: 9 | G5: 1050 | I5: 66 | J5: 9 | K5: 50 | L5: 9 | M5: =I5*SQRT(360)/J5 -> 139.140217
A6: L | B6: L 75*9.0*55*9.0 | C6: 75 | D6: 9 | E6: 55 | F6: 9 | G6: 1090 | I6: 66 | J6: 9 | K6: 55 | L6: 9 | M6: 139.140217
A7: L | B7: L 100 x 65 x 7 | C7: 100 | D7: 7 | E7: 65 | F7: 7 | G7: 1120 | I7: 93 | J7: 7 | K7: 65 | L7: 7 | M7: 252.0787049
A8: L | B8: L 100 x 65 x 8 | C8: 100 | D8: 8 | E8: 65 | F8: 8 | G8: 1270 | I8: 92 | J8: 8 | K8: 65 | L8: 8 | M8: 218.1971586
A9: L | B9: L 100 x 75 x 8 | C9: 100 | D9: 8 | E9: 75 | F9: 8 | G9: 1350 | I9: 92 | J9: 8 | K9: 75 | L9: 8 | M9: 218.1971586
A10: L | B10: L 80*10.0*65*10.0 | C10: 80 | D10: 10 | E10: 65 | F10: 10 | G10: 1360 | I10: 70 | J10: 10 | K10: 65 | L10: 10 | M10: 132.8156617
A11: L | B11: L 100*10.0*50*10.0 | C11: 100 | D11: 10 | E11: 50 | F11: 10 | G11: 1410 | I11: 90 | J11: 10 | K11: 50 | L11: 10 | M11: 170.7629936
A12: L | B12: L 100*9.0*65*9.0 | C12: 100 | D12: 9 | E12: 65 | F12: 9 | G12: 1420 | I12: 91 | J12: 9 | K12: 65 | L12: 9 | M12: 191.8448447
A13: L | B13: L 100*9.0*75*9.0 | C13: 100 | D13: 9 | E13: 75 | F13: 9 | G13: 1510 | I13: 91 | J13: 9 | K13: 75 | L13: 9 | M13: 191.8448447
A14: L | B14: L 120 x 80 x 8 | C14: 120 | D14: 8 | E14: 80 | F14: 8 | G14: 1550 | I14: 112 | J14: 8 | K14: 80 | L14: 8 | M14: 265.6313235
A15: L | B15: L 125 x 75 x 8 | C15: 125 | D15: 8 | E15: 75 | F15: 8 | G15: 1550 | I15: 117 | J15: 8 | K15: 75 | L15: 8 | M15: 277.4898647
A16: L | B16: L 100 x 75 x 10 | C16: 100 | D16: 10 | E16: 75 | F16: 10 | G16: 1660 | I16: 90 | J16: 10 | K16: 75 | L16: 10 | M16: 170.7629936
A17: L | B17: L 100*11.0*65*11.0 | C17: 100 | D17: 11 | E17: 65 | F17: 11 | G17: 1710 | I17: 89 | J17: 11 | K17: 65 | L17: 11 | M17: 153.5142064
A18: L | B18: L 100*11.0*75*11.0 | C18: 100 | D18: 11 | E18: 75 | F18: 11 | G18: 1820 | I18: 89 | J18: 11 | K18: 75 | L18: 11 | M18: 153.5142064
A19: L | B19: L 130*10.0*65*10.0 | C19: 130 | D19: 10 | E19: 65 | F19: 10 | G19: 1860 | I19: 120 | J19: 10 | K19: 65 | L19: 10 | M19: 227.6839915
A20: L | B20: L 120*10.0*80*10.0 | C20: 120 | D20: 10 | E20: 80 | F20: 10 | G20: 1910 | I20: 110 | J20: 10 | K20: 80 | L20: 10 | M20: 208.7103256
A21: L | B21: L 125 x 75 x 10 | C21: 125 | D21: 10 | E21: 75 | F21: 10 | G21: 1920 | I21: 115 | J21: 10 | K21: 75 | L21: 10 | M21: 218.1971586
A22: L | B22: L 150*9.0*75*9.0 | C22: 150 | D22: 9 | E22: 75 | F22: 9 | G22: 1950 | I22: 141 | J22: 9 | K22: 75 | L22: 9 | M22: 297.2541001
A23: L | B23: L 130*10.0*75*10.0 | C23: 130 | D23: 10 | E23: 75 | F23: 10 | G23: 1960 | I23: 120 | J23: 10 | K23: 75 | L23: 10 | M23: 227.6839915
A24: L | B24: L 100 x 75 x 12 | C24: 100 | D24: 12 | E24: 75 | F24: 12 | G24: 1970 | I24: 88 | J24: 12 | K24: 75 | L24: 12 | M24: 139.140217
A25: L | B25: L 130*10.0*90*10.0 | C25: 130 | D25: 10 | E25: 90 | F25: 10 | G25: 2120 | I25: 120 | J25: 10 | K25: 90 | L25: 10 | M25: 227.6839915
A26: L | B26: L 150 x 75 x 10 | C26: 150 | D26: 10 | E26: 75 | F26: 10 | G26: 2170 | I26: 140 | J26: 10 | K26: 75 | L26: 10 | M26: 265.6313235
A27: L | B27: L 130*12.0*65*12.0 | C27: 130 | D27: 12 | E27: 65 | F27: 12 | G27: 2210 | I27: 118 | J27: 12 | K27: 65 | L27: 12 | M27: 186.5743819
A28: L | B28: L 120*12.0*80*12.0 | C28: 120 | D28: 12 | E28: 80 | F28: 12 | G28: 2270 | I28: 108 | J28: 12 | K28: 80 | L28: 12 | M28: 170.7629936
A29: L | B29: L 125 x 75 x 12 | C29: 125 | D29: 12 | E29: 75 | F29: 12 | G29: 2270 | I29: 113 | J29: 12 | K29: 75 | L29: 12 | M29: 178.6686878
A30: L | B30: L 150*10.0*90*10.0 | C30: 150 | D30: 10 | E30: 90 | F30: 10 | G30: 2290 | I30: 140 | J30: 10 | K30: 90 | L30: 10 | M30: 265.6313235
A31: L | B31: L 160*10.0*80*10.0 | C31: 160 | D31: 10 | E31: 80 | F31: 10 | G31: 2320 | I31: 150 | J31: 10 | K31: 80 | L31: 10 | M31: 284.6049894
A32: L | B32: L 130*12.0*75*12.0 | C32: 130 | D32: 12 | E32: 75 | F32: 12 | G32: 2330 | I32: 118 | J32: 12 | K32: 75 | L32: 12 | M32: 186.5743819
A33: L | B33: L 150*11.0*75*11.0 | C33: 150 | D33: 11 | E33: 75 | F33: 11 | G33: 2360 | I33: 139 | J33: 11 | K33: 75 | L33: 11 | M33: 239.7581426
A34: L | B34: L 150*10.0*100*10.0 | C34: 150 | D34: 10 | E34: 100 | F34: 10 | G34: 2420 | I34: 140 | J34: 10 | K34: 100 | L34: 10 | M34: 265.6313235
A35: L | B35: L 130*12.0*90*12.0 | C35: 130 | D35: 12 | E35: 90 | F35: 12 | G35: 2510 | I35: 118 | J35: 12 | K35: 90 | L35: 12 | M35: 186.5743819
A36: L | B36: L 150 x 75 x 12 | C36: 150 | D36: 12 | E36: 75 | F36: 12 | G36: 2570 | I36: 138 | J36: 12 | K36: 75 | L36: 12 | M36: 218.1971586
A37: L | B37: L 120*14.0*80*14.0 | C37: 120 | D37: 14 | E37: 80 | F37: 14 | G37: 2620 | I37: 106 | J37: 14 | K37: 80 | L37: 14 | M37: 143.6577566
A38: L | B38: L 180*10.0*90*10.0 | C38: 180 | D38: 10 | E38: 90 | F38: 10 | G38: 2620 | I38: 170 | J38: 10 | K38: 90 | L38: 10 | M38: 322.5523213
A39: L | B39: L 150*12.0*90*12.0 | C39: 150 | D39: 12 | E39: 90 | F39: 12 | G39: 2730 | I39: 138 | J39: 12 | K39: 90 | L39: 12 | M39: 218.1971586
A40: L | B40: L 160*12.0*80*12.0 | C40: 160 | D40: 12 | E40: 80 | F40: 12 | G40: 2750 | I40: 148 | J40: 12 | K40: 80 | L40: 12 | M40: 234.0085469
A41: L | B41: L 200*9.0*90*12.0 | C41: 200 | D41: 9 | E41: 90 | F41: 12 | G41: 2810 | I41: 191 | J41: 9 | K41: 90 | L41: 12 | M41: 402.6633554
A42: L | B42: L 150*12.0*100*12.0 | C42: 150 | D42: 12 | E42: 100 | F42: 12 | G42: 2870 | I42: 138 | J42: 12 | K42: 100 | L42: 12 | M42: 218.1971586
A43: L | B43: L 200*10.0*100*10.0 | C43: 200 | D43: 10 | E43: 100 | F43: 10 | G43: 2920 | I43: 190 | J43: 10 | K43: 100 | L43: 10 | M43: 360.4996533
A44: L | B44: L 225*9.0*90*12.0 | C44: 225 | D44: 9 | E44: 90 | F44: 12 | G44: 3030 | I44: 216 | J44: 9 | K44: 90 | L44: 12 | M44: 455.3679831
A45: L | B45: L 180*12.0*90*12.0 | C45: 180 | D45: 12 | E45: 90 | F45: 12 | G45: 3120 | I45: 168 | J45: 12 | K45: 90 | L45: 12 | M45: 265.6313235
A46: L | B46: L 150 x 75 x 15 | C46: 150 | D46: 15 | E46: 75 | F46: 15 | G46: 3170 | I46: 135 | J46: 15 | K46: 75 | L46: 15 | M46: 170.7629936
A47: L | B47: L 160*14.0*80*14.0 | C47: 160 | D47: 14 | E47: 80 | F47: 14 | G47: 3180 | I47: 146 | J47: 14 | K47: 80 | L47: 14 | M47: 197.8682307
A48: L | B48: L 200*10.5*90*14.0 | C48: 200 | D48: 10.5 | E48: 90 | F48: 14 | G48: 3250 | I48: 189.5 | J48: 10.5 | K48: 90 | L48: 14 | M48: 342.4294952
A49: L | B49: L 150*14.0*100*14.0 | C49: 150 | D49: 14 | E49: 100 | F49: 14 | G49: 3320 | I49: 136 | J49: 14 | K49: 100 | L49: 14 | M49: 184.3156122
A50: L | B50: L 250*10.0*90*10.0 | C50: 250 | D50: 10 | E50: 90 | F50: 10 | G50: 3320 | I50: 240 | J50: 10 | K50: 90 | L50: 10 | M50: 455.3679831
A51: L | B51: L 250*9.0*90*13.0 | C51: 250 | D51: 9 | E51: 90 | F51: 13 | G51: 3340 | I51: 241 | J51: 9 | K51: 90 | L51: 13 | M51: 508.0726107
A52: L | B52: L 150 x 90 x 15 | C52: 150 | D52: 15 | E52: 90 | F52: 15 | G52: 3400 | I52: 135 | J52: 15 | K52: 90 | L52: 15 | M52: 170.7629936
A53: L | B53: L 200*12.0*100*12.0 | C53: 200 | D53: 12 | E53: 100 | F53: 12 | G53: 3480 | I53: 188 | J53: 12 | K53: 100 | L53: 12 | M53: 297.2541001
A54: L | B54: L 200*11.5*90*15.0 | C54: 200 | D54: 11.5 | E54: 90 | F54: 15 | G54: 3510 | I54: 188.5 | J54: 11.5 | K54: 90 | L54: 15 | M54: 311.0031334
A55: L | B55: L 225*10.5*90*14.0 | C55: 225 | D55: 10.5 | E55: 90 | F55: 14 | G55: 3510 | I55: 214.5 | J55: 10.5 | K55: 90 | L55: 14 | M55: 387.6048903
A56: L | B56: L 180*14.0*90*14.0 | C56: 180 | D56: 14 | E56: 90 | F56: 14 | G56: 3610 | I56: 166 | J56: 14 | K56: 90 | L56: 14 | M56: 224.9734678
A57: L | B57: L 225*11.5*90*15.0 | C57: 225 | D57: 11.5 | E57: 90 | F57: 15 | G57: 3800 | I57: 213.5 | J57: 11.5 | K57: 90 | L57: 15 | M57: 352.2502333
A58: L | B58: L 250*10.5*90*15.0 | C58: 250 | D58: 10.5 | E58: 90 | F58: 15 | G58: 3850 | I58: 239.5 | J58: 10.5 | K58: 90 | L58: 15 | M58: 432.7802855
A59: L | B59: L 250*12.0*90*12.0 | C59: 250 | D59: 12 | E59: 90 | F59: 12 | G59: 3960 | I59: 238 | J59: 12 | K59: 90 | L59: 12 | M59: 376.3110416
A60: L | B60: L 200*14.0*100*14.0 | C60: 200 | D60: 14 | E60: 100 | F60: 14 | G60: 4030 | I60: 186 | J60: 14 | K60: 100 | L60: 14 | M60: 252.0787049
A61: L | B61: L 200 x 150 x 12 | C61: 200 | D61: 12 | E61: 150 | F61: 12 | G61: 4090 | I61: 188 | J61: 12 | K61: 150 | L61: 12 | M61: 297.2541001
A62: L | B62: L 250*11.5*90*16.0 | C62: 250 | D62: 11.5 | E62: 90 | F62: 16 | G62: 4170 | I62: 238.5 | J62: 11.5 | K62: 90 | L62: 16 | M62: 393.4973332
A63: L | B63: L 275*10.5*100*14.0 | C63: 275 | D63: 10.5 | E63: 100 | F63: 14 | G63: 4180 | I63: 264.5 | J63: 10.5 | K63: 100 | L63: 14 | M63: 477.9556806
A64: L | B64: L 200 x 100 x 15 | C64: 200 | D64: 15 | E64: 100 | F64: 15 | G64: 4310 | I64: 185 | J64: 15 | K64: 100 | L64: 15 | M64: 234.0085469
A65: L | B65: L 275*11.5*100*15.0 | C65: 275 | D65: 11.5 | E65: 100 | F65: 15 | G65: 4530 | I65: 263.5 | J65: 11.5 | K65: 100 | L65: 15 | M65: 434.7444331
A66: L | B66: L 300*10.5*100*15.0 | C66: 300 | D66: 10.5 | E66: 100 | F66: 15 | G66: 4530 | I66: 289.5 | J66: 10.5 | K66: 100 | L66: 15 | M66: 523.1310758
A67: L | B67: L 200*16.0*100*16.0 | C67: 200 | D67: 16 | E67: 100 | F67: 16 | G67: 4570 | I67: 184 | J67: 16 | K67: 100 | L67: 16 | M67: 218.1971586
A68: L | B68: L 250*14.0*90*14.0 | C68: 250 | D68: 14 | E68: 90 | F68: 14 | G68: 4590 | I68: 236 | J68: 14 | K68: 90 | L68: 14 | M68: 319.8417976
A69: L | B69: L 300*11.5*100*16.0 | C69: 300 | D69: 11.5 | E69: 100 | F69: 16 | G69: 4900 | I69: 288.5 | J69: 11.5 | K69: 100 | L69: 16 | M69: =I69*SQRT(360)/J69 -> 475.991533
A70: L | B70: L 325*10.5*120*14.0 | C70: 325 | D70: 10.5 | E70: 120 | F70: 14 | G70: 5010 | I70: 314.5 | J70: 10.5 | K70: 120 | L70: 14 | M70: 568.3064709
A71: L | B71: L 200 x 150 x 15 | C71: 200 | D71: 15 | E71: 150 | F71: 15 | G71: 5060 | I71: 185 | J71: 15 | K71: 150 | L71: 15 | M71: 234.0085469
A72: L | B72: L 250*16.0*90*16.0 | C72: 250 | D72: 16 | E72: 90 | F72: 16 | G72: 5210 | I72: 234 | J72: 16 | K72: 90 | L72: 16 | M72: 277.4898647
A73: L | B73: L 325*11.5*120*15.0 | C73: 325 | D73: 11.5 | E73: 120 | F73: 15 | G73: 5430 | I73: 313.5 | J73: 11.5 | K73: 120 | L73: 15 | M73: 517.2386329
A74: L | B74: L 350*10.5*120*16.0 | C74: 350 | D74: 10.5 | E74: 120 | F74: 16 | G74: 5490 | I74: 339.5 | J74: 10.5 | K74: 120 | L74: 16 | M74: 613.4818661
A75: L | B75: L 375*10.5*120*18.0 | C75: 375 | D75: 10.5 | E75: 120 | F75: 18 | G75: 5970 | I75: 364.5 | J75: 10.5 | K75: 120 | L75: 18 | M75: 658.6572612
A76: L | B76: L 200 x 150 x 18 | C76: 200 | D76: 18 | E76: 150 | F76: 18 | G76: 6010 | I76: 182 | J76: 18 | K76: 150 | L76: 18 | M76: 191.8448447
A77: L | B77: L 350*11.5*120*18.0 | C77: 350 | D77: 11.5 | E77: 120 | F77: 18 | G77: 6040 | I77: 338.5 | J77: 11.5 | K77: 120 | L77: 18 | M77: 558.4857329
A78: L | B78: L 375*11.5*120*20.0 | C78: 375 | D78: 11.5 | E78: 120 | F78: 20 | G78: 6540 | I78: 363.5 | J78: 11.5 | K78: 120 | L78: 20 | M78: 599.7328328
A79: L | B79: L 400*11.5*120*23.0 | C79: 400 | D79: 11.5 | E79: 120 | F79: 23 | G79: 7160 | I79: 388.5 | J79: 11.5 | K79: 120 | L79: 23 | M79: 640.9799327
A80: L | B80: L 425*11.5*120*24.0 | C80: 425 | D80: 11.5 | E80: 120 | F80: 24 | G80: 7550 | I80: 413.5 | J80: 11.5 | K80: 120 | L80: 24 | M80: 682.2270326
A81: L | B81: L 400*12.5*120*25.0 | C81: 400 | D81: 12.5 | E81: 120 | F81: 25 | G81: 7750 | I81: 387.5 | J81: 12.5 | K81: 120 | L81: 25 | M81: 588.1836448
A82: L | B82: L 450*11.5*120*25.0 | C82: 450 | D82: 11.5 | E82: 120 | F82: 25 | G82: 7950 | I82: 438.5 | J82: 11.5 | K82: 120 | L82: 25 | M82: 723.4741325
A83: L | B83: L 425*12.5*120*26.0 | C83: 425 | D83: 12.5 | E83: 120 | F83: 26 | G83: 8170 | I83: 412.5 | J83: 12.5 | K83: 120 | L83: 26 | M83: 626.1309767
A84: L | B84: L 475*11.5*120*28.0 | C84: 475 | D84: 11.5 | E84: 120 | F84: 28 | G84: 8560 | I84: 463.5 | J84: 11.5 | K84: 120 | L84: 28 | M84: 764.7212324
A85: L | B85: L 450*12.5*120*27.0 | C85: 450 | D85: 12.5 | E85: 120 | F85: 27 | G85: 8590 | I85: 437.5 | J85: 12.5 | K85: 120 | L85: 27 | M85: 664.0783086
A86: L | B86: L 475*12.5*120*30.0 | C86: 475 | D86: 12.5 | E86: 120 | F86: 30 | G86: 9220 | I86: 462.5 | J86: 12.5 | K86: 120 | L86: 30 | M86: 702.0256406
A87: L | B87: L 500*13.5*120*35.0 | C87: 500 | D87: 13.5 | E87: 120 | F87: 35 | G87: 10540 | I87: 486.5 | J87: 13.5 | K87: 120 | L87: 35 | M87: 683.754703
A88: L | B88: outside range | C88: 10000 | D88: 100 | E88: 100 | F88: 100 | G88: 107500 | I88: 10000 | J88: 100 | K88: 100 | L88: 100

Sheet half_I
C2: h | D2: tw | E2: b | F2: t f | G2: A | I2: hw | J2: tw | K2: wf | L2: tf | M2: A
C3: mm | D3: mm | E3: mm | F3: mm | G3: cm2 | I3: =C3 -> mm | J3: =D3 -> mm | K3: =E3 -> mm | L3: =F3 -> mm | M3: mm2
A4: half_I | B4: IPE 100 A_half | C4: 98 | D4: 3.6 | E4: 55 | F4: 4.7 | G4: 8.78 | I4: 44.3 | J4: 3.6 | K4: 55 | L4: 4.7 | M4: 418 | N4: =I4*SQRT(360)/J4 -> 233.5
A5: half_I | B5: IPE 100_half | C5: 100 | D5: 4.1 | E5: 55 | F5: 5.7 | G5: 10.3 | I5: 44.3 | J5: 4.1 | K5: 55 | L5: 5.7 | M5: 495 | N5: =I5*SQRT(360)/J5 -> 205.0
A6: half_I | B6: IPE 120 A_half | C6: 118 | D6: 3.8 | E6: 64 | F6: 5.1 | G6: 11 | I6: 53.9 | J6: 3.8 | K6: 64 | L6: 5.1 | M6: 531 | N6: 269.1
A7: half_I | B7: IPE 120_half | C7: 120 | D7: 4.4 | E7: 64 | F7: 6.3 | G7: 13.2 | I7: 53.7 | J7: 4.4 | K7: 64 | L7: 6.3 | M7: 639 | N7: 231.6
A8: half_I | B8: IPE 140 A_half | C8: 138 | D8: 3.8 | E8: 73 | F8: 5.6 | G8: 13.4 | I8: 63.4 | J8: 3.8 | K8: 73 | L8: 5.6 | M8: 650 | N8: 316.6
A9: half_I | B9: IPE 160 A_half | C9: 157 | D9: 4 | E9: 82 | F9: 5.9 | G9: 16.2 | I9: 72.6 | J9: 4 | K9: 82 | L9: 5.9 | M9: 774 | N9: 344.4
A10: half_I | B10: IPE 140_half | C10: 140 | D10: 4.7 | E10: 73 | F10: 6.9 | G10: 16.4 | I10: 63.1 | J10: 4.7 | K10: 73 | L10: 6.9 | M10: 800 | N10: 254.7
A11: half_I | B11: IPE 140 R_half | C11: 142 | D11: 5.3 | E11: 72 | F11: 7.8 | G11: 18.4 | I11: 63.2 | J11: 5.3 | K11: 72 | L11: 7.8 | M11: 897 | N11: 226.3
A12: half_I | B12: IPE 180 A_half | C12: 177 | D12: 4.3 | E12: 91 | F12: 6.5 | G12: 19.6 | I12: 82 | J12: 4.3 | K12: 91 | L12: 6.5 | M12: 944 | N12: 361.8
A13: half_I | B13: IPE 160_half | C13: 160 | D13: 5 | E13: 82 | F13: 7.4 | G13: 20.1 | I13: 72.6 | J13: 5 | K13: 82 | L13: 7.4 | M13: 970 | N13: 275.5
A14: half_I | B14: IPE 160 R_half | C14: 162 | D14: 5.6 | E14: 81 | F14: 8.5 | G14: 22.6 | I14: 72.5 | J14: 5.6 | K14: 81 | L14: 8.5 | M14: 1095 | N14: 245.6
A15: half_I | B15: IPE 200 A_half | C15: 197 | D15: 4.5 | E15: 100 | F15: 7 | G15: 23.5 | I15: 91.5 | J15: 4.5 | K15: 100 | L15: 7 | M15: 1112 | N15: 385.8
A16: half_I | B16: IPE 180_half | C16: 180 | D16: 5.3 | E16: 91 | F16: 8 | G16: 23.9 | I16: 82 | J16: 5.3 | K16: 91 | L16: 8 | M16: 1163 | N16: 293.6
A17: half_I | B17: IPE 180 O_half | C17: 182 | D17: 6 | E17: 92 | F17: 9 | G17: 27.1 | I17: 82 | J17: 6 | K17: 92 | L17: 9 | M17: 1320 | N17: 259.3
A18: half_I | B18: IPE 220 A_half | C18: 217 | D18: 5 | E18: 110 | F18: 7.7 | G18: 28.3 | I18: 100.8 | J18: 5 | K18: 110 | L18: 7.7 | M18: 1351 | N18: 382.5
A19: half_I | B19: IPE 200_half | C19: 200 | D19: 5.6 | E19: 100 | F19: 8.5 | G19: 28.5 | I19: 91.5 | J19: 5.6 | K19: 100 | L19: 8.5 | M19: 1362 | N19: 310.0
A20: half_I | B20: IPE 180 R_half | C20: 183 | D20: 6.4 | E20: 89 | F20: 9.5 | G20: 28.1 | I20: 82 | J20: 6.4 | K20: 89 | L20: 9.5 | M20: 1370 | N20: 243.1
A21: half_I | B21: IPE 200 O_half | C21: 202 | D21: 6.2 | E21: 102 | F21: 9.5 | G21: 32 | I21: 91.5 | J21: 6.2 | K21: 102 | L21: 9.5 | M21: 1536 | N21: 280.0
A22: half_I | B22: IPE 240 A_half | C22: 237 | D22: 5.2 | E22: 120 | F22: 8.3 | G22: 33.3 | I22: 110.2 | J22: 5.2 | K22: 120 | L22: 8.3 | M22: 1569 | N22: 402.1
A23: half_I | B23: IPE 220_half | C23: 220 | D23: 5.9 | E23: 110 | F23: 9.2 | G23: 33.4 | I23: 100.8 | J23: 5.9 | K23: 110 | L23: 9.2 | M23: 1607 | N23: 324.2
A24: half_I | B24: IPE 200 R_half | C24: 204 | D24: 6.6 | E24: 98 | F24: 10.5 | G24: 33.9 | I24: 91.5 | J24: 6.6 | K24: 98 | L24: 10.5 | M24: 1633 | N24: 263.0
A25: half_I | B25: IPE 220 O_half | C25: 222 | D25: 6.6 | E25: 112 | F25: 10.2 | G25: 37.4 | I25: 100.8 | J25: 6.6 | K25: 112 | L25: 10.2 | M25: 1808 | N25: 289.8
A26: half_I | B26: IPE 240_half | C26: 240 | D26: 6.2 | E26: 120 | F26: 9.8 | G26: 39.1 | I26: 110.2 | J26: 6.2 | K26: 120 | L26: 9.8 | M26: 1859 | N26: 337.2
A27: half_I | B27: IPE 270 A_half | C27: 267 | D27: 5.5 | E27: 135 | F27: 8.7 | G27: 39.1 | I27: 124.8 | J27: 5.5 | K27: 135 | L27: 8.7 | M27: 1861 | N27: 430.5
A28: half_I | B28: IPE 220 R_half | C28: 225 | D28: 6.7 | E28: 108 | F28: 11.8 | G28: 40.2 | I28: 100.7 | J28: 6.7 | K28: 108 | L28: 11.8 | M28: 1949 | N28: 285.2
A29: half_I | B29: IPE 240 O_half | C29: 242 | D29: 7 | E29: 122 | F29: 10.8 | G29: 43.7 | I29: 110.2 | J29: 7 | K29: 122 | L29: 10.8 | M29: 2089 | N29: 298.7
A30: half_I | B30: IPE 270_half | C30: 270 | D30: 6.6 | E30: 135 | F30: 10.2 | G30: 45.9 | I30: 124.8 | J30: 6.6 | K30: 135 | L30: 10.2 | M30: 2201 | N30: 358.8
A31: half_I | B31: IPE 300 A_half | C31: 297 | D31: 6.1 | E31: 150 | F31: 9.2 | G31: 46.5 | I31: 139.3 | J31: 6.1 | K31: 150 | L31: 9.2 | M31: 2230 | N31: 433.3
A32: half_I | B32: IPE 240 R_half | C32: 245 | D32: 7.5 | E32: 118 | F32: 12.3 | G32: 47.5 | I32: 110.2 | J32: 7.5 | K32: 118 | L32: 12.3 | M32: 2278 | N32: 278.8
A33: half_I | B33: IPE 300_half | C33: 300 | D33: 7.1 | E33: 150 | F33: 10.7 | G33: 53.8 | I33: 139.3 | J33: 7.1 | K33: 150 | L33: 10.7 | M33: 2594 | N33: 372.3
A34: half_I | B34: IPE 270 O_half | C34: 274 | D34: 7.5 | E34: 136 | F34: 12.2 | G34: 53.8 | I34: 124.8 | J34: 7.5 | K34: 136 | L34: 12.2 | M34: 2595 | N34: 315.7
A35: half_I | B35: IPE 330 A_half | C35: 327 | D35: 6.5 | E35: 160 | F35: 10 | G35: 54.7 | I35: 153.5 | J35: 6.5 | K35: 160 | L35: 10 | M35: 2598 | N35: 448.1
A36: half_I | B36: IPE 270 R_half | C36: 276 | D36: 7.7 | E36: 133 | F36: 13.1 | G36: 56 | I36: 124.9 | J36: 7.7 | K36: 133 | L36: 13.1 | M36: 2704 | N36: 307.8
A37: half_I | B37: IPE 330 _half | C37: 330 | D37: 7.5 | E37: 160 | F37: 11.5 | G37: 62.6 | I37: 153.5 | J37: 7.5 | K37: 160 | L37: 11.5 | M37: 2991 | N37: 388.3
A38: half_I | B38: IPE 300 O_half | C38: 304 | D38: 8 | E38: 152 | F38: 12.7 | G38: 62.8 | I38: 139.3 | J38: 8 | K38: 152 | L38: 12.7 | M38: 3045 | N38: 330.4
A39: half_I | B39: IPE 360 A _half | C39: 357.6 | D39: 6.6 | E39: 170 | F39: 11.5 | G39: 64 | I39: 167.3 | J39: 6.6 | K39: 170 | L39: 11.5 | M39: 3059 | N39: 481.0
A40: half_I | B40: IPE 300 R_half | C40: 306 | D40: 8.5 | E40: 147 | F40: 13.7 | G40: 65.9 | I40: 139.3 | J40: 8.5 | K40: 147 | L40: 13.7 | M40: 3198 | N40: 310.9
A41: half_I | B41: IPE 400 A _half | C41: 397 | D41: 7 | E41: 180 | F41: 12 | G41: 73.1 | I41: 186.5 | J41: 7 | K41: 180 | L41: 12 | M41: 3466 | N41: 505.5
A42: half_I | B42: IPE 330 O_half | C42: 334 | D42: 8.5 | E42: 162 | F42: 13.5 | G42: 72.6 | I42: 153.5 | J42: 8.5 | K42: 162 | L42: 13.5 | M42: 3492 | N42: 342.6
A43: half_I | B43: IPE 360 _half | C43: 360 | D43: 8 | E43: 170 | F43: 12.7 | G43: 72.7 | I43: 167.3 | J43: 8 | K43: 170 | L43: 12.7 | M43: 3497 | N43: 396.8
A44: half_I | B44: IPE 330 R _half | C44: 336 | D44: 9.2 | E44: 158 | F44: 14.5 | G44: 76.8 | I44: 153.5 | J44: 9.2 | K44: 158 | L44: 14.5 | M44: 3703 | N44: 316.6
A45: half_I | B45: IPE 400 _half | C45: 400 | D45: 8.6 | E45: 180 | F45: 13.5 | G45: 84.5 | I45: 186.5 | J45: 8.6 | K45: 180 | L45: 13.5 | M45: 4034 | N45: 411.5
A46: half_I | B46: IPE 360 O _half | C46: 364 | D46: 9.2 | E46: 172 | F46: 14.7 | G46: 84.1 | I46: 167.3 | J46: 9.2 | K46: 172 | L46: 14.7 | M46: 4068 | N46: 345.0
A47: half_I | B47: IPE 450 A _half | C47: 447 | D47: 7.6 | E47: 190 | F47: 13.1 | G47: 85.5 | I47: 210.4 | J47: 7.6 | K47: 190 | L47: 13.1 | M47: 4088 | N47: 525.3
A48: half_I | B48: IPE 360 R _half | C48: 366 | D48: 9.9 | E48: 168 | F48: 16 | G48: 89.6 | I48: 167 | J48: 9.9 | K48: 168 | L48: 16 | M48: 4341 | N48: 320.1
A49: half_I | B49: IPE 400 O _half | C49: 404 | D49: 9.7 | E49: 182 | F49: 15.5 | G49: 96.4 | I49: 186.5 | J49: 9.7 | K49: 182 | L49: 15.5 | M49: 4630 | N49: 364.8
A50: half_I | B50: IPE 450 _half | C50: 450 | D50: 9.4 | E50: 190 | F50: 14.6 | G50: 98.8 | I50: 210.4 | J50: 9.4 | K50: 190 | L50: 14.6 | M50: 4752 | N50: 424.7
A51: half_I | B51: IPE 500 A _half | C51: 497 | D51: 8.4 | E51: 200 | F51: 14.5 | G51: 101 | I51: 234 | J51: 8.4 | K51: 200 | L51: 14.5 | M51: 4866 | N51: 528.6
A52: half_I | B52: IPE 400 R _half | C52: 407 | D52: 10.6 | E52: 178 | F52: 17 | G52: 104 | I52: 186.5 | J52: 10.6 | K52: 178 | L52: 17 | M52: 5003 | N52: 333.8
A53: half_I | B53: IPE 400 V _half | C53: 408 | D53: 10.6 | E53: 182 | F53: 17.5 | G53: 107 | I53: 186.5 | J53: 10.6 | K53: 182 | L53: 17.5 | M53: 5162 | N53: 333.8
A54: half_I | B54: IPE 500 _half | C54: 500 | D54: 10.2 | E54: 200 | F54: 16 | G54: 116 | I54: 234 | J54: 10.2 | K54: 200 | L54: 16 | M54: 5587 | N54: 435.3
A55: half_I | B55: IPE 550 A _half | C55: 547 | D55: 9 | E55: 210 | F55: 15.7 | G55: 117 | I55: 257.8 | J55: 9 | K55: 210 | L55: 15.7 | M55: 5617 | N55: 543.5
A56: half_I | B56: IPE 450 O _half | C56: 456 | D56: 11 | E56: 192 | F56: 17.6 | G56: 118 | I56: 210.4 | J56: 11 | K56: 192 | L56: 17.6 | M56: 5694 | N56: 362.9
A57: half_I | B57: IPE 450 R _half | C57: 458 | D57: 11.3 | E57: 188 | F57: 18.6 | G57: 121 | I57: 210.4 | J57: 11.3 | K57: 188 | L57: 18.6 | M57: 5874 | N57: 353.3
A58: half_I | B58: IPE 450 V _half | C58: 460 | D58: 12.4 | E58: 194 | F58: 19.6 | G58: 132 | I58: 210.4 | J58: 12.4 | K58: 194 | L58: 19.6 | M58: 6411 | N58: 321.9
A59: half_I | B59: IPE 550 _half | C59: 550 | D59: 11.1 | E59: 210 | F59: 17.2 | G59: 134 | I59: 257.8 | J59: 11.1 | K59: 210 | L59: 17.2 | M59: 6474 | N59: 440.7
A60: half_I | B60: IPE 600 A _half | C60: 597 | D60: 9.8 | E60: 220 | F60: 17.5 | G60: 137 | I60: 281 | J60: 9.8 | K60: 220 | L60: 17.5 | M60: 6604 | N60: 544.0
A61: half_I | B61: IPE 500 O _half | C61: 506 | D61: 12 | E61: 202 | F61: 19 | G61: 137 | I61: 234 | J61: 12 | K61: 202 | L61: 19 | M61: 6646 | N61: 370.0
A62: half_I | B62: IPE 500 R _half | C62: 508 | D62: 12.6 | E62: 198 | F62: 20 | G62: 142 | I62: 234 | J62: 12.6 | K62: 198 | L62: 20 | M62: 6908 | N62: 352.4
A63: half_I | B63: IPE 600 _half | C63: 600 | D63: 12 | E63: 220 | F63: 19 | G63: 156 | I63: 281 | J63: 12 | K63: 220 | L63: 19 | M63: 7552 | N63: 444.3
A64: half_I | B64: IPE 550 O _half | C64: 556 | D64: 12.7 | E64: 212 | F64: 20.2 | G64: 156 | I64: 257.8 | J64: 12.7 | K64: 212 | L64: 20.2 | M64: 7556 | N64: 385.2
A65: half_I | B65: IPE 500 V _half | C65: 514 | D65: 14.2 | E65: 204 | F65: 23 | G65: 164 | I65: 234 | J65: 14.2 | K65: 204 | L65: 23 | M65: 8015 | N65: 312.7
A66: half_I | B66: IPE 550 R _half | C66: 560 | D66: 14 | E66: 210 | F66: 22.2 | G66: 170 | I66: 257.8 | J66: 14 | K66: 210 | L66: 22.2 | M66: 8271 | N66: 349.4
A67: half_I | B67: IPE 750 x 137_half | C67: 753 | D67: 11.5 | E67: 263 | F67: 17 | G67: 175 | I67: 359.5 | J67: 11.5 | K67: 263 | L67: 17 | M67: 8605 | N67: 593.1
A68: half_I | B68: IPE 600 R _half | C68: 608 | D68: 14 | E68: 218 | F68: 23 | G68: 184 | I68: 281 | J68: 14 | K68: 218 | L68: 23 | M68: 8948 | N68: 380.8
A69: half_I | B69: IPE 750 x 147_half | C69: 753 | D69: 13.2 | E69: 265 | F69: 17 | G69: 187 | I69: 359.5 | J69: 13.2 | K69: 265 | L69: 17 | M69: 9250 | N69: =I69*SQRT(360)/J69 -> 516.7
A70: half_I | B70: IPE 600 O _half | C70: 610 | D70: 15 | E70: 224 | F70: 24 | G70: 197 | I70: 281 | J70: 15 | K70: 224 | L70: 24 | M70: 9591 | N70: 355.4
A71: half_I | B71: IPE 550 V _half | C71: 566 | D71: 17.1 | E71: 216 | F71: 25.2 | G71: 202 | I71: 257.8 | J71: 17.1 | K71: 216 | L71: 25.2 | M71: 9852 | N71: 286.0
A72: half_I | B72: IPE 750 x 161_half | C72: 758 | D72: 13.8 | E72: 266 | F72: 19.3 | G72: 204 | I72: 359.7 | J72: 13.8 | K72: 266 | L72: 19.3 | M72: 10098 | N72: 494.6
A73: half_I | B73: IPE 750 x 173_half | C73: 762 | D73: 14.4 | E73: 267 | F73: 21.6 | G73: 221 | I73: 359.4 | J73: 14.4 | K73: 267 | L73: 21.6 | M73: 10943 | N73: 473.6
A74: half_I | B74: IPE 600 V _half | C74: 618 | D74: 18 | E74: 228 | F74: 28 | G74: 234 | I74: 281 | J74: 18 | K74: 228 | L74: 28 | M74: 11442 | N74: 296.2
A75: half_I | B75: IPE 750 x 185_half | C75: 766 | D75: 14.9 | E75: 267 | F75: 23.6 | G75: 236 | I75: 359.4 | J75: 14.9 | K75: 267 | L75: 23.6 | M75: 11656 | N75: 457.7
A76: half_I | B76: IPE 750 x 196_half | C76: 770 | D76: 15.6 | E76: 268 | F76: 25.4 | G76: 251 | I76: 359.6 | J76: 15.6 | K76: 268 | L76: 25.4 | M76: 12417 | N76: 437.4
A77: half_I | B77: IPE 750 x 210_half | C77: 775 | D77: 16 | E77: 268 | F77: 28 | G77: 268 | I77: 359.5 | J77: 16 | K77: 268 | L77: 28 | M77: 13256 | N77: 426.3
A78: half_I | B78: IPE 750 x 222_half | C78: 778 | D78: 17 | E78: 269 | F78: 29.5 | G78: 283 | I78: 359.5 | J78: 17 | K78: 269 | L78: 29.5 | M78: 14047 | N78: 401.2
A79: half_I | B79: outside range | I79: 10000 | J79: 100 | K79: 100 | L79: 100

Sheet WT (half_W)
C2: h | D2: tw | E2: b | F2: t f | G2: A | I2: hw | J2: tw | K2: wf | L2: tf | M2: A | O2: h | P2: tw | Q2: b | R2: t f | S2: A | U2: hw | V2: tw | W2: wf | X2: tf | Y2: A
C3: in | D3: in | E3: in | F3: in | G3: in2 | I3: =C3 -> in | J3: =D3 -> in | K3: =E3 -> in | L3: =F3 -> in | M3: mm2 | O3: mm | P3: mm | Q3: mm | R3: mm | S3: cm2 | U3: =O3 -> mm | V3: =P3 -> mm | W3: =Q3 -> mm | X3: =R3 -> mm | Y3: mm2
A4: WT | B4: W 4x3#_half | O4: 98 | P4: 3.6 | Q4: 55 | R4: 4.7 | S4: 8.78 | U4: 44.3 | V4: 3.6 | W4: 55 | X4: 4.7 | Y4: 418 | Z4: =U4*SQRT(360)/V4 -> 233.5
A5: WT | B5: W 5x16# | O5: 100 | P5: 4.1 | Q5: 55 | R5: 5.7 | S5: 10.3 | U5: 44.3 | V5: 4.1 | W5: 55 | X5: 5.7 | Y5: 495 | Z5: =U5*SQRT(360)/V5 -> 205.0
A6: WT | B6: W 5x19# | O6: 118 | P6: 3.8 | Q6: 64 | R6: 5.1 | S6: 11 | U6: 53.9 | V6: 3.8 | W6: 64 | X6: 5.1 | Y6: 531 | Z6: 269.1
A7: WT | B7: W 6x9# | O7: 120 | P7: 4.4 | Q7: 64 | R7: 6.3 | S7: 13.2 | U7: 53.7 | V7: 4.4 | W7: 64 | X7: 6.3 | Y7: 639 | Z7: 231.6
A8: WT | B8: W 6x12# | O8: 138 | P8: 3.8 | Q8: 73 | R8: 5.6 | S8: 13.4 | U8: 63.4 | V8: 3.8 | W8: 73 | X8: 5.6 | Y8: 650 | Z8: 316.6
A9: WT | B9: W 6x16# | O9: 157 | P9: 4 | Q9: 82 | R9: 5.9 | S9: 16.2 | U9: 72.6 | V9: 4 | W9: 82 | X9: 5.9 | Y9: 774 | Z9: 344.4
A10: WT | B10: W 5x19# | O10: 140 | P10: 4.7 | Q10: 73 | R10: 6.9 | S10: 16.4 | U10: 63.1 | V10: 4.7 | W10: 73 | X10: 6.9 | Y10: 800 | Z10: 254.7
A11: WT | B11: W 6x15# | O11: 142 | P11: 5.3 | Q11: 72 | R11: 7.8 | S11: 18.4 | U11: 63.2 | V11: 5.3 | W11: 72 | X11: 7.8 | Y11: 897 | Z11: 226.3
A12: WT | B12: W 6x20# | O12: 177 | P12: 4.3 | Q12: 91 | R12: 6.5 | S12: 19.6 | U12: 82 | V12: 4.3 | W12: 91 | X12: 6.5 | Y12: 944 | Z12: 361.8
A13: WT | B13: W 6x25# | O13: 160 | P13: 5 | Q13: 82 | R13: 7.4 | S13: 20.1 | U13: 72.6 | V13: 5 | W13: 82 | X13: 7.4 | Y13: 970 | Z13: 275.5
A14: WT | B14: W 8x10# | O14: 162 | P14: 5.6 | Q14: 81 | R14: 8.5 | S14: 22.6 | U14: 72.5 | V14: 5.6 | W14: 81 | X14: 8.5 | Y14: 1095 | Z14: 245.6
A15: WT | B15: W 8x13# | O15: 197 | P15: 4.5 | Q15: 100 | R15: 7 | S15: 23.5 | U15: 91.5 | V15: 4.5 | W15: 100 | X15: 7 | Y15: 1112 | Z15: 385.8
A16: WT | B16: W 8x15# | O16: 180 | P16: 5.3 | Q16: 91 | R16: 8 | S16: 23.9 | U16: 82 | V16: 5.3 | W16: 91 | X16: 8 | Y16: 1163 | Z16: 293.6
A17: WT | B17: W 8x18# | O17: 182 | P17: 6 | Q17: 92 | R17: 9 | S17: 27.1 | U17: 82 | V17: 6 | W17: 92 | X17: 9 | Y17: 1320 | Z17: 259.3
A18: WT | B18: W 8x21# | O18: 217 | P18: 5 | Q18: 110 | R18: 7.7 | S18: 28.3 | U18: 100.8 | V18: 5 | W18: 110 | X18: 7.7 | Y18: 1351 | Z18: 382.5
A19: WT | B19: W 8x24# | O19: 200 | P19: 5.6 | Q19: 100 | R19: 8.5 | S19: 28.5 | U19: 91.5 | V19: 5.6 | W19: 100 | X19: 8.5 | Y19: 1362 | Z19: 310.0
A20: WT | B20: W 8x28# | O20: 183 | P20: 6.4 | Q20: 89 | R20: 9.5 | S20: 28.1 | U20: 82 | V20: 6.4 | W20: 89 | X20: 9.5 | Y20: 1370 | Z20: 243.1
A21: WT | B21: W 8x31# | O21: 202 | P21: 6.2 | Q21: 102 | R21: 9.5 | S21: 32 | U21: 91.5 | V21: 6.2 | W21: 102 | X21: 9.5 | Y21: 1536 | Z21: 280.0
A22: WT | B22: W 8x35# | O22: 237 | P22: 5.2 | Q22: 120 | R22: 8.3 | S22: 33.3 | U22: 110.2 | V22: 5.2 | W22: 120 | X22: 8.3 | Y22: 1569 | Z22: 402.1
A23: WT | B23: W 8x40# | O23: 220 | P23: 5.9 | Q23: 110 | R23: 9.2 | S23: 33.4 | U23: 100.8 | V23: 5.9 | W23: 110 | X23: 9.2 | Y23: 1607 | Z23: 324.2
A24: WT | B24: W 8x21# | O24: 204 | P24: 6.6 | Q24: 98 | R24: 10.5 | S24: 33.9 | U24: 91.5 | V24: 6.6 | W24: 98 | X24: 10.5 | Y24: 1633 | Z24: 263.0
A25: WT | B25: W 8x21# | O25: 222 | P25: 6.6 | Q25: 112 | R25: 10.2 | S25: 37.4 | U25: 100.8 | V25: 6.6 | W25: 112 | X25: 10.2 | Y25: 1808 | Z25: 289.8
A26: WT | B26: W 8x48# | O26: 240 | P26: 6.2 | Q26: 120 | R26: 9.8 | S26: 39.1 | U26: 110.2 | V26: 6.2 | W26: 120 | X26: 9.8 | Y26: 1859 | Z26: 337.2
A27: WT | B27: W 8x58# | O27: 267 | P27: 5.5 | Q27: 135 | R27: 8.7 | S27: 39.1 | U27: 124.8 | V27: 5.5 | W27: 135 | X27: 8.7 | Y27: 1861 | Z27: 430.5
A28: WT | B28: W 8x67# | O28: 225 | P28: 6.7 | Q28: 108 | R28: 11.8 | S28: 40.2 | U28: 100.7 | V28: 6.7 | W28: 108 | X28: 11.8 | Y28: 1949 | Z28: 285.2
A29: WT | B29: W 8x10# | O29: 242 | P29: 7 | Q29: 122 | R29: 10.8 | S29: 43.7 | U29: 110.2 | V29: 7 | W29: 122 | X29: 10.8 | Y29: 2089 | Z29: 298.7
A30: WT | B30: W 8x10# | O30: 270 | P30: 6.6 | Q30: 135 | R30: 10.2 | S30: 45.9 | U30: 124.8 | V30: 6.6 | W30: 135 | X30: 10.2 | Y30: 2201 | Z30: 358.8
A31: WT | B31: W 8x10# | O31: 297 | P31: 6.1 | Q31: 150 | R31: 9.2 | S31: 46.5 | U31: 139.3 | V31: 6.1 | W31: 150 | X31: 9.2 | Y31: 2230 | Z31: 433.3
A32: WT | B32: IPE 240 R_half | O32: 245 | P32: 7.5 | Q32: 118 | R32: 12.3 | S32: 47.5 | U32: 110.2 | V32: 7.5 | W32: 118 | X32: 12.3 | Y32: 2278 | Z32: 278.8
A33: WT | B33: IPE 300_half | O33: 300 | P33: 7.1 | Q33: 150 | R33: 10.7 | S33: 53.8 | U33: 139.3 | V33: 7.1 | W33: 150 | X33: 10.7 | Y33: 2594 | Z33: 372.3
A34: WT | B34: IPE 270 O_half | O34: 274 | P34: 7.5 | Q34: 136 | R34: 12.2 | S34: 53.8 | U34: 124.8 | V34: 7.5 | W34: 136 | X34: 12.2 | Y34: 2595 | Z34: 315.7
A35: WT | B35: IPE 330 A_half | O35: 327 | P35: 6.5 | Q35: 160 | R35: 10 | S35: 54.7 | U35: 153.5 | V35: 6.5 | W35: 160 | X35: 10 | Y35: 2598 | Z35: 448.1
A36: WT | B36: IPE 270 R_half | O36: 276 | P36: 7.7 | Q36: 133 | R36: 13.1 | S36: 56 | U36: 124.9 | V36: 7.7 | W36: 133 | X36: 13.1 | Y36: 2704 | Z36: 307.8
A37: WT | B37: IPE 330 _half | O37: 330 | P37: 7.5 | Q37: 160 | R37: 11.5 | S37: 62.6 | U37: 153.5 | V37: 7.5 | W37: 160 | X37: 11.5 | Y37: 2991 | Z37: 388.3
A38: WT | B38: IPE 300 O_half | O38: 304 | P38: 8 | Q38: 152 | R38: 12.7 | S38: 62.8 | U38: 139.3 | V38: 8 | W38: 152 | X38: 12.7 | Y38: 3045 | Z38: 330.4
A39: WT | B39: IPE 360 A _half | O39: 357.6 | P39: 6.6 | Q39: 170 | R39: 11.5 | S39: 64 | U39: 167.3 | V39: 6.6 | W39: 170 | X39: 11.5 | Y39: 3059 | Z39: 481.0
A40: WT | B40: IPE 300 R_half | O40: 306 | P40: 8.5 | Q40: 147 | R40: 13.7 | S40: 65.9 | U40: 139.3 | V40: 8.5 | W40: 147 | X40: 13.7 | Y40: 3198 | Z40: 310.9
A41: WT | B41: IPE 400 A _half | O41: 397 | P41: 7 | Q41: 180 | R41: 12 | S41: 73.1 | U41: 186.5 | V41: 7 | W41: 180 | X41: 12 | Y41: 3466 | Z41: 505.5
A42: WT | B42: IPE 330 O_half | O42: 334 | P42: 8.5 | Q42: 162 | R42: 13.5 | S42: 72.6 | U42: 153.5 | V42: 8.5 | W42: 162 | X42: 13.5 | Y42: 3492 | Z42: 342.6
A43: WT | B43: IPE 360 _half | O43: 360 | P43: 8 | Q43: 170 | R43: 12.7 | S43: 72.7 | U43: 167.3 | V43: 8 | W43: 170 | X43: 12.7 | Y43: 3497 | Z43: 396.8
A44: WT | B44: IPE 330 R _half | O44: 336 | P44: 9.2 | Q44: 158 | R44: 14.5 | S44: 76.8 | U44: 153.5 | V44: 9.2 | W44: 158 | X44: 14.5 | Y44: 3703 | Z44: 316.6
A45: WT | B45: IPE 400 _half | O45: 400 | P45: 8.6 | Q45: 180 | R45: 13.5 | S45: 84.5 | U45: 186.5 | V45: 8.6 | W45: 180 | X45: 13.5 | Y45: 4034 | Z45: 411.5
A46: WT | B46: IPE 360 O _half | O46: 364 | P46: 9.2 | Q46: 172 | R46: 14.7 | S46: 84.1 | U46: 167.3 | V46: 9.2 | W46: 172 | X46: 14.7 | Y46: 4068 | Z46: 345.0
A47: WT | B47: IPE 450 A _half | O47: 447 | P47: 7.6 | Q47: 190 | R47: 13.1 | S47: 85.5 | U47: 210.4 | V47: 7.6 | W47: 190 | X47: 13.1 | Y47: 4088 | Z47: 525.3
A48: WT | B48: IPE 360 R _half | O48: 366 | P48: 9.9 | Q48: 168 | R48: 16 | S48: 89.6 | U48: 167 | V48: 9.9 | W48: 168 | X48: 16 | Y48: 4341 | Z48: 320.1
A49: WT | B49: IPE 400 O _half | O49: 404 | P49: 9.7 | Q49: 182 | R49: 15.5 | S49: 96.4 | U49: 186.5 | V49: 9.7 | W49: 182 | X49: 15.5 | Y49: 4630 | Z49: 364.8
A50: WT | B50: IPE 450 _half | O50: 450 | P50: 9.4 | Q50: 190 | R50: 14.6 | S50: 98.8 | U50: 210.4 | V50: 9.4 | W50: 190 | X50: 14.6 | Y50: 4752 | Z50: 424.7
A51: WT | B51: IPE 500 A _half | O51: 497 | P51: 8.4 | Q51: 200 | R51: 14.5 | S51: 101 | U51: 234 | V51: 8.4 | W51: 200 | X51: 14.5 | Y51: 4866 | Z51: 528.6
A52: WT | B52: IPE 400 R _half | O52: 407 | P52: 10.6 | Q52: 178 | R52: 17 | S52: 104 | U52: 186.5 | V52: 10.6 | W52: 178 | X52: 17 | Y52: 5003 | Z52: 333.8
A53: WT | B53: IPE 400 V _half | O53: 408 | P53: 10.6 | Q53: 182 | R53: 17.5 | S53: 107 | U53: 186.5 | V53: 10.6 | W53: 182 | X53: 17.5 | Y53: 5162 | Z53: 333.8
A54: WT | B54: IPE 500 _half | O54: 500 | P54: 10.2 | Q54: 200 | R54: 16 | S54: 116 | U54: 234 | V54: 10.2 | W54: 200 | X54: 16 | Y54: 5587 | Z54: 435.3
A55: WT | B55: IPE 550 A _half | O55: 547 | P55: 9 | Q55: 210 | R55: 15.7 | S55: 117 | U55: 257.8 | V55: 9 | W55: 210 | X55: 15.7 | Y55: 5617 | Z55: 543.5
A56: WT | B56: IPE 450 O _half | O56: 456 | P56: 11 | Q56: 192 | R56: 17.6 | S56: 118 | U56: 210.4 | V56: 11 | W56: 192 | X56: 17.6 | Y56: 5694 | Z56: 362.9
A57: WT | B57: IPE 450 R _half | O57: 458 | P57: 11.3 | Q57: 188 | R57: 18.6 | S57: 121 | U57: 210.4 | V57: 11.3 | W57: 188 | X57: 18.6 | Y57: 5874 | Z57: 353.3
A58: WT | B58: IPE 450 V _half | O58: 460 | P58: 12.4 | Q58: 194 | R58: 19.6 | S58: 132 | U58: 210.4 | V58: 12.4 | W58: 194 | X58: 19.6 | Y58: 6411 | Z58: 321.9
A59: WT | B59: IPE 550 _half | O59: 550 | P59: 11.1 | Q59: 210 | R59: 17.2 | S59: 134 | U59: 257.8 | V59: 11.1 | W59: 210 | X59: 17.2 | Y59: 6474 | Z59: 440.7
A60: WT | B60: IPE 600 A _half | O60: 597 | P60: 9.8 | Q60: 220 | R60: 17.5 | S60: 137 | U60: 281 | V60: 9.8 | W60: 220 | X60: 17.5 | Y60: 6604 | Z60: 544.0
A61: WT | B61: IPE 500 O _half | O61: 506 | P61: 12 | Q61: 202 | R61: 19 | S61: 137 | U61: 234 | V61: 12 | W61: 202 | X61: 19 | Y61: 6646 | Z61: 370.0
A62: WT | B62: IPE 500 R _half | O62: 508 | P62: 12.6 | Q62: 198 | R62: 20 | S62: 142 | U62: 234 | V62: 12.6 | W62: 198 | X62: 20 | Y62: 6908 | Z62: 352.4
A63: WT | B63: IPE 600 _half | O63: 600 | P63: 12 | Q63: 220 | R63: 19 | S63: 156 | U63: 281 | V63: 12 | W63: 220 | X63: 19 | Y63: 7552 | Z63: 444.3
A64: WT | B64: IPE 550 O _half | O64: 556 | P64: 12.7 | Q64: 212 | R64: 20.2 | S64: 156 | U64: 257.8 | V64: 12.7 | W64: 212 | X64: 20.2 | Y64: 7556 | Z64: 385.2
A65: WT | B65: IPE 500 V _half | O65: 514 | P65: 14.2 | Q65: 204 | R65: 23 | S65: 164 | U65: 234 | V65: 14.2 | W65: 204 | X65: 23 | Y65: 8015 | Z65: 312.7
A66: WT | B66: IPE 550 R _half | O66: 560 | P66: 14 | Q66: 210 | R66: 22.2 | S66: 170 | U66: 257.8 | V66: 14 | W66: 210 | X66: 22.2 | Y66: 8271 | Z66: 349.4
A67: WT | B67: IPE 750 x 137_half | O67: 753 | P67: 11.5 | Q67: 263 | R67: 17 | S67: 175 | U67: 359.5 | V67: 11.5 | W67: 263 | X67: 17 | Y67: 8605 | Z67: 593.1
A68: WT | B68: IPE 600 R _half | O68: 608 | P68: 14 | Q68: 218 | R68: 23 | S68: 184 | U68: 281 | V68: 14 | W68: 218 | X68: 23 | Y68: 8948 | Z68: 380.8
A69: WT | B69: IPE 750 x 147_half | O69: 753 | P69: 13.2 | Q69: 265 | R69: 17 | S69: 187 | U69: 359.5 | V69: 13.2 | W69: 265 | X69: 17 | Y69: 9250 | Z69: =U69*SQRT(360)/V69 -> 516.7
A70: WT | B70: IPE 600 O _half | O70: 610 | P70: 15 | Q70: 224 | R70: 24 | S70: 197 | U70: 281 | V70: 15 | W70: 224 | X70: 24 | Y70: 9591 | Z70: 355.4
A71: WT | B71: IPE 550 V _half | O71: 566 | P71: 17.1 | Q71: 216 | R71: 25.2 | S71: 202 | U71: 257.8 | V71: 17.1 | W71: 216 | X71: 25.2 | Y71: 9852 | Z71: 286.0
A72: WT | B72: IPE 750 x 161_half | O72: 758 | P72: 13.8 | Q72: 266 | R72: 19.3 | S72: 204 | U72: 359.7 | V72: 13.8 | W72: 266 | X72: 19.3 | Y72: 10098 | Z72: 494.6
A73: WT | B73: IPE 750 x 173_half | O73: 762 | P73: 14.4 | Q73: 267 | R73: 21.6 | S73: 221 | U73: 359.4 | V73: 14.4 | W73: 267 | X73: 21.6 | Y73: 10943 | Z73: 473.6
A74: WT | B74: IPE 600 V _half | O74: 618 | P74: 18 | Q74: 228 | R74: 28 | S74: 234 | U74: 281 | V74: 18 | W74: 228 | X74: 28 | Y74: 11442 | Z74: 296.2
A75: WT | B75: IPE 750 x 185_half | O75: 766 | P75: 14.9 | Q75: 267 | R75: 23.6 | S75: 236 | U75: 359.4 | V75: 14.9 | W75: 267 | X75: 23.6 | Y75: 11656 | Z75: 457.7
A76: WT | B76: IPE 750 x 196_half | O76: 770 | P76: 15.6 | Q76: 268 | R76: 25.4 | S76: 251 | U76: 359.6 | V76: 15.6 | W76: 268 | X76: 25.4 | Y76: 12417 | Z76: 437.4
A77: WT | B77: IPE 750 x 210_half | O77: 775 | P77: 16 | Q77: 268 | R77: 28 | S77: 268 | U77: 359.5 | V77: 16 | W77: 268 | X77: 28 | Y77: 13256 | Z77: 426.3
A78: WT | B78: IPE 750 x 222_half | O78: 778 | P78: 17 | Q78: 269 | R78: 29.5 | S78: 283 | U78: 359.5 | V78: 17 | W78: 269 | X78: 29.5 | Y78: 14047 | Z78: 401.2
A79: WT | B79: outside range | U79: 10000 | V79: 100 | W79: 100 | X79: 100

Sheet cropped_I
C2: h | D2: tw | E2: b | F2: t f | G2: r | H2: A | I2: hw | J2: tw | K2: wf | L2: tf | M2: A
C3: mm | D3: mm | E3: mm | F3: mm | G3: mm | H3: cm2 | I3: mm | J3: mm | K3: mm | L3: mm | M3: mm2
A4: cropped_I | B4: IPE 100 A_cropped | C4: 98 | D4: 3.6 | E4: 55 | F4: 4.7 | G4: 7 | H4: 8.78 | I4: 81.6 | J4: 3.6 | K4: 55 | L4: 4.7 | M4: 552 | N4: =I4*SQRT(360)/J4 -> 430.1
A5: cropped_I | B5: IPE 100_cropped | C5: 100 | D5: 4.1 | E5: 55 | F5: 5.7 | G5: 7 | H5: 10.3 | I5: 81.6 | J5: 4.1 | K5: 55 | L5: 5.7 | M5: 648 | N5: 377.6
A6: cropped_I | B6: IPE 120 A_cropped | C6: 118 | D6: 3.8 | E6: 64 | F6: 5.1 | G6: 7 | H6: 11 | I6: 100.8 | J6: 3.8 | K6: 64 | L6: 5.1 | M6: 709 | N6: 503.3
A7: cropped_I | B7: IPE 120_cropped | C7: 120 | D7: 4.4 | E7: 64 | F7: 6.3 | G7: 7 | H7: 13.2 | I7: 100.4 | J7: 4.4 | K7: 64 | L7: 6.3 | M7: 845 | N7: 432.9
A8: cropped_I | B8: IPE 140 A_cropped | C8: 138 | D8: 3.8 | E8: 73 | F8: 5.6 | G8: 7 | H8: 13.4 | I8: 119.8 | J8: 3.8 | K8: 73 | L8: 5.6 | M8: 864 | N8: 598.2
A9: cropped_I | B9: IPE 160 A_cropped | C9: 157 | D9: 4 | E9: 82 | F9: 5.9 | G9: 7 | H9: 16.2 | I9: 138.2 | J9: 4 | K9: 82 | L9: 5.9 | M9: 1037 | N9: 655.5
A10: cropped_I | B10: IPE 140_cropped | C10: 140 | D10: 4.7 | E10: 73 | F10: 6.9 | G10: 7 | H10: 16.4 | I10: 119.2 | J10: 4.7 | K10: 73 | L10: 6.9 | M10: 1064 | N10: 481.2
A11: cropped_I | B11: IPE 140 R_cropped | C11: 142 | D11: 5.3 | E11: 72 | F11: 7.8 | G11: 9 | H11: 18.4 | I11: 117.4 | J11: 5.3 | K11: 72 | L11: 7.8 | M11: 1184 | N11: 420.3
A12: cropped_I | B12: IPE 180 A_cropped | C12: 177 | D12: 4.3 | E12: 91 | F12: 6.5 | G12: 9 | H12: 19.6 | I12: 155 | J12: 4.3 | K12: 91 | L12: 6.5 | M12: 1258 | N12: 683.9
A13: cropped_I | B13: IPE 160_cropped | C13: 160 | D13: 5 | E13: 82 | F13: 7.4 | G13: 9 | H13: 20.1 | I13: 136.2 | J13: 5 | K13: 82 | L13: 7.4 | M13: 1288 | N13: 516.8
A14: cropped_I | B14: IPE 160 R_cropped | C14: 162 | D14: 5.6 | E14: 81 | F14: 8.5 | G14: 9 | H14: 22.6 | I14: 136 | J14: 5.6 | K14: 81 | L14: 8.5 | M14: 1450 | N14: 460.8
A15: cropped_I | B15: IPE 200 A_cropped | C15: 197 | D15: 4.5 | E15: 100 | F15: 7 | G15: 9 | H15: 23.5 | I15: 174 | J15: 4.5 | K15: 100 | L15: 7 | M15: 1483 | N15: 733.6
A16: cropped_I | B16: IPE 180_cropped | C16: 180 | D16: 5.3 | E16: 91 | F16: 8 | G16: 9 | H16: 23.9 | I16: 155 | J16: 5.3 | K16: 91 | L16: 8 | M16: 1550 | N16: 554.9
A17: cropped_I | B17: IPE 180 O_cropped | C17: 182 | D17: 6 | E17: 92 | F17: 9 | G17: 9 | H17: 27.1 | I17: 155 | J17: 6 | K17: 92 | L17: 9 | M17: 1758 | N17: 490.2
A18: cropped_I | B18: IPE 220 A_cropped | C18: 217 | D18: 5 | E18: 110 | F18: 7.7 | G18: 12 | H18: 28.3 | I18: 189.6 | J18: 5 | K18: 110 | L18: 7.7 | M18: 1795 | N18: 719.5
A19: cropped_I | B19: IPE 200_cropped | C19: 200 | D19: 5.6 | E19: 100 | F19: 8.5 | G19: 12 | H19: 28.5 | I19: 171 | J19: 5.6 | K19: 100 | L19: 8.5 | M19: 1808 | N19: 579.4
A20: cropped_I | B20: IPE 180 R_cropped | C20: 183 | D20: 6.4 | E20: 89 | F20: 9.5 | G20: 12 | H20: 28.1 | I20: 152 | J20: 6.4 | K20: 89 | L20: 9.5 | M20: 1818 | N20: 450.6
A21: cropped_I | B21: IPE 200 O_cropped | C21: 202 | D21: 6.2 | E21: 102 | F21: 9.5 | G21: 12 | H21: 32 | I21: 171 | J21: 6.2 | K21: 102 | L21: 9.5 | M21: 2029 | N21: 523.3
A22: cropped_I | B22: IPE 240 A_cropped | C22: 237 | D22: 5.2 | E22: 120 | F22: 8.3 | G22: 12 | H22: 33.3 | I22: 208.4 | J22: 5.2 | K22: 120 | L22: 8.3 | M22: 2080 | N22: 760.4
A23: cropped_I | B23: IPE 220_cropped | C23: 220 | D23: 5.9 | E23: 110 | F23: 9.2 | G23: 12 | H23: 33.4 | I23: 189.6 | J23: 5.9 | K23: 110 | L23: 9.2 | M23: 2131 | N23: 609.7
A24: cropped_I | B24: IPE 200 R_cropped | C24: 204 | D24: 6.6 | E24: 98 | F24: 10.5 | G24: 12 | H24: 33.9 | I24: 171 | J24: 6.6 | K24: 98 | L24: 10.5 | M24: 2158 | N24: 491.6
A25: cropped_I | B25: IPE 220 O_cropped | C25: 222 | D25: 6.6 | E25: 112 | F25: 10.2 | G25: 12 | H25: 37.4 | I25: 189.6 | J25: 6.6 | K25: 112 | L25: 10.2 | M25: 2394 | N25: 545.1
A26: cropped_I | B26: IPE 240_cropped | C26: 240 | D26: 6.2 | E26: 120 | F26: 9.8 | G26: 15 | H26: 39.1 | I26: 205.4 | J26: 6.2 | K26: 120 | L26: 9.8 | M26: 2449 | N26: 628.6
A27: cropped_I | B27: IPE 220 R_cropped | C27: 225 | D27: 6.7 | E27: 108 | F27: 11.8 | G27: 15 | H27: 40.2 | I27: 186.4 | J27: 6.7 | K27: 108 | L27: 11.8 | M27: 2523 | N27: 527.9
A28: cropped_I | B28: IPE 240 O_cropped | C28: 242 | D28: 7 | E28: 122 | F28: 10.8 | G28: 15 | H28: 43.7 | I28: 205.4 | J28: 7 | K28: 122 | L28: 10.8 | M28: 2755 | N28: 556.7
A29: cropped_I | B29: IPE 270_cropped | C29: 270 | D29: 6.6 | E29: 135 | F29: 10.2 | G29: 15 | H29: 45.9 | I29: 234.6 | J29: 6.6 | K29: 135 | L29: 10.2 | M29: 2925 | N29: 674.4
A30: cropped_I | B30: IPE 240 R_cropped | C30: 245 | D30: 7.5 | E30: 118 | F30: 12.3 | G30: 15 | H30: 47.5 | I30: 205.4 | J30: 7.5 | K30: 118 | L30: 12.3 | M30: 2992 | N30: 519.6
A31: cropped_I | B31: IPE 270 O_cropped | C31: 274 | D31: 7.5 | E31: 136 | F31: 12.2 | G31: 15 | H31: 53.8 | I31: 234.6 | J31: 7.5 | K31: 136 | L31: 12.2 | M31: 3419 | N31: 593.5
A32: cropped_I | B32: IPE 300_cropped | C32: 300 | D32: 7.1 | E32: 150 | F32: 10.7 | G32: 15 | H32: 53.8 | I32: 263.6 | J32: 7.1 | K32: 150 | L32: 10.7 | M32: 3477 | N32: 704.4
A33: cropped_I | B33: IPE 270 R_cropped | C33: 276 | D33: 7.7 | E33: 133 | F33: 13.1 | G33: 15 | H33: 56 | I33: 234.8 | J33: 7.7 | K33: 133 | L33: 13.1 | M33: 3550 | N33: 578.6
A34: cropped_I | B34: IPE 300 O_cropped | C34: 304 | D34: 8 | E34: 152 | F34: 12.7 | G34: 18 | H34: 62.8 | I34: 260.6 | J34: 8 | K34: 152 | L34: 12.7 | M34: 4015 | N34: 618.1
A35: cropped_I | B35: IPE 330 _cropped | C35: 330 | D35: 7.5 | E35: 160 | F35: 11.5 | G35: 15 | H35: 62.6 | I35: 292 | J35: 7.5 | K35: 160 | L35: 11.5 | M35: 4030 | N35: 738.7
A36: cropped_I | B36: IPE 300 R_cropped | C36: 306 | D36: 8.5 | E36: 147 | F36: 13.7 | G36: 18 | H36: 65.9 | I36: 260.6 | J36: 8.5 | K36: 147 | L36: 13.7 | M36: 4229 | N36: =I36*SQRT(360)/J36 -> 581.7
A37: cropped_I | B37: IPE 330 O_cropped | C37: 334 | D37: 8.5 | E37: 162 | F37: 13.5 | G37: 18 | H37: 72.6 | I37: 289 | J37: 8.5 | K37: 162 | L37: 13.5 | M37: 4644 | N37: 645.1
A38: cropped_I | B38: IPE 360 _cropped | C38: 360 | D38: 8 | E38: 170 | F38: 12.7 | G38: 18 | H38: 72.7 | I38: 316.6 | J38: 8 | K38: 170 | L38: 12.7 | M38: 4692 | N38: 750.9
A39: cropped_I | B39: IPE 330 R _cropped | C39: 336 | D39: 9.2 | E39: 158 | F39: 14.5 | G39: 18 | H39: 76.8 | I39: 289 | J39: 9.2 | K39: 158 | L39: 14.5 | M39: 4950 | N39: 596.0
A40: cropped_I | B40: IPE 360 O _cropped | C40: 364 | D40: 9.2 | E40: 172 | F40: 14.7 | G40: 21 | H40: 84.1 | I40: 313.6 | J40: 9.2 | K40: 172 | L40: 14.7 | M40: 5414 | N40: 646.8
A41: cropped_I | B41: IPE 400 _cropped | C41: 400 | D41: 8.6 | E41: 180 | F41: 13.5 | G41: 18 | H41: 84.5 | I41: 355 | J41: 8.6 | K41: 180 | L41: 13.5 | M41: 5483 | N41: 783.2
A42: cropped_I | B42: IPE 360 R _cropped | C42: 366 | D42: 9.9 | E42: 168 | F42: 16 | G42: 21 | H42: 89.6 | I42: 313 | J42: 9.9 | K42: 168 | L42: 16 | M42: 5787 | N42: 599.9
A43: cropped_I | B43: IPE 400 O _cropped | C43: 404 | D43: 9.7 | E43: 182 | F43: 15.5 | G43: 21 | H43: 96.4 | I43: 352 | J43: 9.7 | K43: 182 | L43: 15.5 | M43: 6235 | N43: 688.5
A44: cropped_I | B44: IPE 400 R _cropped | C44: 407 | D44: 10.6 | E44: 178 | F44: 17 | G44: 21 | H44: 104 | I44: 352 | J44: 10.6 | K44: 178 | L44: 17 | M44: 6757 | N44: 630.1
A45: cropped_I | B45: IPE 400 V _cropped | C45: 408 | D45: 10.6 | E45: 182 | F45: 17.5 | G45: 21 | H45: 107 | I45: 352 | J45: 10.6 | K45: 182 | L45: 17.5 | M45: 6916 | N45: 630.1
A46: cropped_I | B46: IPE 450 O _cropped | C46: 456 | D46: 11 | E46: 192 | F46: 17.6 | G46: 21 | H46: 118 | I46: 399.8 | J46: 11 | K46: 192 | L46: 17.6 | M46: 7777 | N46: 689.6
A47: cropped_I | B47: IPE 450 R _cropped | C47: 458 | D47: 11.3 | E47: 188 | F47: 18.6 | G47: 21 | H47: 121 | I47: 399.8 | J47: 11.3 | K47: 188 | L47: 18.6 | M47: 8015 | N47: 671.3
A48: cropped_I | B48: IPE 450 V _cropped | C48: 460 | D48: 12.4 | E48: 194 | F48: 19.6 | G48: 21 | H48: 132 | I48: 399.8 | J48: 12.4 | K48: 194 | L48: 19.6 | M48: 8760 | N48: 611.7
A49: cropped_I | B49: IPE 500 O _cropped | C49: 506 | D49: 12 | E49: 202 | F49: 19 | G49: 24 | H49: 137 | I49: 444 | J49: 12 | K49: 202 | L49: 19 | M49: 9166 | N49: 702.0
A50: cropped_I | B50: IPE 500 R _cropped | C50: 508 | D50: 12.6 | E50: 198 | F50: 20 | G50: 24 | H50: 142 | I50: 444 | J50: 12.6 | K50: 198 | L50: 20 | M50: 9554 | N50: 668.6
A51: cropped_I | B51: IPE 550 O _cropped | C51: 556 | D51: 12.7 | E51: 212 | F51: 20.2 | G51: 24 | H51: 156 | I51: 491.6 | J51: 12.7 | K51: 212 | L51: 20.2 | M51: 10526 | N51: 734.4
A52: cropped_I | B52: IPE 500 V _cropped | C52: 514 | D52: 14.2 | E52: 204 | F52: 23 | G52: 24 | H52: 164 | I52: 444 | J52: 14.2 | K52: 204 | L52: 23 | M52: 10997 | N52: 593.3
A53: cropped_I | B53: IPE 550 R _cropped | C53: 560 | D53: 14 | E53: 210 | F53: 22.2 | G53: 24 | H53: 170 | I53: 491.6 | J53: 14 | K53: 210 | L53: 22.2 | M53: 11544 | N53: 666.2
A54: cropped_I | B54: IPE 600 R _cropped | C54: 608 | D54: 14 | E54: 218 | F54: 23 | G54: 24 | H54: 184 | I54: 538 | J54: 14 | K54: 218 | L54: 23 | M54: 12546 | N54: 729.1
A55: cropped_I | B55: IPE 600 O _cropped | C55: 610 | D55: 15 | E55: 224 | F55: 24 | G55: 24 | H55: 197 | I55: 538 | J55: 15 | K55: 224 | L55: 24 | M55: 13446 | N55: 680.5
A56: cropped_I | B56: IPE 550 V _cropped | C56: 566 | D56: 17.1 | E56: 216 | F56: 25.2 | G56: 17 | H56: 202 | I56: 498.6 | J56: 17.1 | K56: 216 | L56: 25.2 | M56: 13969 | N56: 553.2
A57: cropped_I | B57: IPE 600 V _cropped | C57: 618 | D57: 18 | E57: 228 | F57: 28 | G57: 17 | H57: 234 | I57: 545 | J57: 18 | K57: 228 | L57: 28 | M57: 16194 | N57: 574.5
A58: cropped_I | B58: IPE 750 x 222_cropped | C58: 778 | D58: 17 | E58: 269 | F58: 29.5 | G58: 17 | H58: 283 | I58: 702 | J58: 17 | K58: 269 | L58: 29.5 | M58: 19870 | N58: 783.5
B59: outside range | I59: 10000 | J59: 100 | K59: 100 | L59: 100

Sheet flatbars
C2: h | D2: tw | F2: A | I2: hw | J2: tw
I3: mm | J3: mm
A4: flat | B4: =CONCATENATE("F ",C4," x ",D4) -> F 60 x 6 | C4: 60 | D4: 6 | E4: 228 | F4: =C4*D4 -> 360 | H4: =C4*SQRT(360)/(D4-1) -> 227.6839915 | I4: =C4 -> 60 | J4: =D4 -> 6 | K4: 0 | L4: 0 | M4: 360
A5: flat | B5: =CONCATENATE("F ",C5," x ",D5) -> F 60 x 7 | C5: 60 | D5: 7 | E5: 190 | F5: 420 | H5: 189.7366596 | I5: 60 | J5: 7 | K5: 0 | L5: 0 | M5: 420
A6: flat | B6: F 60 x 8 | C6: 60 | D6: 8 | E6: 163 | F6: 480 | H6: 162.6314225 | I6: 60 | J6: 8 | K6: 0 | L6: 0 | M6: 480
A7: flat | B7: F 80 x 7 | C7: 80 | D7: 7 | E7: 244 | F7: 560 | H7: 252.9822128 | I7: 80 | J7: 7 | K7: 0 | L7: 0 | M7: 560
A8: flat | B8: F 80 x 8 | C8: 80 | D8: 8 | E8: 217 | F8: 640 | H8: 216.8418967 | I8: 80 | J8: 8 | K8: 0 | L8: 0 | M8: 640
A9: flat | B9: F 80 x 9 | C9: 80 | D9: 9 | E9: 190 | F9: 720 | H9: 189.7366596 | I9: 80 | J9: 9 | K9: 0 | L9: 0 | M9: 720
A10: flat | B10: F 100 x 8 | C10: 100 | D10: 8 | E10: 271 | F10: 800 | H10: 271.0523709 | I10: 100 | J10: 8 | K10: 0 | L10: 0 | M10: 800
A11: flat | B11: F 80 x 10 | C11: 80 | D11: 10 | E11: 169 | F11: 800 | H11: 168.6548085 | I11: 80 | J11: 10 | K11: 0 | L11: 0 | M11: 800
A12: flat | B12: F 100 x 9 | C12: 100 | D12: 9 | E12: 237 | F12: 900 | H12: 237.1708245 | I12: 100 | J12: 9 | K12: 0 | L12: 0 | M12: 900
A13: flat | B13: F 100 x 10 | C13: 100 | D13: 10 | E13: 211 | F13: 1000 | H13: 210.8185107 | I13: 100 | J13: 10 | K13: 0 | L13: 0 | M13: 1000
A14: flat | B14: F 120 x 10 | C14: 120 | D14: 10 | E14: 253 | F14: 1200 | H14: 252.9822128 | I14: 120 | J14: 10 | K14: 0 | L14: 0 | M14: 1200
A15: flat | B15: F 120 x 11 | C15: 120 | D15: 11 | E15: 228 | F15: 1320 | H15: 227.6839915 | I15: 120 | J15: 11 | K15: 0 | L15: 0 | M15: 1320
A16: flat | B16: F 120 x 12 | C16: 120 | D16: 12 | E16: 207 | F16: 1440 | H16: 206.9854468 | I16: 120 | J16: 12 | K16: 0 | L16: 0 | M16: 1440
A17: flat | B17: F 140 x 11 | C17: 140 | D17: 11 | E17: 266 | F17: 1540 | H17: 265.6313235 | I17: 140 | J17: 11 | K17: 0 | L17: 0 | M17: 1540
A18: flat | B18: F 140 x 12 | C18: 140 | D18: 12 | E18: 241 | F18: 1680 | H18: 241.4830213 | I18: 140 | J18: 12 | K18: 0 | L18: 0 | M18: 1680
A19: flat | B19: F 140 x 13 | C19: 140 | D19: 13 | E19: 221 | F19: 1820 | H19: 221.3594362 | I19: 140 | J19: 13 | K19: 0 | L19: 0 | M19: 1820
A20: flat | B20: F 160 x 12 | C20: 160 | D20: 12 | E20: 276 | F20: 1920 | H20: 275.9805958 | I20: 160 | J20: 12 | K20: 0 | L20: 0 | M20: 1920
A21: flat | B21: F 140 x 14 | C21: 140 | D21: 14 | E21: 204 | F21: 1960 | H21: 204.3317873 | I21: 140 | J21: 14 | K21: 0 | L21: 0 | M21: 1960
A22: flat | B22: F 160 x 13 | C22: 160 | D22: 13 | E22: 253 | F22: 2080 | H22: 252.9822128 | I22: 160 | J22: 13 | K22: 0 | L22: 0 | M22: 2080
A23: flat | B23: F 160 x 14 | C23: 160 | D23: 14 | E23: 234 | F23: 2240 | H23: 233.5220426 | I23: 160 | J23: 14 | K23: 0 | L23: 0 | M23: 2240
A24: flat | B24: F 180 x 14 | C24: 180 | D24: 14 | E24: 263 | F24: 2520 | H24: 262.7122979 | I24: 180 | J24: 14 | K24: 0 | L24: 0 | M24: 2520
A25: flat | B25: F 180 x 15 | C25: 180 | D25: 15 | E25: 244 | F25: 2700 | H25: 243.9471338 | I25: 180 | J25: 15 | K25: 0 | L25: 0 | M25: 2700
A26: flat | B26: F 180 x 16 | C26: 180 | D26: 16 | E26: 228 | F26: 2880 | H26: 227.6839915 | I26: 180 | J26: 16 | K26: 0 | L26: 0 | M26: 2880
A27: flat | B27: F 200 x 15 | C27: 200 | D27: 15 | E27: 271 | F27: 3000 | H27: 271.0523709 | I27: 200 | J27: 15 | K27: 0 | L27: 0 | M27: 3000
A28: flat | B28: F 200 x 16 | C28: 200 | D28: 16 | E28: 253 | F28: 3200 | H28: 252.9822128 | I28: 200 | J28: 16 | K28: 0 | L28: 0 | M28: 3200
A29: flat | B29: F 200 x 17 | C29: 200 | D29: 17 | E29: 237 | F29: 3400 | H29: 237.1708245 | I29: 200 | J29: 17 | K29: 0 | L29: 0 | M29: 3400
A30: flat | B30: F 220 x 16 | C30: 220 | D30: 16 | E30: 278 | F30: 3520 | H30: 278.2804341 | I30: 220 | J30: 16 | K30: 0 | L30: 0 | M30: 3520
A31: flat | B31: F 200 x 18 | C31: 200 | D31: 18 | E31: 223 | F31: 3600 | H31: 223.2195995 | I31: 200 | J31: 18 | K31: 0 | L31: 0 | M31: 3600
A32: flat | B32: F 220 x 17 | C32: 220 | D32: 17 | E32: 261 | F32: 3740 | H32: 260.887907 | I32: 220 | J32: 17 | K32: 0 | L32: 0 | M32: 3740
A33: flat | B33: F 200 x 19 | C33: 200 | D33: 19 | E33: 211 | F33: 3800 | H33: 210.8185107 | I33: 200 | J33: 19 | K33: 0 | L33: 0 | M33: 3800
A34: flat | B34: F 220 x 18 | C34: 220 | D34: 18 | E34: 246 | F34: 3960 | H34: 245.5415595 | I34: 220 | J34: 18 | K34: 0 | L34: 0 | M34: 3960
A35: flat | B35: F 220 x 19 | C35: 220 | D35: 19 | E35: 232 | F35: 4180 | H35: 231.9003617 | I35: 220 | J35: 19 | K35: 0 | L35: 0 | M35: 4180
A36: flat | B36: F 240 x 18 | C36: 240 | D36: 18 | E36: 268 | F36: =C36*D36 -> 4320 | H36: =C36*SQRT(360)/(D36-1) -> 267.8635194 | I36: =C36 -> 240 | J36: =D36 -> 18 | K36: 0 | L36: 0 | M36: 4320
A37: flat | B37: F 240 x 19 | C37: 240 | D37: 19 | E37: 253 | F37: 4560 | H37: 252.9822128 | I37: 240 | J37: 19 | K37: 0 | L37: 0 | M37: 4560
A38: flat | B38: F 260 x 19 | C38: 260 | D38: 19 | E38: 274 | F38: 4940 | H38: 274.0640639 | I38: 260 | J38: 19 | K38: 0 | L38: 0 | M38: 4940
A39: flat | B39: F 260 x 20 | C39: 260 | D39: 20 | E39: 260 | F39: 5200 | H39: 259.6396395 | I39: 260 | J39: 20 | K39: 0 | L39: 0 | M39: 5200
A40: flat | B40: F 260 x 21 | C40: 260 | D40: 21 | E40: 247 | F40: 5460 | H40: 246.6576575 | I40: 260 | J40: 21 | K40: 0 | L40: 0 | M40: 5460
A41: flat | B41: F 280 x 20 | C41: 280 | D41: 20 | E41: 280 | F41: 5600 | H41: 279.6119194 | I41: 280 | J41: 20 | K41: 0 | L41: 0 | M41: 5600
A42: flat | B42: F 260 x 22 | C42: 260 | D42: 22 | E42: 235 | F42: 5720 | H42: 234.9120548 | I42: 260 | J42: 22 | K42: 0 | L42: 0 | M42: 5720
A43: flat | B43: F 280 x 21 | C43: 280 | D43: 21 | E43: 266 | F43: 5880 | H43: 265.6313235 | I43: 280 | J43: 21 | K43: 0 | L43: 0 | M43: 5880
A44: flat | B44: F 280 x 22 | C44: 280 | D44: 22 | E44: 253 | F44: 6160 | H44: 252.9822128 | I44: 280 | J44: 22 | K44: 0 | L44: 0 | M44: 6160
A45: flat | B45: F 280 x 23 | C45: 280 | D45: 23 | E45: 241 | F45: 6440 | H45: 241.4830213 | I45: 280 | J45: 23 | K45: 0 | L45: 0 | M45: 6440
A46: flat | B46: F 300 x 22 | C46: 300 | D46: 22 | E46: 271 | F46: 6600 | H46: 271.0523709 | I46: 300 | J46: 22 | K46: 0 | L46: 0 | M46: 6600
A47: flat | B47: F 300 x 23 | C47: 300 | D47: 23 | E47: 259 | F47: 6900 | H47: 258.7318086 | I47: 300 | J47: 23 | K47: 0 | L47: 0 | M47: 6900
A48: flat | B48: F 300 x 24 | C48: 300 | D48: 24 | E48: 247 | F48: 7200 | H48: 247.4825995 | I48: 300 | J48: 24 | K48: 0 | L48: 0 | M48: 7200
A49: flat | B49: F 320 x 23 | C49: 320 | D49: 23 | E49: 276 | F49: 7360 | H49: 275.9805958 | I49: 320 | J49: 23 | K49: 0 | L49: 0 | M49: 7360
A50: flat | B50: F 300 x 25 | C50: 300 | D50: 25 | E50: 237 | F50: 7500 | H50: 237.1708245 | I50: 300 | J50: 25 | K50: 0 | L50: 0 | M50: 7500
A51: flat | B51: F 320 x 24 | C51: 320 | D51: 24 | E51: 264 | F51: 7680 | H51: 263.9814395 | I51: 320 | J51: 24 | K51: 0 | L51: 0 | M51: 7680
A52: flat | B52: F 320 x 25 | C52: 320 | D52: 25 | E52: 253 | F52: 8000 | H52: 252.9822128 | I52: 320 | J52: 25 | K52: 0 | L52: 0 | M52: 8000
A53: flat | B53: F 340 x 24 | C53: 340 | D53: 24 | E53: 269 | F53: 8160 | H53: 280.4802794 | I53: 340 | J53: 24 | K53: 0 | L53: 0 | M53: 8160
A54: flat | B54: F 320 x 26 | C54: 320 | D54: 26 | E54: 243 | F54: 8320 | H54: 242.8629243 | I54: 320 | J54: 26 | K54: 0 | L54: 0 | M54: 8320
A55: flat | B55: F 340 x 25 | C55: 340 | D55: 25 | E55: 258 | F55: 8500 | H55: 268.7936011 | I55: 340 | J55: 25 | K55: 0 | L55: 0 | M55: 8500
A56: flat | B56: F 320 x 27 | C56: 320 | D56: 27 | E56: 234 | F56: 8640 | H56: 233.5220426 | I56: 320 | J56: 27 | K56: 0 | L56: 0 | M56: 8640
A57: flat | B57: F 340 x 26 | C57: 340 | D57: 26 | E57: 248 | F57: 8840 | H57: 258.0418571 | I57: 340 | J57: 26 | K57: 0 | L57: 0 | M57: 8840
A58: flat | B58: F 340 x 27 | C58: 340 | D58: 27 | E58: 239 | F58: 9180 | H58: 248.1171703 | I58: 340 | J58: 27 | K58: 0 | L58: 0 | M58: 9180
A59: flat | B59: F 360 x 26 | C59: 360 | D59: 26 | E59: 285 | F59: 9360 | H59: 273.2207898 | I59: 360 | J59: 26 | K59: 0 | L59: 0 | M59: 9360
A60: flat | B60: F 360 x 27 | C60: 360 | D60: 27 | E60: 273 | F60: 9720 | H60: 262.7122979 | I60: 360 | J60: 27 | K60: 0 | L60: 0 | M60: 9720
A61: flat | B61: F 360 x 28 | C61: 360 | D61: 28 | E61: 263 | F61: 10080 | H61: 252.9822128 | I61: 360 | J61: 28 | K61: 0 | L61: 0 | M61: 10080
A62: flat | B62: F 380 x 27 | C62: 380 | D62: 27 | E62: 277 | F62: 10260 | H62: 277.3074256 | I62: 380 | J62: 27 | K62: 0 | L62: 0 | M62: 10260
A63: flat | B63: F 360 x 29 | C63: 360 | D63: 29 | E63: 253 | F63: 10440 | H63: 243.9471338 | I63: 360 | J63: 29 | K63: 0 | L63: 0 | M63: 10440
A64: flat | B64: F 380 x 28 | C64: 380 | D64: 28 | E64: 267 | F64: 10640 | H64: 267.0367802 | I64: 380 | J64: 28 | K64: 0 | L64: 0 | M64: 10640
A65: flat | B65: F 360 x 30 | C65: 360 | D65: 30 | E65: 244 | F65: 10800 | H65: 235.5351637 | I65: 360 | J65: 30 | K65: 0 | L65: 0 | M65: 10800
A66: flat | B66: F 380 x 29 | C66: 380 | D66: 29 | E66: 257 | F66: 11020 | H66: 257.4997523 | I66: 380 | J66: 29 | K66: 0 | L66: 0 | M66: 11020
A67: flat | B67: F 360 x 31 | C67: 360 | D67: 31 | E67: 236 | F67: 11160 | H67: 227.6839915 | I67: 360 | J67: 31 | K67: 0 | L67: 0 | M67: 11160
A68: flat | B68: F 400 x 28 | C68: 400 | D68: 28 | E68: 281 | F68: =C68*D68 -> 11200 | H68: =C68*SQRT(360)/(D68-1) -> 281.0913476 | I68: =C68 -> 400 | J68: =D68 -> 28 | K68: 0 | L68: 0 | M68: 11200
A69: flat | B69: =CONCATENATE("F ",C69," x ",D69) -> F 380 x 30 | C69: 380 | D69: 30 | E69: 249 | F69: 11400 | H69: 248.6204505 | I69: 380 | J69: 30 | K69: 0 | L69: 0 | M69: 11400
A70: flat | B70: F 400 x 29 | C70: 400 | D70: 29 | E70: 271 | F70: 11600 | H70: 271.0523709 | I70: 400 | J70: 29 | K70: 0 | L70: 0 | M70: 11600
A71: flat | B71: F 380 x 31 | C71: 380 | D71: 31 | E71: 240 | F71: 11780 | H71: 240.3331022 | I71: 380 | J71: 31 | K71: 0 | L71: 0 | M71: 11780
A72: flat | B72: F 400 x 30 | C72: 400 | D72: 30 | E72: 262 | F72: 12000 | H72: 261.7057374 | I72: 400 | J72: 30 | K72: 0 | L72: 0 | M72: 12000
A73: flat | B73: F 400 x 31 | C73: 400 | D73: 31 | E73: 253 | F73: 12400 | H73: 252.9822128 | I73: 400 | J73: 31 | K73: 0 | L73: 0 | M73: 12400
A74: flat | B74: F 420 x 30 | C74: 420 | D74: 30 | E74: 285 | F74: 12600 | H74: 274.7910243 | I74: 420 | J74: 30 | K74: 0 | L74: 0 | M74: 12600
A75: flat | B75: F 400 x 32 | C75: 400 | D75: 32 | E75: 245 | F75: 12800 | H75: 244.8214963 | I75: 400 | J75: 32 | K75: 0 | L75: 0 | M75: 12800
A76: flat | B76: F 420 x 31 | C76: 420 | D76: 31 | E76: 275 | F76: 13020 | H76: 265.6313235 | I76: 420 | J76: 31 | K76: 0 | L76: 0 | M76: 13020
A77: flat | B77: F 400 x 33 | C77: 400 | D77: 33 | E77: 237 | F77: 13200 | H77: 237.1708245 | I77: 400 | J77: 33 | K77: 0 | L77: 0 | M77: 13200
A78: flat | B78: F 420 x 32 | C78: 420 | D78: 32 | E78: 266 | F78: 13440 | H78: 257.0625711 | I78: 420 | J78: 32 | K78: 0 | L78: 0 | M78: 13440
A79: flat | B79: F 440 x 31 | C79: 440 | D79: 31 | E79: 241 | F79: 13640 | H79: 278.2804341 | I79: 440 | J79: 31 | K79: 0 | L79: 0 | M79: 13640
A80: flat | B80: F 420 x 33 | C80: 420 | D80: 33 | E80: 257 | F80: 13860 | H80: 249.0293657 | I80: 420 | J80: 33 | K80: 0 | L80: 0 | M80: 13860
A81: flat | B81: F 420 x 34 | C81: 420 | D81: 34 | E81: 249 | F81: 14280 | H81: 241.4830213 | I81: 420 | J81: 34 | K81: 0 | L81: 0 | M81: 14280
A82: flat | B82: F 440 x 33 | C82: 440 | D82: 33 | E82: 234 | F82: 14520 | H82: 260.887907 | I82: 440 | J82: 33 | K82: 0 | L82: 0 | M82: 14520
A83: flat | B83: F 460 x 32 | C83: 460 | D83: 32 | E83: 221 | F83: 14720 | H83: 281.5447207 | I83: 460 | J83: 32 | K83: 0 | L83: 0 | M83: 14720
A84: flat | B84: F 440 x 35 | C84: 440 | D84: 35 | E84: 228 | F84: 15400 | H84: 245.5415595 | I84: 440 | J84: 35 | K84: 0 | L84: 0 | M84: 15400
A85: flat | B85: F 460 x 34 | C85: 460 | D85: 34 | E85: 215 | F85: 15640 | H85: 264.4814043 | I85: 460 | J85: 34 | K85: 0 | L85: 0 | M85: 15640
A86: flat | B86: F 480 x 34 | C86: 480 | D86: 34 | E86: 209 | F86: 16320 | H86: 275.9805958 | I86: 480 | J86: 34 | K86: 0 | L86: 0 | M86: 16320
A87: flat | B87: F 460 x 36 | C87: 460 | D87: 36 | E87: 209 | F87: 16560 | H87: 249.3681812 | I87: 460 | J87: 36 | K87: 0 | L87: 0 | M87: 16560
A88: flat | B88: F 480 x 36 | C88: 480 | D88: 36 | E88: 209 | F88: 17280 | H88: 260.210276 | I88: 480 | J88: 36 | K88: 0 | L88: 0 | M88: 17280
A89: flat | B89: F 500 x 35 | C89: 500 | D89: 35 | E89: 209 | F89: 17500 | H89: 279.0244994 | I89: 500 | J89: 35 | K89: 0 | L89: 0 | M89: 17500
A90: flat | B90: F 480 x 38 | C90: 480 | D90: 38 | E90: 209 | F90: 18240 | H90: 246.1448557 | I90: 480 | J90: 38 | K90: 0 | L90: 0 | M90: 18240
A91: flat | B91: F 500 x 37 | C91: 500 | D91: 37 | E91: 209 | F91: 18500 | H91: 263.5231383 | I91: 500 | J91: 37 | K91: 0 | L91: 0 | M91: 18500
A92: flat | B92: F 525 x 37 | C92: 525 | D92: 37 | E92: 209 | F92: 19425 | H92: 276.6992953 | I92: 525 | J92: 37 | K92: 0 | L92: 0 | M92: 19425
A93: flat | B93: F 500 x 39 | C93: 500 | D93: 39 | E93: 209 | F93: 19500 | H93: 249.6534995 | I93: 500 | J93: 39 | K93: 0 | L93: 0 | M93: 19500
A94: flat | B94: F 550 x 39 | C94: 550 | D94: 39 | E94: 209 | F94: 21450 | H94: 274.6188494 | I94: 550 | J94: 39 | K94: 0 | L94: 0 | M94: 21450
A95: flat | B95: F 575 x 40 | C95: 575 | D95: 40 | E95: 209 | F95: 23000 | H95: 279.7399469 | I95: 575 | J95: 40 | K95: 0 | L95: 0 | M95: 23000
A96: flat | B96: F 600 x 42 | C96: 600 | D96: 42 | E96: 209 | F96: 25200 | H96: 277.6634043 | I96: 600 | J96: 42 | K96: 0 | L96: 0 | M96: 25200
A97: flat | B97: F 625 x 44 | C97: 625 | D97: 44 | E97: 209 | F97: 27500 | H97: 275.7800285 | I97: 625 | J97: 44 | K97: 0 | L97: 0 | M97: 27500
A98: flat | B98: F 650 x 45 | C98: 650 | D98: 45 | E98: 209 | F98: 29250 | H98: 280.2927926 | I98: 650 | J98: 45 | K98: 0 | L98: 0 | M98: 29250
A99: flat | B99: F 675 x 47 | C99: 675 | D99: 47 | E99: 209 | F99: 31725 | H99: 278.4179244 | I99: 675 | J99: 47 | K99: 0 | L99: 0 | M99: 31725
A100: flat | B100: F 700 x 49 | C100: 700 | D100: 49 | E100: 209 | F100: 34300 | H100: 276.6992953 | I100: 700 | J100: 49 | K100: 0 | L100: 0 | M100: 34300
A101: flat | B101: F 725 x 50 | C101: 725 | D101: 50 | E101: 210 | F101: =C101*D101 -> 36250 | H101: =C101*SQRT(360)/(D101-1) -> 280.7328127 | I101: =C101 -> 725 | J101: 50 | K101: 0 | L101: 0 | M101: 34300
A102: flat | B102: F 750 x 52 | C102: 750 | D102: 52 | E102: 211 | F102: =C102*D102 -> 39000 | H102: =C102*SQRT(360)/(D102-1) -> 279.0244994 | I102: 750 | J102: 52 | K102: 0 | L102: 0 | M102: 34300
A103: flat | B103: F 775 x 55 | C103: 775 | D103: 55 | E103: 212 | F103: =C103*D103 -> 42625 | H103: =C103*SQRT(360)/(D103-1) -> 272.307243 | I103: 775 | J103: 55 | K103: 0 | L103: 0 | M103: 34300
A104: flat | B104: F 800 x 57 | C104: 800 | D104: 57 | E104: 213 | F104: =C104*D104 -> 45600 | H104: =C104*SQRT(360)/(D104-1) -> 271.0523709 | I104: 800 | J104: 57 | K104: 0 | L104: 0 | M104: 34300
B105: outside range | I105: 10000 | J105: 100 | K105: 100 | L105: 100

Sheet built_t
C2: h | D2: tw | E2: wf | F2: tf | G2: A | I2: hw | J2: tw
I3: mm | J3: mm | O3: mm3
A4: built_t | B4: =CONCATENATE("T ",C4," x ",D4, ", ",E4," x ",F4) -> T 80 x 5, 50 x 5 | C4: 80 | D4: 5 | E4: =C4/2+10 -> 50 | F4: =D4 -> 5 | G4: =C4*D4+E4*F4 -> 650 | H4: =C4*SQRT(360)/(D4-1) -> 379.5 | I4: =C4 -> 80 | J4: =D4 -> 5 | K4: =E4 -> 50 | L4: =F4 -> 5 | M4: =I4*J4+K4*L4 -> 650 | O4: =1/6*I4*(4*K4*L4+J4*I4+40*I4) -> 61,333
A5: built_t | B5: T 80 x 6, 50 x 6 | C5: 80 | D5: 6 | E5: 50 | F5: 6 | G5: 780 | H5: =C5*SQRT(360)/(D5-1) -> 303.6 | I5: 80 | J5: 6 | K5: 50 | L5: 6 | M5: 780 | N5: =G5/G4-1 -> 20% | O5: =1/6*I5*(4*K5*L5+J5*I5+40*I5) -> 65,067
A6: built_t | B6: T 80 x 7, 50 x 7 | C6: 80 | D6: 7 | E6: 50 | F6: 7 | G6: 910 | H6: 253.0 | I6: 80 | J6: 7 | K6: 50 | L6: 7 | M6: 910 | N6: =G6/G5-1 -> 17% | O6: 68,800
A7: built_t | B7: T 100 x 6, 60 x 6 | C7: 100 | D7: 6 | E7: 60 | F7: 6 | G7: 960 | H7: 379.5 | I7: 100 | J7: 6 | K7: 60 | L7: 6 | M7: 960 | N7: 5% | O7: 100,667
A8: built_t | B8: T 80 x 8, 50 x 8 | C8: 80 | D8: 8 | E8: 50 | F8: 8 | G8: 1040 | H8: 216.8 | I8: 80 | J8: 8 | K8: 50 | L8: 8 | M8: 1040 | N8: 8% | O8: 72,533
A9: built_t | B9: T 100 x 7, 60 x 7 | C9: 100 | D9: 7 | E9: 60 | F9: 7 | G9: 1120 | H9: 316.2 | I9: 100 | J9: 7 | K9: 60 | L9: 7 | M9: 1120 | N9: 8% | O9: 106,333
A10: built_t | B10: T 120 x 6, 70 x 6 | C10: 120 | D10: 6 | E10: 70 | F10: 6 | G10: 1140 | H10: 455.4 | I10: 120 | J10: 6 | K10: 70 | L10: 6 | M10: 1140 | N10: 2% | O10: 144,000
A11: built_t | B11: T 80 x 9, 50 x 9 | C11: 80 | D11: 9 | E11: 50 | F11: 9 | G11: 1170 | H11: 189.7 | I11: 80 | J11: 9 | K11: 50 | L11: 9 | M11: 1170 | N11: 3% | O11: 76,267
A12: built_t | B12: T 100 x 8, 60 x 8 | C12: 100 | D12: 8 | E12: 60 | F12: 8 | G12: 1280 | H12: 271.1 | I12: 100 | J12: 8 | K12: 60 | L12: 8 | M12: 1280 | N12: 9% | O12: 112,000
A13: built_t | B13: T 80 x 10, 50 x 10 | C13: 80 | D13: 10 | E13: 50 | F13: 10 | G13: 1300 | H13: 168.7 | I13: 80 | J13: 10 | K13: 50 | L13: 10 | M13: 1300 | N13: 2% | O13: 80,000
A14: built_t | B14: T 140 x 6, 80 x 6 | C14: 140 | D14: 6 | E14: 80 | F14: 6 | G14: 1320 | H14: 531.3 | I14: 140 | J14: 6 | K14: 80 | L14: 6 | M14: 1320 | N14: 2% | O14: 195,067
A15: built_t | B15: =CONCATENATE("T ",C15," x ",D15, ", ",E15," x ",F15) -> T 120 x 7, 70 x 7 | C15: 120 | D15: 7 | E15: 70 | F15: 7 | G15: 1330 | H15: 379.5 | I15: 120 | J15: 7 | K15: 70 | L15: 7 | M15: 1330 | N15: 1% | O15: 152,000
A16: built_t | B16: =CONCATENATE("T ",C16," x ",D16, ", ",E16," x ",F16) -> T 160 x 6, 90 x 6 | C16: 160 | D16: 6 | E16: 90 | F16: 6 | G16: 1500 | H16: 607.2 | I16: 160 | J16: 6 | K16: 90 | L16: 6 | M16: 1500 | N16: 13% | O16: 253,867
A17: built_t | B17: T 120 x 8, 70 x 8 | C17: 120 | D17: 8 | E17: 70 | F17: 8 | G17: 1520 | H17: 325.3 | I17: 120 | J17: 8 | K17: 70 | L17: 8 | M17: 1520 | N17: 1% | O17: 160,000
A18: built_t | B18: T 140 x 7, 80 x 7 | C18: 140 | D18: 7 | E18: 80 | F18: 7 | G18: 1540 | H18: 442.7 | I18: 140 | J18: 7 | K18: 80 | L18: 7 | M18: 1540 | N18: 1% | O18: 205,800
A19: built_t | B19: T 160 x 7, 90 x 7 | C19: 160 | D19: 7 | E19: 90 | F19: 7 | G19: 1750 | H19: 506.0 | I19: 160 | J19: 7 | K19: 90 | L19: 7 | M19: 1750 | N19: 14% | O19: 267,733
A20: built_t | B20: T 140 x 8, 80 x 8 | C20: 140 | D20: 8 | E20: 80 | F20: 8 | G20: 1760 | H20: 379.5 | I20: 140 | J20: 8 | K20: 80 | L20: 8 | M20: 1760 | N20: 1% | O20: 216,533
A21: built_t | B21: T 180 x 7, 100 x 7 | C21: 180 | D21: 7 | E21: 100 | F21: 7 | G21: 1960 | H21: 569.2 | I21: 180 | J21: 7 | K21: 100 | L21: 7 | M21: 1960 | N21: 11% | O21: 337,800
A22: built_t | B22: T 140 x 9, 80 x 9 | C22: 140 | D22: 9 | E22: 80 | F22: 9 | G22: 1980 | H22: 332.0 | I22: 140 | J22: 9 | K22: 80 | L22: 9 | M22: 1980 | N22: 1% | O22: 227,267
A23: built_t | B23: T 160 x 8, 90 x 8 | C23: 160 | D23: 8 | E23: 90 | F23: 8 | G23: 2000 | H23: 433.7 | I23: 160 | J23: 8 | K23: 90 | L23: 8 | M23: 2000 | N23: 1% | O23: 281,600
A24: built_t | B24: T 200 x 7, 110 x 7 | C24: 200 | D24: 7 | E24: 110 | F24: 7 | G24: 2170 | H24: 632.5 | I24: 200 | J24: 7 | K24: 110 | L24: 7 | M24: 2170 | N24: 9% | O24: 416,000
A25: built_t | B25: T 200 x 8, 110 x 8 | C25: 200 | D25: 8 | E25: 110 | F25: 8 | G25: 2480 | H25: 542.1 | I25: 200 | J25: 8 | K25: 110 | L25: 8 | M25: 2480 | N25: 14% | O25: 437,333
A26: built_t | B26: T 180 x 9, 100 x 9 | C26: 180 | D26: 9 | E26: 100 | F26: 9 | G26: 2520 | H26: 426.9 | I26: 180 | J26: 9 | K26: 100 | L26: 9 | M26: 2520 | N26: 2% | O26: 372,600
A27: built_t | B27: T 220 x 8, 120 x 8 | C27: 220 | D27: 8 | E27: 120 | F27: 8 | G27: 2720 | H27: 596.3 | I27: 220 | J27: 8 | K27: 120 | L27: 8 | M27: 2720 | N27: 8% | O27: 528,000
A28: built_t | B28: T 200 x 9, 110 x 9 | C28: 200 | D28: 9 | E28: 110 | F28: 9 | G28: 2790 | H28: 474.3 | I28: 200 | J28: 9 | K28: 110 | L28: 9 | M28: 2790 | N28: 3% | O28: 458,667
A29: built_t | B29: T 180 x 10, 100 x 10 | C29: 180 | D29: 10 | E29: 100 | F29: 10 | G29: 2800 | H29: 379.5 | I29: 180 | J29: 10 | K29: 100 | L29: 10 | M29: 2800 | N29: 0% | O29: 390,000
A30: built_t | B30: T 220 x 9, 120 x 9 | C30: 220 | D30: 9 | E30: 120 | F30: 9 | G30: 3060 | H30: 521.8 | I30: 220 | J30: 9 | K30: 120 | L30: 9 | M30: 3060 | N30: 9% | O30: 553,667
A31: built_t | B31: T 180 x 11, 100 x 11 | C31: 180 | D31: 11 | E31: 100 | F31: 11 | G31: 3080 | H31: 341.5 | I31: 180 | J31: 11 | K31: 100 | L31: 11 | M31: 3080 | N31: 1% | O31: 407,400
A32: built_t | B32: T 200 x 10, 110 x 10 | C32: 200 | D32: 10 | E32: 110 | F32: 10 | G32: 3100 | H32: 421.6 | I32: 200 | J32: 10 | K32: 110 | L32: 10 | M32: 3100 | N32: 1% | O32: 480,000
A33: built_t | B33: T 240 x 9, 130 x 9 | C33: 240 | D33: 9 | E33: 130 | F33: 9 | G33: 3330 | H33: 569.2 | I33: 240 | J33: 9 | K33: 130 | L33: 9 | M33: 3330 | N33: 7% | O33: 657,600
A34: built_t | B34: T 180 x 12, 100 x 12 | C34: 180 | D34: 12 | E34: 100 | F34: 12 | G34: 3360 | H34: 310.5 | I34: 180 | J34: 12 | K34: 100 | L34: 12 | M34: 3360 | N34: 1% | O34: 424,800
A35: built_t | B35: T 220 x 10, 120 x 10 | C35: 220 | D35: 10 | E35: 120 | F35: 10 | G35: 3400 | H35: 463.8 | I35: 220 | J35: 10 | K35: 120 | L35: 10 | M35: 3400 | N35: 1% | O35: 579,333
A36: built_t | B36: T 200 x 11, 110 x 11 | C36: 200 | D36: 11 | E36: =C36/2+10 -> 110 | F36: =D36 -> 11 | G36: =C36*D36+E36*F36 -> 3410 | H36: 379.5 | I36: =C36 -> 200 | J36: =D36 -> 11 | K36: =E36 -> 110 | L36: =F36 -> 11 | M36: 3410 | N36: 0% | O36: 501,333
A37: built_t | B37: =CONCATENATE("T ",C37," x ",D37, ", ",E37," x ",F37) -> T 240 x 10, 130 x 10 | C37: 240 | D37: 10 | E37: 130 | F37: 10 | G37: 3700 | H37: 506.0 | I37: 240 | J37: 10 | K37: 130 | L37: 10 | M37: 3700 | N37: 9% | O37: 688,000
A38: built_t | B38: T 200 x 12, 110 x 12 | C38: 200 | D38: 12 | E38: 110 | F38: 12 | G38: 3720 | H38: 345.0 | I38: 200 | J38: 12 | K38: 110 | L38: 12 | M38: 3720 | N38: 1% | O38: 522,667
A39: built_t | B39: T 220 x 11, 120 x 11 | C39: 220 | D39: 11 | E39: 120 | F39: 11 | G39: 3740 | H39: 417.4 | I39: 220 | J39: 11 | K39: 120 | L39: 11 | M39: 3740 | N39: 1% | O39: 605,000
A40: built_t | B40: T 260 x 10, 140 x 10 | C40: 260 | D40: 10 | E40: 140 | F40: 10 | G40: 4000 | H40: 548.1 | I40: 260 | J40: 10 | K40: 140 | L40: 10 | M40: 4000 | N40: 7% | O40: 806,000
A41: built_t | B41: =CONCATENATE("T ",C41," x ",D41, ", ",E41," x ",F41) -> T 240 x 11, 130 x 11 | C41: 240 | D41: 11 | E41: 130 | F41: 11 | G41: 4070 | H41: 455.4 | I41: 240 | J41: 11 | K41: 130 | L41: 11 | M41: 4070 | N41: 2% | O41: 718,400
A42: built_t | B42: =CONCATENATE("T ",C42," x ",D42, ", ",E42," x ",F42) -> T 280 x 10, 150 x 10 | C42: 280 | D42: 10 | E42: 150 | F42: 10 | G42: 4300 | H42: 590.3 | I42: 280 | J42: 10 | K42: 150 | L42: 10 | M42: 4300 | N42: 6% | O42: 933,333
A43: built_t | B43: =CONCATENATE("T ",C43," x ",D43, ", ",E43," x ",F43) -> T 260 x 11, 140 x 11 | C43: 260 | D43: 11 | E43: 140 | F43: 11 | G43: 4400 | H43: 493.3 | I43: 260 | J43: 11 | K43: 140 | L43: 11 | M43: 4400 | N43: 2% | O43: 841,533
A44: built_t | B44: T 280 x 11, 150 x 11 | C44: 280 | D44: 11 | E44: 150 | F44: 11 | G44: 4730 | H44: 531.3 | I44: 280 | J44: 11 | K44: 150 | L44: 11 | M44: 4730 | N44: 8% | O44: 974,400
A45: built_t | B45: T 260 x 12, 140 x 12 | C45: 260 | D45: 12 | E45: 140 | F45: 12 | G45: 4800 | H45: 448.5 | I45: 260 | J45: 12 | K45: 140 | L45: 12 | M45: 4800 | N45: 1% | O45: 877,067
A46: built_t | B46: T 280 x 12, 150 x 12 | C46: 280 | D46: 12 | E46: 150 | F46: 12 | G46: 5160 | H46: 483.0 | I46: 280 | J46: 12 | K46: 150 | L46: 12 | M46: 5160 | N46: 8% | O46: 1,015,467
A47: built_t | B47: T 281 x 12, 150.5 x 12 | C47: 281 | D47: 12 | E47: 151 | F47: 12 | G47: 5178 | H47: 484.7 | I47: 281 | J47: 12 | K47: 150.5 | L47: 12 | M47: 5178 | N47: 0% | O47: 1,022,653
A48: built_t | B48: T 300 x 12, 160 x 12 | C48: 300 | D48: 12 | E48: 160 | F48: 12 | G48: 5520 | H48: 517.5 | I48: 300 | J48: 12 | K48: 160 | L48: 12 | M48: 5520 | N48: 7% | O48: 1,164,000
A49: built_t | B49: T 260 x 14, 140 x 14 | C49: 260 | D49: 14 | E49: 140 | F49: 14 | G49: 5600 | H49: 379.5 | I49: 260 | J49: 14 | K49: 140 | L49: 14 | M49: 5600 | N49: 1% | O49: 948,133
A50: built_t | B50: T 320 x 12, 170 x 12 | C50: 320 | D50: 12 | E50: 170 | F50: 12 | G50: 5880 | H50: 552.0 | I50: 320 | J50: 12 | K50: 170 | L50: 12 | M50: 5880 | N50: 5% | O50: 1,322,667
A51: built_t | B51: T 280 x 14, 150 x 14 | C51: 280 | D51: 14 | E51: 150 | F51: 14 | G51: 6020 | H51: 408.7 | I51: 280 | J51: 14 | K51: 150 | L51: 14 | M51: 6020 | N51: 2% | O51: 1,097,600
A52: built_t | B52: T 260 x 16, 140 x 16 | C52: 260 | D52: 16 | E52: 140 | F52: 16 | G52: 6400 | H52: 328.9 | I52: 260 | J52: 16 | K52: 140 | L52: 16 | M52: 6400 | N52: 6% | O52: 1,019,200
A53: built_t | B53: T 300 x 14, 160 x 14 | C53: 300 | D53: 14 | E53: 160 | F53: 14 | G53: 6440 | H53: 437.9 | I53: 300 | J53: 14 | K53: 160 | L53: 14 | M53: 6440 | N53: 1% | O53: 1,258,000
A54: built_t | B54: T 320 x 14, 170 x 14 | C54: 320 | D54: 14 | E54: 170 | F54: 14 | G54: 6860 | H54: 467.0 | I54: 320 | J54: 14 | K54: 170 | L54: 14 | M54: 6860 | N54: 7% | O54: 1,429,333
A55: built_t | B55: T 280 x 16, 150 x 16 | C55: 280 | D55: 16 | E55: 150 | F55: 16 | G55: 6880 | H55: 354.2 | I55: 280 | J55: 16 | K55: 150 | L55: 16 | M55: 6880 | N55: 0% | O55: 1,179,733
A56: built_t | B56: T 340 x 14, 180 x 14 | C56: 340 | D56: 14 | E56: 180 | F56: 14 | G56: 7280 | H56: 496.2 | I56: 340 | J56: 14 | K56: 180 | L56: 14 | M56: 7280 | N56: 6% | O56: 1,611,600
A57: built_t | B57: T 300 x 16, 160 x 16 | C57: 300 | D57: 16 | E57: 160 | F57: 16 | G57: 7360 | H57: 379.5 | I57: 300 | J57: 16 | K57: 160 | L57: 16 | M57: 7360 | N57: 1% | O57: 1,352,000
A58: built_t | B58: T 360 x 14, 190 x 14 | C58: 360 | D58: 14 | E58: 190 | F58: 14 | G58: 7700 | H58: 525.4 | I58: 360 | J58: 14 | K58: 190 | L58: 14 | M58: 7700 | N58: 5% | O58: 1,804,800
A59: built_t | B59: T 320 x 16, 170 x 16 | C59: 320 | D59: 16 | E59: 170 | F59: 16 | G59: 7840 | H59: 404.8 | I59: 320 | J59: 16 | K59: 170 | L59: 16 | M59: 7840 | N59: 2% | O59: 1,536,000
A60: built_t | B60: T 380 x 14, 200 x 14 | C60: 380 | D60: 14 | E60: 200 | F60: 14 | G60: 8120 | H60: 554.6 | I60: 380 | J60: 14 | K60: 200 | L60: 14 | M60: 8120 | N60: 4% | O60: 2,008,933
A61: built_t | B61: T 300 x 18, 160 x 18 | C61: 300 | D61: 18 | E61: 160 | F61: 18 | G61: 8280 | H61: 334.8 | I61: 300 | J61: 18 | K61: 160 | L61: 18 | M61: 8280 | N61: 2% | O61: 1,446,000
A62: built_t | B62: T 340 x 16, 180 x 16 | C62: 340 | D62: 16 | E62: 180 | F62: 16 | G62: 8320 | H62: 430.1 | I62: 340 | J62: 16 | K62: 180 | L62: 16 | M62: 8320 | N62: 0% | O62: 1,731,733
A63: built_t | B63: T 360 x 16, 190 x 16 | C63: 360 | D63: 16 | E63: 190 | F63: 16 | G63: 8800 | H63: 455.4 | I63: 360 | J63: 16 | K63: 190 | L63: 16 | M63: 8800 | N63: 6% | O63: 1,939,200
A64: built_t | B64: T 320 x 18, 170 x 18 | C64: 320 | D64: 18 | E64: 170 | F64: 18 | G64: 8820 | H64: 357.2 | I64: 320 | J64: 18 | K64: 170 | L64: 18 | M64: 8820 | N64: 0% | O64: 1,642,667
A65: built_t | B65: T 380 x 16, 200 x 16 | C65: 380 | D65: 16 | E65: =MIN(C65/2+10,200) -> 200 | F65: 16 | G65: 9280 | H65: 480.7 | I65: 380 | J65: 16 | K65: 200 | L65: 16 | M65: 9280 | N65: 5% | O65: 2,158,400
A66: built_t | B66: =CONCATENATE("T ",C66," x ",D66, ", ",E66," x ",F66) -> T 340 x 18, 180 x 18 | C66: 340 | D66: 18 | E66: 180 | F66: 18 | G66: 9360 | H66: 379.5 | I66: 340 | J66: 18 | K66: 180 | L66: 18 | M66: 9360 | N66: 1% | O66: 1,851,867
A67: built_t | B67: T 400 x 16, 200 x 16 | C67: 400 | D67: 16 | E67: 200 | F67: 16 | G67: 9600 | H67: 506.0 | I67: 400 | J67: 16 | K67: 200 | L67: 16 | M67: 9600 | N67: 3% | O67: 2,346,667
A68: built_t | B68: T 320 x 20, 170 x 20 | C68: 320 | D68: 20 | E68: 170 | F68: =D68 -> 20 | G68: =C68*D68+E68*F68 -> 9800 | H68: 319.6 | I68: =C68 -> 320 | J68: =D68 -> 20 | K68: =E68 -> 170 | L68: =F68 -> 20 | M68: =I68*J68+K68*L68 -> 9800 | N68: 2% | O68: 1,749,333
A69: built_t | B69: T 360 x 18, 190 x 18 | C69: 360 | D69: 18 | E69: 190 | F69: 18 | G69: 9900 | H69: =C69*SQRT(360)/(D69-1) -> 401.8 | I69: 360 | J69: 18 | K69: 190 | L69: 18 | M69: 9900 | N69: 1% | O69: =1/6*I69*(4*K69*L69+J69*I69+40*I69) -> 2,073,600
A70: built_t | B70: T 420 x 16, 200 x 16 | C70: 420 | D70: 16 | E70: 200 | F70: 16 | G70: 9920 | H70: 531.3 | I70: 420 | J70: 16 | K70: 200 | L70: 16 | M70: 9920 | N70: =G70/G69-1 -> 0% | O70: 2,542,400
A71: built_t | B71: T 440 x 16, 200 x 16 | C71: 440 | D71: 16 | E71: 200 | F71: 16 | G71: 10240 | H71: 556.6 | I71: 440 | J71: 16 | K71: 200 | L71: 16 | M71: 10240 | N71: 3% | O71: 2,745,600
A72: built_t | B72: T 340 x 20, 180 x 20 | C72: 340 | D72: 20 | E72: 180 | F72: 20 | G72: 10400 | H72: 339.5 | I72: 340 | J72: 20 | K72: 180 | L72: 20 | M72: 10400 | N72: 2% | O72: 1,972,000
A73: built_t | B73: =CONCATENATE("T ",C73," x ",D73, ", ",E73," x ",F73) -> T 380 x 18, 200 x 18 | C73: 380 | D73: 18 | E73: 200 | F73: 18 | G73: 10440 | H73: 424.1 | I73: 380 | J73: 18 | K73: 200 | L73: 18 | M73: 10440 | N73: 0% | O73: 2,307,867
A74: built_t | B74: T 400 x 18, 200 x 18 | C74: 400 | D74: 18 | E74: 200 | F74: 18 | G74: 10800 | H74: 446.4 | I74: 400 | J74: 18 | K74: 200 | L74: 18 | M74: 10800 | N74: 3% | O74: 2,506,667
A75: built_t | B75: T 360 x 20, 190 x 20 | C75: 360 | D75: 20 | E75: 190 | F75: 20 | G75: 11000 | H75: 359.5 | I75: 360 | J75: 20 | K75: 190 | L75: 20 | M75: 11000 | N75: 2% | O75: 2,208,000
A76: built_t | B76: =CONCATENATE("T ",C76," x ",D76, ", ",E76," x ",F76) -> T 420 x 18, 200 x 18 | C76: 420 | D76: 18 | E76: 200 | F76: 18 | G76: 11160 | H76: 468.8 | I76: 420 | J76: 18 | K76: 200 | L76: 18 | M76: 11160 | N76: 1% | O76: 2,713,200
A77: built_t | B77: T 340 x 22, 180 x 22 | C77: 340 | D77: 22 | E77: 180 | F77: 22 | G77: 11440 | H77: 307.2 | I77: 340 | J77: 22 | K77: 180 | L77: 22 | M77: 11440 | N77: 3% | O77: 2,092,133
A78: built_t | B78: T 440 x 18, 200 x 18 | C78: 440 | D78: 18 | E78: 200 | F78: 18 | G78: 11520 | H78: 491.1 | I78: 440 | J78: 18 | K78: 200 | L78: 18 | M78: 11520 | N78: 1% | O78: 2,927,467
A79: built_t | B79: T 380 x 20, 200 x 20 | C79: 380 | D79: 20 | E79: 200 | F79: 20 | G79: 11600 | H79: 379.5 | I79: 380 | J79: 20 | K79: 200 | L79: 20 | M79: 11600 | N79: 1% | O79: 2,457,333
A80: built_t | B80: T 460 x 18, 200 x 18 | C80: 460 | D80: 18 | E80: 200 | F80: 18 | G80: 11880 | H80: 513.4 | I80: 460 | J80: 18 | K80: 200 | L80: 18 | M80: 11880 | N80: 2% | O80: 3,149,467
A81: built_t | B81: T 400 x 20, 200 x 20 | C81: 400 | D81: 20 | E81: 200 | F81: 20 | G81: 12000 | H81: 399.4 | I81: 400 | J81: 20 | K81: 200 | L81: 20 | M81: 12000 | N81: 1% | O81: 2,666,667
A82: built_t | B82: T 360 x 22, 190 x 22 | C82: 360 | D82: 22 | E82: 190 | F82: 22 | G82: 12100 | H82: 325.3 | I82: 360 | J82: 22 | K82: 190 | L82: 22 | M82: 12100 | N82: 1% | O82: 2,342,400
A83: built_t | B83: T 480 x 18, 200 x 18 | C83: 480 | D83: 18 | E83: 200 | F83: 18 | G83: 12240 | H83: 535.7 | I83: 480 | J83: 18 | K83: 200 | L83: 18 | M83: 12240 | N83: 1% | O83: 3,379,200
A84: built_t | B84: T 420 x 20, 200 x 20 | C84: 420 | D84: 20 | E84: 200 | F84: 20 | G84: 12400 | H84: 419.4 | I84: 420 | J84: 20 | K84: 200 | L84: 20 | M84: 12400 | N84: 1% | O84: 2,884,000
A85: built_t | B85: T 380 x 22, 200 x 22 | C85: 380 | D85: 22 | E85: 200 | F85: 22 | G85: 12760 | H85: 343.3 | I85: 380 | J85: 22 | K85: 200 | L85: 22 | M85: 12760 | N85: 3% | O85: 2,606,800
A86: built_t | B86: =CONCATENATE("T ",C86," x ",D86, ", ",E86," x ",F86) -> T 440 x 20, 200 x 20 | C86: 440 | D86: 20 | E86: 200 | F86: 20 | G86: 12800 | H86: 439.4 | I86: 440 | J86: 20 | K86: 200 | L86: 20 | M86: 12800 | N86: 0% | O86: 3,109,333
A87: built_t | B87: T 360 x 24, 190 x 24 | C87: 360 | D87: 24 | E87: 190 | F87: 24 | G87: 13200 | H87: 297.0 | I87: 360 | J87: 24 | K87: 190 | L87: 24 | M87: 13200 | N87: 3% | O87: 2,476,800
A88: built_t | B88: T 400 x 22, 200 x 22 | C88: 400 | D88: 22 | E88: 200 | F88: 22 | G88: 13200 | H88: 361.4 | I88: 400 | J88: 22 | K88: 200 | L88: 22 | M88: 13200 | N88: 0% | O88: 2,826,667
A89: built_t | B89: T 460 x 20, 200 x 20 | C89: 460 | D89: 20 | E89: 200 | F89: 20 | G89: 13200 | H89: 459.4 | I89: 460 | J89: 20 | K89: 200 | L89: 20 | M89: 13200 | N89: 0% | O89: 3,342,667
A90: built_t | B90: T 420 x 22, 200 x 22 | C90: 420 | D90: 22 | E90: 200 | F90: 22 | G90: 13640 | H90: 379.5 | I90: 420 | J90: 22 | K90: 200 | L90: 22 | M90: 13640 | N90: 3% | O90: 3,054,800
A91: built_t | B91: T 500 x 20, 200 x 20 | C91: 500 | D91: 20 | E91: 200 | F91: 20 | G91: 14000 | H91: 499.3 | I91: 500 | J91: 20 | K91: 200 | L91: 20 | M91: 14000 | N91: 3% | O91: 3,833,333
A92: built_t | B92: T 440 x 22, 200 x 22 | C92: 440 | D92: 22 | E92: 200 | F92: 22 | G92: 14080 | H92: 397.5 | I92: 440 | J92: 22 | K92: 200 | L92: 22 | M92: 14080 | N92: 1% | O92: 3,291,200
A93: built_t | B93: T 400 x 24, 200 x 24 | C93: 400 | D93: 24 | E93: 200 | F93: 24 | G93: 14400 | H93: 330.0 | I93: 400 | J93: 24 | K93: 200 | L93: 24 | M93: 14400 | N93: 2% | O93: 2,986,667
A94: built_t | B94: T 460 x 22, 200 x 22 | C94: 460 | D94: 22 | E94: 200 | F94: 22 | G94: 14520 | H94: 415.6 | I94: 460 | J94: 22 | K94: 200 | L94: 22 | M94: 14520 | N94: 1% | O94: 3,535,867
A95: built_t | B95: =CONCATENATE("T ",C95," x ",D95, ", ",E95," x ",F95) -> T 540 x 20, 200 x 20 | C95: 540 | D95: 20 | E95: 200 | F95: 20 | G95: 14800 | H95: 539.3 | I95: 540 | J95: 20 | K95: 200 | L95: 20 | M95: 14800 | N95: 2% | O95: 4,356,000
A96: built_t | B96: =CONCATENATE("T ",C96," x ",D96, ", ",E96," x ",F96) -> T 420 x 24, 200 x 24 | C96: 420 | D96: 24 | E96: 200 | F96: 24 | G96: 14880 | H96: 346.5 | I96: 420 | J96: 24 | K96: 200 | L96: 24 | M96: 14880 | N96: 1% | O96: 3,225,600
A97: built_t | B97: T 440 x 24, 200 x 24 | C97: 440 | D97: 24 | E97: =MIN(C97/2+10,200) -> 200 | F97: 24 | G97: 15360 | H97: 363.0 | I97: 440 | J97: 24 | K97: 200 | L97: 24 | M97: 15360 | N97: 3% | O97: 3,473,067
A98: built_t | B98: T 500 x 22, 200 x 22 | C98: 500 | D98: 22 | E98: 200 | F98: 22 | G98: 15400 | H98: 451.8 | I98: 500 | J98: 22 | K98: 200 | L98: 22 | M98: 15400 | N98: 0% | O98: 4,050,000
A99: built_t | B99: T 400 x 26, 200 x 26 | C99: 400 | D99: 26 | E99: 200 | F99: 26 | G99: 15600 | H99: 303.6 | I99: 400 | J99: 26 | K99: 200 | L99: 26 | M99: 15600 | N99: 1% | O99: 3,146,667
A100: built_t | B100: T 460 x 24, 200 x 24 | C100: 460 | D100: 24 | E100: 200 | F100: =D100 -> 24 | G100: =C100*D100+E100*F100 -> 15840 | H100: 379.5 | I100: =C100 -> 460 | J100: =D100 -> 24 | K100: =E100 -> 200 | L100: =F100 -> 24 | M100: 15840 | N100: 2% | O100: 3,729,067
A101: built_t | B101: T 420 x 26, 200 x 26 | C101: 420 | D101: 26 | E101: 200 | F101: 26 | G101: 16120 | H101: 318.8 | I101: 420 | J101: 26 | K101: 200 | L101: 26 | M101: 16120 | N101: 2% | O101: 3,396,400
A102: built_t | B102: T 540 x 22, 200 x 22 | C102: 540 | D102: 22 | E102: 200 | F102: 22 | G102: 16280 | H102: 487.9 | I102: 540 | J102: 22 | K102: 200 | L102: 22 | M102: 16280 | N102: 1% | O102: 4,597,200
A103: built_t | B103: =CONCATENATE("T ",C103," x ",D103, ", ",E103," x ",F103) -> T 440 x 26, 200 x 26 | C103: 440 | D103: 26 | E103: 200 | F103: 26 | G103: 16640 | H103: 333.9 | I103: 440 | J103: 26 | K103: 200 | L103: 26 | M103: 16640 | N103: 2% | O103: 3,654,933
A104: built_t | B104: =CONCATENATE("T ",C104," x ",D104, ", ",E104," x ",F104) -> T 500 x 24, 200 x 24 | C104: 500 | D104: 24 | E104: 200 | F104: 24 | G104: 16800 | H104: 412.5 | I104: 500 | J104: 24 | K104: 200 | L104: 24 | M104: 16800 | N104: 1% | O104: 4,266,667
A105: built_t | B105: =CONCATENATE("T ",C105," x ",D105, ", ",E105," x ",F105) -> T 460 x 26, 200 x 26 | C105: 460 | D105: 26 | E105: 200 | F105: 26 | G105: 17160 | H105: 349.1 | I105: 460 | J105: 26 | K105: 200 | L105: 26 | M105: 17160 | N105: 2% | O105: 3,922,267
A106: built_t | B106: =CONCATENATE("T ",C106," x ",D106, ", ",E106," x ",F106) -> T 580 x 22, 200 x 22 | C106: 580 | D106: 22 | E106: 200 | F106: 22 | G106: 17160 | H106: 524.0 | I106: 580 | J106: 22 | K106: 200 | L106: 22 | M106: 17160 | N106: 0% | O106: 5,177,467
A107: built_t | B107: T 420 x 28, 200 x 28 | C107: 420 | D107: 28 | E107: 200 | F107: 28 | G107: 17360 | H107: 295.1 | I107: 420 | J107: 28 | K107: 200 | L107: 28 | M107: 17360 | N107: 1% | O107: 3,567,200
A108: built_t | B108: T 540 x 24, 200 x 24 | C108: 540 | D108: 24 | E108: 200 | F108: 24 | G108: 17760 | H108: 445.5 | I108: 540 | J108: 24 | K108: 200 | L108: 24 | M108: 17760 | N108: 2% | O108: 4,838,400
A109: built_t | B109: T 440 x 28, 200 x 28 | C109: 440 | D109: 28 | E109: 200 | F109: 28 | G109: 17920 | H109: 309.2 | I109: 440 | J109: 28 | K109: 200 | L109: 28 | M109: 17920 | N109: 1% | O109: 3,836,800
A110: built_t | B110: T 500 x 26, 200 x 26 | C110: 500 | D110: 26 | E110: 200 | F110: 26 | G110: 18200 | H110: 379.5 | I110: 500 | J110: 26 | K110: 200 | L110: 26 | M110: 18200 | N110: 2% | O110: 4,483,333
A111: built_t | B111: T 580 x 24, 200 x 24 | C111: 580 | D111: 24 | E111: 200 | F111: 24 | G111: 18720 | H111: 478.5 | I111: 580 | J111: 24 | K111: 200 | L111: 24 | M111: 18720 | N111: 3% | O111: 5,444,267
A112: built_t | B112: =CONCATENATE("T ",C112," x ",D112, ", ",E112," x ",F112) -> T 540 x 26, 200 x 26 | C112: 540 | D112: 26 | E112: 200 | F112: 26 | G112: 19240 | H112: 409.8 | I112: 540 | J112: 26 | K112: 200 | L112: 26 | M112: 19240 | N112: 3% | O112: 5,079,600
A113: built_t | B113: =CONCATENATE("T ",C113," x ",D113, ", ",E113," x ",F113) -> T 450 x 30, 200 x 30 | C113: 450 | D113: 30 | E113: 200 | F113: 30 | G113: 19500 | H113: 294.4 | I113: 450 | J113: 30 | K113: 200 | L113: 30 | M113: 19500 | N113: 1% | O113: 4,162,500
A114: built_t | B114: =CONCATENATE("T ",C114," x ",D114, ", ",E114," x ",F114) -> T 500 x 28, 200 x 28 | C114: 500 | D114: 28 | E114: 200 | F114: 28 | G114: 19600 | H114: 351.4 | I114: 500 | J114: 28 | K114: 200 | L114: 28 | M114: 19600 | N114: 1% | O114: 4,700,000
A115: built_t | B115: =CONCATENATE("T ",C115," x ",D115, ", ",E115," x ",F115) -> T 620 x 24, 200 x 24 | C115: 620 | D115: 24 | E115: 200 | F115: 24 | G115: 19680 | H115: 511.5 | I115: 620 | J115: 24 | K115: 200 | L115: 24 | M115: 19680 | N115: 0% | O115: 6,084,267
A116: built_t | B116: =CONCATENATE("T ",C116," x ",D116, ", ",E116," x ",F116) -> T 580 x 26, 200 x 26 | C116: 580 | D116: 26 | E116: 200 | F116: 26 | G116: 20280 | H116: 440.2 | I116: 580 | J116: 26 | K116: 200 | L116: 26 | M116: 20280 | N116: 3% | O116: 5,711,067
A117: built_t | B117: T 660 x 24, 200 x 24 | C117: 660 | D117: 24 | E117: 200 | F117: 24 | G117: 20640 | H117: 544.5 | I117: 660 | J117: 24 | K117: 200 | L117: 24 | M117: 20640 | N117: 2% | O117: 6,758,400
A118: built_t | B118: =CONCATENATE("T ",C118," x ",D118, ", ",E118," x ",F118) -> T 620 x 26, 200 x 26 | C118: 620 | D118: 26 | E118: 200 | F118: 26 | G118: 21320 | H118: 470.5 | I118: 620 | J118: 26 | K118: 200 | L118: 26 | M118: 21320 | N118: 3% | O118: 6,377,733
A119: built_t | B119: T 550 x 28, 200 x 30 | C119: 550 | D119: 28 | E119: 200 | F119: 30 | G119: 21400 | H119: 386.5 | I119: 550 | J119: 28 | K119: 200 | L119: 30 | M119: 21400 | N119: 0% | O119: 5,628,333
A120: built_t | B120: T 500 x 30, 200 x 35 | C120: 500 | D120: 30 | E120: 200 | F120: 35 | G120: 22000 | H120: 327.1 | I120: 500 | J120: 30 | K120: 200 | L120: 35 | M120: 22000 | N120: 3% | O120: 5,250,000
A121: built_t | B121: T 660 x 26, 200 x 26 | C121: 660 | D121: 26 | E121: 200 | F121: =D121 -> 26 | G121: 22360 | H121: 500.9 | I121: 660 | J121: 26 | K121: 200 | L121: 26 | M121: 22360 | N121: 2% | O121: 7,079,600
A122: built_t | B122: T 500 x 32, 200 x 32 | C122: 500 | D122: 32 | E122: 200 | F122: =D122 -> 32 | G122: 22400 | H122: 306.0 | I122: 500 | J122: 32 | K122: 200 | L122: 32 | M122: 22400 | N122: 0% | O122: 5,133,333
A123: built_t | B123: T 700 x 26, 200 x 26 | C123: 700 | D123: 26 | E123: 200 | F123: =D123 -> 26 | G123: 23400 | H123: 531.3 | I123: 700 | J123: 26 | K123: 200 | L123: 26 | M123: 23400 | N123: 4% | O123: 7,816,667
A124: built_t | B124: T 550 x 30, 200 x 35 | C124: 550 | D124: 30 | E124: 200 | F124: 35 | G124: 23500 | H124: 359.8 | I124: 550 | J124: 30 | K124: 200 | L124: 35 | M124: 23500 | N124: 0% | O124: 6,095,833
A125: built_t | B125: T 600 x 28, 200 x 35 | C125: 600 | D125: 28 | E125: 200 | F125: 35 | G125: 23800 | H125: 421.6 | I125: 600 | J125: 28 | K125: 200 | L125: 35 | M125: 23800 | N125: 1% | O125: 6,880,000
A126: built_t | B126: T 550 x 32, 200 x 35 | C126: 550 | D126: 32 | E126: 200 | F126: 35 | G126: 24600 | H126: 336.6 | I126: 550 | J126: 32 | K126: 200 | L126: 35 | M126: 24600 | N126: 3% | O126: 6,196,667
A127: built_t | B127: T 650 x 28, 200 x 35 | C127: 650 | D127: 28 | E127: 200 | F127: 35 | G127: 25200 | H127: 456.8 | I127: 650 | J127: 28 | K127: 200 | L127: 35 | M127: 25200 | N127: 2% | O127: 7,821,667
A128: built_t | B128: T 550 x 34, 200 x 35 | C128: 550 | D128: 34 | E128: 200 | F128: 35 | G128: 25700 | H128: 316.2 | I128: 550 | J128: 34 | K128: 200 | L128: 35 | M128: 25700 | N128: 2% | O128: 6,297,500
A129: built_t | B129: T 600 x 30, 200 x 40 | C129: 600 | D129: 30 | E129: =MIN(C129/2+10,200) -> 200 | F129: 40 | G129: 26000 | H129: 392.6 | I129: 600 | J129: 30 | K129: 200 | L129: 40 | M129: 26000 | N129: 1% | O129: 7,400,000
A130: built_t | B130: T 600 x 32, 200 x 35 | C130: 600 | D130: 32 | E130: 200 | F130: 35 | G130: 26200 | H130: 367.2 | I130: 600 | J130: 32 | K130: 200 | L130: 35 | M130: 26200 | N130: 1% | O130: 7,120,000
A131: built_t | B131: T 700 x 28, 200 x 35 | C131: 700 | D131: 28 | E131: 200 | F131: 35 | G131: 26600 | H131: 491.9 | I131: 700 | J131: 28 | K131: 200 | L131: 35 | M131: 26600 | N131: 2% | O131: 8,820,000
A132: built_t | B132: T 600 x 34, 200 x 35 | C132: 600 | D132: 34 | E132: 200 | F132: 35 | G132: =C132*D132+E132*F132 -> 27400 | H132: 345.0 | I132: =C132 -> 600 | J132: =D132 -> 34 | K132: =E132 -> 200 | L132: =F132 -> 35 | M132: =I132*J132+K132*L132 -> 27400 | N132: 3% | O132: 7,240,000
A133: built_t | B133: T 650 x 30, 200 x 40 | C133: 650 | D133: 30 | E133: 200 | F133: 40 | G133: 27500 | H133: =C133*SQRT(360)/(D133-1) -> 425.3 | I133: 650 | J133: 30 | K133: 200 | L133: 40 | M133: 27500 | N133: 0% | O133: =1/6*I133*(4*K133*L133+J133*I133+40*I133) -> 8,395,833
A134: built_t | B134: T 750 x 28, 200 x 35 | C134: 750 | D134: 28 | E134: 200 | F134: 35 | G134: 28000 | H134: 527.0 | I134: 750 | J134: 28 | K134: 200 | L134: 35 | M134: 28000 | N134: =G134/G133-1 -> 2% | O134: 9,875,000
A135: built_t | B135: T 650 x 32, 200 x 40 | C135: 650 | D135: 32 | E135: 200 | F135: 40 | G135: 28800 | H135: 397.8 | I135: 650 | J135: 32 | K135: 200 | L135: 40 | M135: 28800 | N135: 3% | O135: 8,536,667
A136: built_t | B136: T 700 x 30, 200 x 40 | C136: 700 | D136: 30 | E136: 200 | F136: 40 | G136: 29000 | H136: 458.0 | I136: 700 | J136: 30 | K136: 200 | L136: 40 | M136: 29000 | N136: 1% | O136: 9,450,000
A137: built_t | B137: =CONCATENATE("T ",C137," x ",D137, ", ",E137," x ",F137) -> T 650 x 34, 200 x 35 | C137: 650 | D137: 34 | E137: 200 | F137: 35 | G137: 29100 | H137: 373.7 | I137: 650 | J137: 34 | K137: 200 | L137: 35 | M137: 29100 | N137: 0% | O137: 8,244,167
A138: built_t | B138: =CONCATENATE("T ",C138," x ",D138, ", ",E138," x ",F138) -> T 700 x 32, 200 x 40 | C138: 700 | D138: 32 | E138: 200 | F138: 40 | G138: 30400 | H138: 428.4 | I138: 700 | J138: 32 | K138: 200 | L138: 40 | M138: 30400 | N138: 4% | O138: 9,613,333
A139: built_t | B139: =CONCATENATE("T ",C139," x ",D139, ", ",E139," x ",F139) -> T 750 x 30, 200 x 40 | C139: 750 | D139: 30 | E139: 200 | F139: 40 | G139: 30500 | H139: 490.7 | I139: 750 | J139: 30 | K139: 200 | L139: 40 | M139: 30500 | N139: 0% | O139: 10,562,500
A140: built_t | B140: =CONCATENATE("T ",C140," x ",D140, ", ",E140," x ",F140) -> T 700 x 34, 200 x 40 | C140: 700 | D140: 34 | E140: 200 | F140: 40 | G140: 31800 | H140: 402.5 | I140: 700 | J140: 34 | K140: 200 | L140: 40 | M140: 31800 | N140: 4% | O140: 9,776,667
A141: built_t | B141: =CONCATENATE("T ",C141," x ",D141, ", ",E141," x ",F141) -> T 750 x 32, 200 x 40 | C141: 750 | D141: 32 | E141: 200 | F141: 40 | G141: 32000 | H141: 459.0 | I141: 750 | J141: 32 | K141: 200 | L141: 40 | M141: 32000 | N141: 1% | O141: 10,750,000
A142: built_t | B142: T 800 x 30, 200 x 40 | C142: 800 | D142: 30 | E142: 200 | F142: 40 | G142: 32000 | H142: 523.4 | I142: 800 | J142: 30 | K142: 200 | L142: 40 | M142: 32000 | N142: 0% | O142: 11,733,333
A143: built_t | B143: T 750 x 34, 200 x 40 | C143: 750 | D143: 34 | E143: 200 | F143: 40 | G143: 33500 | H143: 431.2 | I143: 750 | J143: 34 | K143: 200 | L143: 40 | M143: 33500 | N143: 5% | O143: 10,937,500
A144: built_t | B144: T 800 x 32, 200 x 40 | C144: 800 | D144: 32 | E144: 200 | F144: 40 | G144: 33600 | H144: 489.6 | I144: 800 | J144: 32 | K144: 200 | L144: 40 | M144: 33600 | N144: 0% | O144: 11,946,667
A145: built_t | B145: =CONCATENATE("T ",C145," x ",D145, ", ",E145," x ",F145) -> T 800 x 34, 200 x 40 | C145: 800 | D145: 34 | E145: 200 | F145: 40 | G145: 35200 | H145: 460.0 | I145: 800 | J145: 34 | K145: 200 | L145: 40 | M145: 35200 | N145: 5% | O145: 12,160,000
A146: built_t | B146: T 850 x 32, 200 x 40 | C146: 850 | D146: 32 | E146: 200 | F146: 40 | G146: 35200 | H146: 520.2 | I146: 850 | J146: 32 | K146: 200 | L146: 40 | M146: 35200 | N146: 0% | O146: 13,203,333
A147: built_t | B147: T 850 x 34, 200 x 40 | C147: 850 | D147: 34 | E147: 200 | F147: 40 | G147: 36900 | H147: 488.7 | I147: 850 | J147: 34 | K147: 200 | L147: 40 | M147: 36900 | N147: 5% | O147: 13,444,167
A148: built_t | B148: T 900 x 34, 200 x 40 | C148: 900 | D148: 34 | E148: 200 | F148: 40 | G148: 38600 | H148: 517.5 | I148: 900 | J148: 34 | K148: 200 | L148: 40 | M148: 38600 | N148: 5% | O148: 14,790,000
A149: built_t | B149: T 950 x 35, 200 x 40 | C149: 950 | D149: 35 | E149: =MIN(C149/2+10,200) -> 200 | F149: 40 | G149: =C149*D149+E149*F149 -> 41250 | H149: =C149*SQRT(360)/(D149-1) -> 530.1 | I149: =C149 -> 950 | J149: 35 | K149: 200 | L149: 40 | M149: 41250 | N149: =G149/G148-1 -> 7% | O149: 16,347,917
A150: built_t | B150: T 1000 x 36, 200 x 40 | C150: 1000 | D150: 36 | E150: 200 | F150: 40 | G150: 44000 | H150: 542.1 | I150: 1000 | J150: 36 | K150: 200 | L150: 40 | M150: 44000 | N150: 7% | O150: 18,000,000
A151: built_t | B151: T 1200 x 38, 200 x 40 | C151: 1200 | D151: 38 | E151: 200 | F151: 40 | G151: 53600 | H151: 615.4 | I151: 1200 | J151: 38 | K151: 200 | L151: 40 | M151: 53600 | N151: 22% | O151: =1/6*I151*(4*K151*L151+J151*I151+40*I151) -> 25,120,000
A152: built_t | B152: T 1400 x 40, 200 x 40 | C152: 1400 | D152: 40 | E152: 200 | F152: 40 | G152: 64000 | H152: 681.1 | I152: 1400 | J152: 40 | K152: 200 | L152: 40 | M152: 64000 | N152: 19% | O152: 33,600,000
A153: built_t | B153: T 1600 x 42, 200 x 40 | C153: 1600 | D153: 42 | E153: 200 | F153: 40 | G153: 75200 | H153: 740.4 | I153: 1600 | J153: 42 | K153: 200 | L153: 40 | M153: 75200 | N153: 18% | O153: 43,520,000
A154: built_t | B154: T 1800 x 44, 200 x 40 | C154: 1800 | D154: 44 | E154: 200 | F154: 40 | G154: 87200 | H154: 794.2 | I154: 1800 | J154: 44 | K154: 200 | L154: 40 | M154: 87200 | N154: 16% | O154: 54,960,000
A155: built_t | B155: T 2000 x 50, 200 x 41 | C155: 2000 | D155: 50 | E155: =MIN(C155/2+10,200) -> 200 | F155: 41 | G155: 108200 | H155: 774.4 | I155: 2000 | J155: 50 | K155: 200 | L155: 41 | M155: 108200 | N155: 24% | O155: 70,933,333
A156: built_t | B156: T 2200 x 55, 200 x 42 | C156: 2200 | D156: 55 | E156: =MIN(C156/2+10,200) -> 200 | F156: 42 | G156: 129400 | H156: 773.0 | I156: 2200 | J156: 55 | K156: 200 | L156: 42 | M156: 129400 | N156: 20% | O156: 88,953,333
B157: outside range | I157: 10000 | J157: 100 | K157: 100 | L157: 100

Sheet any
C2: h | D2: tw | G2: A | I2: hw | J2: tw | M2: A | O2: Ze(est)
I3: mm | J3: mm | O3: mm3
A4: flat | B4: F 60 x 5 | C4: 60 | D4: 6 | E4: 228 | G4: =C4*D4 -> 360 | H4: =C4*SQRT(360)/(D4-1) -> 227.7 | I4: =C4 -> 60 | J4: =D4 -> 6 | K4: 0 | L4: 0 | M4: 360 | O4: =1/6*I4*(4*K4*L4+J4*I4+40*I4) -> 27,600
A5: HP | B5: HP 60*4.0 | C5: 60 | D5: 4 | E5: 17 | G5: =C5*D5 -> 240 | H5: =C5*SQRT(360)/D5 -> 284.6 | I5: 50.38 | J5: 4 | K5: 17 | L5: 9.62 | M5: 365 | N5: =M5/M4-1 -> 1% | O5: 24,106
A6: half_I | B6: IPE 100 A_half | C6: 98 | D6: 3.6 | E6: 55 | F6: 4.7 | G6: 352.8 | H6: =C6*SQRT(360)/D6 -> 516.5 | I6: 44.3 | J6: 3.6 | K6: 55 | L6: 4.7 | M6: 418 | N6: 14% | O6: 21,895
A7: flat | B7: F 60 x 6 | C7: 60 | D7: 7 | E7: 190 | F7: =C7*D7 -> 420 | G7: 420 | H7: =C7*SQRT(360)/(D7-1) -> 189.7 | I7: =C7 -> 60 | J7: =D7 -> 7 | K7: 0 | L7: 0 | M7: 420 | N7: 0% | O7: 28,200
A8: HP | B8: HP 60*5.0 | C8: 60 | D8: 5 | E8: 18 | G8: 300 | H8: =C8*SQRT(360)/D8 -> 227.7 | I8: 50.38 | J8: 5 | K8: 18 | L8: 9.62 | M8: 425 | N8: 1% | O8: 24,852
A9: flat | B9: F 60 x 7 | C9: 60 | D9: 8 | E9: 163 | F9: =C9*D9 -> 480 | G9: 480 | H9: =C9*SQRT(360)/(D9-1) -> 162.6 | I9: =C9 -> 60 | J9: =D9 -> 8 | K9: 0 | L9: 0 | M9: 480 | N9: 13% | O9: 28,800
A10: HP | B10: HP 60*6.0 | C10: 60 | D10: 6 | E10: 19 | G10: 360 | H10: =C10*SQRT(360)/D10 -> 189.7 | I10: 50.38 | J10: 6 | K10: 19 | L10: 9.62 | M10: 485 | N10: 1% | O10: 25,598
A11: half_I | B11: IPE 100_half | C11: 100 | D11: 4.1 | E11: 55 | F11: 5.7 | G11: 410 | H11: =C11*SQRT(360)/D11 -> 462.8 | I11: 44.3 | J11: 4.1 | K11: 55 | L11: 5.7 | M11: 495 | N11: 2% | O11: 23,683
A12: half_I | B12: IPE 120 A_half | C12: 118 | D12: 3.8 | E12: 64 | F12: 5.1 | G12: 448.4 | H12: =C12*SQRT(360)/D12 -> 589.2 | I12: 53.9 | J12: 3.8 | K12: 64 | L12: 5.1 | M12: 531 | N12: 7% | O12: 32,937
A13: HP | B13: HP 80*5.0 | C13: 80 | D13: 5 | E13: 19 | G13: 400 | H13: =C13*SQRT(360)/D13 -> 303.6 | I13: 69.64 | J13: 5 | K13: 19 | L13: 10.36 | M13: 545 | N13: 3% | O13: 45,512
A14: cropped_I | B14: IPE 100 A_cropped | C14: 98 | D14: 3.6 | E14: 55 | F14: 4.7 | G14: 352.8 | H14: =C14*SQRT(360)/D14 -> 516.5 | I14: 81.6 | J14: 3.6 | K14: 55 | L14: 4.7 | M14: 552 | N14: 1% | O14: 62,448
A15: flat | B15: F 80 x 6 | C15: 80 | D15: 7 | E15: 244 | F15: =C15*D15 -> 560 | G15: 560 | H15: =C15*SQRT(360)/(D15-1) -> 253.0 | I15: =C15 -> 80 | J15: =D15 -> 7 | K15: 0 | L15: 0 | M15: 560 | N15: 1% | O15: 50,133
A16: HP | B16: HP 80*6.0 | C16: 80 | D16: 6 | E16: 20 | G16: 480 | H16: =C16*SQRT(360)/D16 -> 253.0 | I16: 69.64 | J16: 6 | K16: 20 | L16: 10.36 | M16: 625 | N16: 12% | O16: 46,801
A17: half_I | B17: IPE 120_half | C17: 120 | D17: 4.4 | E17: 64 | F17: 6.3 | G17: 528 | H17: =C17*SQRT(360)/D17 -> 517.5 | I17: 53.7 | J17: 4.4 | K17: 64 | L17: 6.3 | M17: 639 | N17: 2% | O17: 35,774
A18: flat | B18: F 80 x 7 | C18: 80 | D18: 8 | E18: 217 | F18: =C18*D18 -> 640 | G18: 640 | H18: =C18*SQRT(360)/(D18-1) -> 216.8 | I18: =C18 -> 80 | J18: =D18 -> 8 | K18: 0 | L18: 0 | M18: 640 | N18: 0% | O18: 51,200
A19: cropped_I | B19: IPE 100_cropped | C19: 100 | D19: 4.1 | E19: 55 | F19: 5.7 | G19: 410 | H19: =C19*SQRT(360)/D19 -> 462.8 | I19: 81.6 | J19: 4.1 | K19: 55 | L19: 5.7 | M19: 648 | N19: 1% | O19: 65,995
A20: half_I | B20: IPE 140 A_half | C20: 138 | D20: 3.8 | E20: 73 | F20: 5.6 | G20: 524.4 | H20: =C20*SQRT(360)/D20 -> 689.0 | I20: 63.4 | J20: 3.8 | K20: 73 | L20: 5.6 | M20: 650 | N20: 0% | O20: 46,621
A21: built_t | B21: =CONCATENATE("T ",C21," x ",D21, ", ",E21," x ",F21) -> T 80 x 5, 50 x 5 | C21: 80 | D21: 5 | E21: =C21/2+10 -> 50 | F21: =D21 -> 5 | G21: 400 | H21: =C21*SQRT(360)/(D21-1) -> 379.5 | I21: =C21 -> 80 | J21: =D21 -> 5 | K21: =E21 -> 50 | L21: =F21 -> 5 | M21: =I21*J21+K21*L21 -> 650 | N21: 0% | O21: =1/6*I21*(4*K21*L21+J21*I21+40*I21) -> 61,333
A22: HP | B22: HP 80*7.0 | C22: 80 | D22: 7 | E22: 21 | G22: 560 | H22: =C22*SQRT(360)/D22 -> 216.8 | I22: 69.64 | J22: 7 | K22: 21 | L22: 10.36 | M22: 705 | N22: 8% | O22: =1/6*I22*(4*K22*L22+J22*I22+40*I22) -> 48,090
A23: cropped_I | B23: IPE 120 A_cropped | C23: 118 | D23: 3.8 | E23: 64 | F23: 5.1 | G23: 448.4 | H23: =C23*SQRT(360)/D23 -> 589.2 | I23: 100.8 | J23: 3.8 | K23: 64 | L23: 5.1 | M23: 709 | N23: 1% | O23: 96,107
A24: flat | B24: F 80 x 8 | C24: 80 | D24: 9 | E24: 190 | F24: =C24*D24 -> 720 | G24: 720 | H24: =C24*SQRT(360)/(D24-1) -> 189.7 | I24: =C24 -> 80 | J24: =D24 -> 9 | K24: 0 | L24: 0 | M24: 720 | N24: 1% | O24: 52,267
A25: half_I | B25: IPE 160 A_half | C25: 157 | D25: 4 | E25: 82 | F25: 5.9 | G25: 628 | H25: =C25*SQRT(360)/D25 -> 744.7 | I25: 72.6 | J25: 4 | K25: 82 | L25: 5.9 | M25: 774 | N25: 8% | O25: 62,068
A26: HP | B26: HP 100*6.0 | C26: 100 | D26: 6 | E26: 21.5 | G26: 600 | H26: =C26*SQRT(360)/D26 -> 316.2 | I26: 88.53 | J26: 6 | K26: 21.5 | L26: 11.47 | M26: 778 | N26: 0% | O26: 74,643
A27: built_t | B27: =CONCATENATE("T ",C27," x ",D27, ", ",E27," x ",F27) -> T 80 x 6, 50 x 6 | C27: 80 | D27: 6 | E27: =C27/2+10 -> 50 | F27: =D27 -> 6 | G27: 480 | H27: =C27*SQRT(360)/(D27-1) -> 303.6 | I27: =C27 -> 80 | J27: =D27 -> 6 | K27: =E27 -> 50 | L27: =F27 -> 6 | M27: =I27*J27+K27*L27 -> 780 | N27: 0% | O27: 65,067
A28: flat | B28: F 80 x 9 | C28: 100 | D28: 8 | E28: 271 | F28: =C28*D28 -> 800 | G28: 800 | H28: =C28*SQRT(360)/(D28-1) -> 271.1 | I28: =C28 -> 100 | J28: =D28 -> 8 | K28: 0 | L28: 0 | M28: 800 | N28: 3% | O28: 80,000
A29: flat | B29: F 100 x 7 | C29: 80 | D29: 10 | E29: 169 | F29: =C29*D29 -> 800 | G29: 800 | H29: =C29*SQRT(360)/(D29-1) -> 168.7 | I29: =C29 -> 80 | J29: =D29 -> 10 | K29: 0 | L29: 0 | M29: 800 | N29: 0% | O29: 53,333
A30: half_I | B30: IPE 140_half | C30: 140 | D30: 4.7 | E30: 73 | F30: 6.9 | G30: 658 | H30: =C30*SQRT(360)/D30 -> 565.2 | I30: 63.1 | J30: 4.7 | K30: 73 | L30: 6.9 | M30: 800 | N30: 0% | O30: 50,852
A31: cropped_I | B31: IPE 120_cropped | C31: 120 | D31: 4.4 | E31: 64 | F31: 6.3 | G31: 528 | H31: =C31*SQRT(360)/D31 -> 517.5 | I31: 100.4 | J31: 4.4 | K31: 64 | L31: 6.3 | M31: 845 | N31: 6% | O31: 101,581
A32: cropped_I | B32: IPE 140 A_cropped | C32: 138 | D32: 3.8 | E32: 73 | F32: 5.6 | G32: 524.4 | H32: =C32*SQRT(360)/D32 -> 689.0 | I32: 119.8 | J32: 3.8 | K32: 73 | L32: 5.6 | M32: 864 | N32: 2% | O32: 137,419
A33: HP | B33: HP 100*7.0 | C33: 100 | D33: 7 | E33: 22.5 | G33: 700 | H33: =C33*SQRT(360)/D33 -> 271.1 | I33: 88.53 | J33: 7 | K33: 22.5 | L33: 11.47 | M33: 878 | N33: 2% | O33: 76,626
A34: half_I | B34: IPE 140 R_half | C34: 142 | D34: 5.3 | E34: 72 | F34: 7.8 | G34: 752.6 | H34: =C34*SQRT(360)/D34 -> 508.4 | I34: 63.2 | J34: 5.3 | K34: 72 | L34: 7.8 | M34: 897 | N34: 2% | O34: 53,819
A35: flat | B35: F 100 x 8 | C35: 100 | D35: 9 | E35: 237 | F35: =C35*D35 -> 900 | G35: 900 | H35: =C35*SQRT(360)/(D35-1) -> 237.2 | I35: =C35 -> 100 | J35: =D35 -> 9 | K35: 0 | L35: 0 | M35: 900 | N35: 0% | O35: 81,667
A36: built_t | B36: =CONCATENATE("T ",C36," x ",D36, ", ",E36," x ",F36) -> T 80 x 7, 50 x 7 | C36: 80 | D36: 7 | E36: =C36/2+10 -> 50 | F36: =D36 -> 7 | G36: 560 | H36: =C36*SQRT(360)/(D36-1) -> 253.0 | I36: =C36 -> 80 | J36: =D36 -> 7 | K36: =E36 -> 50 | L36: =F36 -> 7 | M36: =I36*J36+K36*L36 -> 910 | N36: 1% | O36: 68,800
A37: HP | B37: HP 120*6.0 | C37: 120 | D37: 6 | E37: 23 | G37: 720 | H37: =C37*SQRT(360)/D37 -> 379.5 | I37: 107.42 | J37: 6 | K37: 23 | L37: 12.58 | M37: 934 | N37: 3% | O37: 109,187
A38: half_I | B38: IPE 180 A_half | C38: 177 | D38: 4.3 | E38: 91 | F38: 6.5 | G38: 761.1 | H38: =C38*SQRT(360)/D38 -> 781.0 | I38: 82 | J38: 4.3 | K38: 91 | L38: 6.5 | M38: 944 | N38: 1% | O38: 81,981
A39: L | B39: L 65*9.0*50*9.0 | C39: 65 | D39: 9 | E39: 50 | F39: 9 | G39: 585 | H39: =C39*SQRT(360)/D39 -> 137.0 | I39: 56 | J39: 9 | K39: 50 | L39: 9 | M39: 954 | N39: 1% | O39: 42,411
A40: built_t | B40: =CONCATENATE("T ",C40," x ",D40, ", ",E40," x ",F40) -> T 100 x 6, 60 x 6 | C40: 100 | D40: 6 | E40: =C40/2+10 -> 60 | F40: =D40 -> 6 | G40: 600 | H40: =C40*SQRT(360)/(D40-1) -> 379.5 | I40: =C40 -> 100 | J40: =D40 -> 6 | K40: =E40 -> 60 | L40: =F40 -> 6 | M40: =I40*J40+K40*L40 -> 960 | N40: 1% | O40: 100,667
A41: half_I | B41: IPE 160_half | C41: 160 | D41: 5 | E41: 82 | F41: 7.4 | G41: 800 | H41: =C41*SQRT(360)/D41 -> 607.2 | I41: 72.6 | J41: 5 | K41: 82 | L41: 7.4 | M41: 970 | N41: 1% | O41: 68,900
A42: HP | B42: HP 100*8.0 | C42: 100 | D42: 8 | E42: 23.5 | G42: 800 | H42: =C42*SQRT(360)/D42 -> 237.2 | I42: 88.53 | J42: 8 | K42: 23.5 | L42: 11.47 | M42: 978 | N42: 1% | O42: 78,609
A43: flat | B43: F 100 x 9 | C43: 100 | D43: 10 | E43: 211 | F43: =C43*D43 -> 1000 | G43: 1000 | H43: =C43*SQRT(360)/(D43-1) -> 210.8 | I43: =C43 -> 100 | J43: =D43 -> 10 | K43: 0 | L43: 0 | M43: 1000 | N43: 2% | O43: 83,333
A44: cropped_I | B44: IPE 160 A_cropped | C44: 157 | D44: 4 | E44: 82 | F44: 5.9 | G44: 628 | H44: =C44*SQRT(360)/D44 -> 744.7 | I44: 138.2 | J44: 4 | K44: 82 | L44: 5.9 | M44: 1037 | N44: 4% | O44: 184,635
A45: built_t | B45: =CONCATENATE("T ",C45," x ",D45, ", ",E45," x ",F45) -> T 80 x 8, 50 x 8 | C45: 80 | D45: 8 | E45: =C45/2+10 -> 50 | F45: =D45 -> 8 | G45: 640 | H45: =C45*SQRT(360)/(D45-1) -> 216.8 | I45: =C45 -> 80 | J45: =D45 -> 8 | K45: =E45 -> 50 | L45: =F45 -> 8 | M45: =I45*J45+K45*L45 -> 1040 | N45: 0% | O45: 72,533
A46: L | B46: L 75*9.0*50*9.0 | C46: 75 | D46: 9 | E46: 50 | F46: 9 | G46: 675 | H46: =C46*SQRT(360)/D46 -> 158.1 | I46: 66 | J46: 9 | K46: 50 | L46: 9 | M46: 1044 | N46: 0% | O46: 55,374
A47: HP | B47: HP 120*7.0 | C47: 120 | D47: 7 | E47: 24 | G47: 840 | H47: 325.3 | I47: 107.42 | J47: 7 | K47: 24 | L47: 12.58 | M47: 1054 | N47: 1% | O47: 112,011
A48: cropped_I | B48: IPE 140_cropped | C48: 140 | D48: 4.7 | E48: 73 | F48: 6.9 | G48: 658 | H48: 565.2 | I48: 119.2 | J48: 4.7 | K48: 73 | L48: 6.9 | M48: 1064 | N48: 1% | O48: 145,882
A49: L | B49: L 75*9.0*55*9.0 | C49: 75 | D49: 9 | E49: 55 | F49: 9 | G49: 675 | H49: 158.1 | I49: 66 | J49: 9 | K49: 55 | L49: 9 | M49: 1089 | N49: 2% | O49: 57,354
A50: half_I | B50: IPE 160 R_half | C50: 162 | D50: 5.6 | E50: 81 | F50: 8.5 | G50: 907.2 | H50: 548.9 | I50: 72.5 | J50: 5.6 | K50: 81 | L50: 8.5 | M50: 1095 | N50: 1% | O50: 73,225
A51: L | B51: L 100 x 65 x 7 | C51: 100 | D51: 7 | E51: 65 | F51: 7 | G51: 700 | H51: 271.1 | I51: 93 | J51: 7 | K51: 65 | L51: 7 | M51: 1106 | N51: 1% | O51: 95,961
A52: HP | B52: HP 140*6.0 | C52: 140 | D52: 6 | E52: 25 | G52: 840 | H52: 442.7 | I52: 125.94 | J52: 6 | K52: 25 | L52: 14.06 | M52: 1107 | N52: 0% | O52: 151,112
A53: built_t | B53: =CONCATENATE("T ",C53," x ",D53, ", ",E53," x ",F53) -> T 100 x 7, 60 x 7 | C53: 100 | D53: 7 | E53: =C53/2+10 -> 60 | F53: =D53 -> 7 | G53: 700 | H53: =C53*SQRT(360)/(D53-1) -> 316.2 | I53: =C53 -> 100 | J53: 7 | K53: 60 | L53: 7 | M53: =I53*J53+K53*L53 -> 1120 | N53: 1% | O53: 106,333
A54: built_t | B54: =CONCATENATE("T ",C54," x ",D54, ", ",E54," x ",F54) -> T 120 x 6, 70 x 6 | C54: 120 | D54: 6 | E54: =C54/2+10 -> 70 | F54: =D54 -> 6 | G54: 720 | H54: =C54*SQRT(360)/(D54-1) -> 455.4 | I54: 120 | J54: 6 | K54: 70 | L54: 6 | M54: =I54*J54+K54*L54 -> 1140 | N54: 2% | O54: 144,000
A55: half_I | B55: IPE 180_half | C55: 180 | D55: 5.3 | E55: 91 | F55: 8 | G55: 954 | H55: =C55*SQRT(360)/D55 -> 644.4 | I55: 82 | J55: 5.3 | K55: 91 | L55: 8 | M55: 1163 | N55: 2% | O55: 90,564
A56: built_t | B56: =CONCATENATE("T ",C56," x ",D56, ", ",E56," x ",F56) -> T 80 x 9, 50 x 9 | C56: 80 | D56: 9 | E56: =C56/2+10 -> 50 | F56: =D56 -> 9 | G56: 720 | H56: =C56*SQRT(360)/(D56-1) -> 189.7 | I56: =C56 -> 80 | J56: =D56 -> 9 | K56: =E56 -> 50 | L56: =F56 -> 9 | M56: =I56*J56+K56*L56 -> 1170 | N56: 1% | O56: 76,267
A57: HP | B57: HP 120*8.0 | C57: 120 | D57: 8 | E57: 25 | G57: 960 | H57: =C57*SQRT(360)/D57 -> 284.6 | I57: 107.42 | J57: 8 | K57: 25 | L57: 12.58 | M57: 1174 | N57: 0% | O57: 114,835
A58: cropped_I | B58: IPE 140 R_cropped | C58: 142 | D58: 5.3 | E58: 72 | F58: 7.8 | G58: 752.6 | H58: =C58*SQRT(360)/D58 -> 508.4 | I58: 117.4 | J58: 5.3 | K58: 72 | L58: 7.8 | M58: 1184 | N58: 1% | O58: 148,014
A59: flat | B59: F 120 x 9 | C59: 120 | D59: 10 | E59: 253 | F59: =C59*D59 -> 1200 | G59: 1200 | H59: =C59*SQRT(360)/(D59-1) -> 253.0 | I59: =C59 -> 120 | J59: =D59 -> 10 | K59: 0 | L59: 0 | M59: 1200 | N59: 1% | O59: 120,000
A60: HP | B60: HP 140*7.0 | C60: 140 | D60: 7 | E60: 26 | G60: 980 | H60: =C60*SQRT(360)/D60 -> 379.5 | I60: 125.94 | J60: 7 | K60: 26 | L60: 14.06 | M60: 1247 | N60: 4% | O60: 154,936
A61: L | B61: L 100 x 65 x 8 | C61: 100 | D61: 8 | E61: 65 | F61: 8 | G61: 800 | H61: =C61*SQRT(360)/D61 -> 237.2 | I61: 92 | J61: 8 | K61: 65 | L61: 8 | M61: 1256 | N61: 1% | O61: 99,605
A62: cropped_I | B62: IPE 180 A_cropped | C62: 177 | D62: 4.3 | E62: 91 | F62: 6.5 | G62: 761.1 | H62: =C62*SQRT(360)/D62 -> 781.0 | I62: 155 | J62: 4.3 | K62: 91 | L62: 6.5 | M62: 1258 | N62: 0% | O62: 238,506
A63: built_t | B63: =CONCATENATE("T ",C63," x ",D63, ", ",E63," x ",F63) -> T 100 x 8, 60 x 8 | C63: 100 | D63: 8 | E63: =C63/2+10 -> 60 | F63: =D63 -> 8 | G63: 800 | H63: =C63*SQRT(360)/(D63-1) -> 271.1 | I63: =C63 -> 100 | J63: =D63 -> 8 | K63: =E63 -> 60 | L63: =F63 -> 8 | M63: =I63*J63+K63*L63 -> 1280 | N63: 2% | O63: 112,000
A64: cropped_I | B64: IPE 160_cropped | C64: 160 | D64: 5 | E64: 82 | F64: 7.4 | G64: 800 | H64: =C64*SQRT(360)/D64 -> 607.2 | I64: 136.2 | J64: 5 | K64: 82 | L64: 7.4 | M64: 1288 | N64: 1% | O64: 194,226
A65: built_t | B65: =CONCATENATE("T ",C65," x ",D65, ", ",E65," x ",F65) -> T 80 x 10, 50 x 10 | C65: 80 | D65: 10 | E65: =C65/2+10 -> 50 | F65: =D65 -> 10 | G65: 800 | H65: =C65*SQRT(360)/(D65-1) -> 168.7 | I65: =C65 -> 80 | J65: 10 | K65: 50 | L65: 10 | M65: =I65*J65+K65*L65 -> 1300 | N65: 1% | O65: 80,000
A66: built_t | B66: =CONCATENATE("T ",C66," x ",D66, ", ",E66," x ",F66) -> T 140 x 6, 80 x 6 | C66: 140 | D66: 6 | E66: =C66/2+10 -> 80 | F66: =D66 -> 6 | G66: 840 | H66: =C66*SQRT(360)/(D66-1) -> 531.3 | I66: 140 | J66: 6 | K66: 80 | L66: 6 | M66: =I66*J66+K66*L66 -> 1320 | N66: 2% | O66: 195,067
A67: flat | B67: F 120 x 10 | C67: 120 | D67: 11 | E67: 228 | F67: =C67*D67 -> 1320 | G67: 1320 | H67: =C67*SQRT(360)/(D67-1) -> 227.7 | I67: =C67 -> 120 | J67: =D67 -> 11 | K67: 0 | L67: 0 | M67: 1320 | N67: 0% | O67: 122,400
A68: half_I | B68: IPE 180 O_half | C68: 182 | D68: 6 | E68: 92 | F68: 9 | G68: 1092 | H68: =C68*SQRT(360)/D68 -> 575.5 | I68: 82 | J68: 6 | K68: 92 | L68: 9 | M68: 1320 | N68: =M68/M67-1 -> 0% | O68: 96,815
A69: built_t | B69: =CONCATENATE("T ",C69," x ",D69, ", ",E69," x ",F69) -> T 120 x 7, 70 x 7 | C69: 120 | D69: 7 | E69: =C69/2+10 -> 70 | F69: =D69 -> 7 | G69: =C69*D69 -> 840 | H69: =C69*SQRT(360)/(D69-1) -> 379.5 | I69: =C69 -> 120 | J69: =D69 -> 7 | K69: =E69 -> 70 | L69: =F69 -> 7 | M69: =I69*J69+K69*L69 -> 1330 | N69: 1% | O69: 152,000
A70: L | B70: L 100 x 75 x 8 | C70: 100 | D70: 8 | E70: 75 | F70: 8 | G70: 800 | H70: =C70*SQRT(360)/D70 -> 237.2 | I70: 92 | J70: 8 | K70: 75 | L70: 8 | M70: 1336 | N70: 0% | O70: 104,512
A71: L | B71: L 80*10.0*65*10.0 | C71: 80 | D71: 10 | E71: 65 | F71: 10 | G71: 800 | H71: 151.8 | I71: 70 | J71: 10 | K71: 65 | L71: 10 | M71: 1350 | N71: 1% | O71: 71,167
A72: half_I | B72: IPE 200_half | C72: 200 | D72: 5.6 | E72: 100 | F72: 8.5 | G72: 1120 | H72: 677.6 | I72: 91.5 | J72: 5.6 | K72: 100 | L72: 8.5 | M72: 1362 | N72: 1% | O72: 115,479
A73: half_I | B73: IPE 180 R_half | C73: 183 | D73: 6.4 | E73: 89 | F73: 9.5 | G73: 1171.2 | H73: 542.5 | I73: 82 | J73: 6.4 | K73: 89 | L73: 9.5 | M73: 1370 | N73: 1% | O73: 98,220
A74: HP | B74: HP 140*8.0 | C74: 140 | D74: 8 | E74: 27 | G74: 1120 | H74: 332.0 | I74: 125.94 | J74: 8 | K74: 27 | L74: 14.06 | M74: 1387 | N74: 1% | O74: 158,760
A75: L | B75: L 100*10.0*50*10.0 | C75: 100 | D75: 10 | E75: 50 | F75: 10 | G75: 1000 | H75: 189.7 | I75: 90 | J75: 10 | K75: 50 | L75: 10 | M75: 1400 | N75: 1% | O75: 97,500
A76: L | B76: L 100*9.0*65*9.0 | C76: 100 | D76: 9 | E76: 65 | F76: 9 | G76: 900 | H76: 210.8 | I76: 91 | J76: 9 | K76: 65 | L76: 9 | M76: 1404 | N76: 0% | O76: 103,118
A77: flat | B77: F 120 x 11 | C77: 120 | D77: 12 | E77: 207 | F77: =C77*D77 -> 1440 | G77: 1440 | H77: =C77*SQRT(360)/(D77-1) -> 207.0 | I77: =C77 -> 120 | J77: =D77 -> 12 | K77: 0 | L77: 0 | M77: 1440 | N77: 3% | O77: 124,800
A78: cropped_I | B78: IPE 160 R_cropped | C78: 162 | D78: 5.6 | E78: 81 | F78: 8.5 | G78: 907.2 | H78: =C78*SQRT(360)/D78 -> 548.9 | I78: 136 | J78: 5.6 | K78: 81 | L78: 8.5 | M78: 1450 | N78: 1% | O78: 202,994
A79: HP | B79: HP 160*7.0 | C79: 160 | D79: 7 | E79: 29 | G79: 1120 | H79: =C79*SQRT(360)/D79 -> 433.7 | I79: 143.72 | J79: 7 | K79: 29 | L79: 16.28 | M79: 1478 | N79: 2% | O79: 207,036
A80: L | B80: L 100*9.0*75*9.0 | C80: 100 | D80: 9 | E80: 75 | F80: 9 | G80: 900 | H80: =C80*SQRT(360)/D80 -> 210.8 | I80: 91 | J80: 9 | K80: 75 | L80: 9 | M80: 1494 | N80: 1% | O80: 108,578
A81: built_t | B81: =CONCATENATE("T ",C81," x ",D81, ", ",E81," x ",F81) -> T 160 x 6, 90 x 6 | C81: 160 | D81: 6 | E81: =C81/2+10 -> 90 | F81: =D81 -> 6 | G81: 960 | H81: =C81*SQRT(360)/(D81-1) -> 607.2 | I81: =C81 -> 160 | J81: 6 | K81: 90 | L81: 6 | M81: =I81*J81+K81*L81 -> 1500 | N81: 0% | O81: 253,867
A82: built_t | B82: =CONCATENATE("T ",C82," x ",D82, ", ",E82," x ",F82) -> T 120 x 8, 70 x 8 | C82: 120 | D82: 8 | E82: =C82/2+10 -> 70 | F82: =D82 -> 8 | G82: 960 | H82: =C82*SQRT(360)/(D82-1) -> 325.3 | I82: 120 | J82: 8 | K82: 70 | L82: 8 | M82: =I82*J82+K82*L82 -> 1520 | N82: 1% | O82: 160,000
A83: HP | B83: HP 140*9.0 | C83: 140 | D83: 9 | E83: 28 | G83: 1260 | H83: =C83*SQRT(360)/D83 -> 295.1 | I83: 125.94 | J83: 9 | K83: 28 | L83: 14.06 | M83: 1527 | N83: 0% | O83: 162,584
A84: L | B84: L 120 x 80 x 8 | C84: 120 | D84: 8 | E84: 80 | F84: 8 | G84: 960 | H84: =C84*SQRT(360)/D84 -> 284.6 | I84: 112 | J84: 8 | K84: 80 | L84: 8 | M84: 1536 | N84: 1% | O84: 148,139
A85: L | B85: L 125 x 75 x 8 | C85: 125 | D85: 8 | E85: 75 | F85: 8 | G85: 1000 | H85: =C85*SQRT(360)/D85 -> 296.5 | I85: 117 | J85: 8 | K85: 75 | L85: 8 | M85: 1536 | N85: 0% | O85: 156,312
A86: half_I | B86: IPE 200 O_half | C86: 202 | D86: 6.2 | E86: 102 | F86: 9.5 | G86: 1252.4 | H86: =C86*SQRT(360)/D86 -> 618.2 | I86: 91.5 | J86: 6.2 | K86: 102 | L86: 9.5 | M86: 1536 | N86: 0% | O86: =1/6*I86*(4*K86*L86+J86*I86+40*I86) -> 123,575
A87: built_t | B87: =CONCATENATE("T ",C87," x ",D87, ", ",E87," x ",F87) -> T 140 x 7, 80 x 7 | C87: 140 | D87: 7 | E87: =C87/2+10 -> 80 | F87: =D87 -> 7 | G87: 980 | H87: =C87*SQRT(360)/(D87-1) -> 442.7 | I87: =C87 -> 140 | J87: =D87 -> 7 | K87: =E87 -> 80 | L87: =F87 -> 7 | M87: =I87*J87+K87*L87 -> 1540 | N87: 0% | O87: 205,800
A88: flat | B88: F 140 x 10 | C88: 140 | D88: 11 | E88: 266 | F88: =C88*D88 -> 1540 | G88: 1540 | H88: =C88*SQRT(360)/(D88-1) -> 265.6 | I88: =C88 -> 140 | J88: =D88 -> 11 | K88: 0 | L88: 0 | M88: 1540 | N88: 0% | O88: 166,600
A89: cropped_I | B89: IPE 180_cropped | C89: 180 | D89: 5.3 | E89: 91 | F89: 8 | G89: 954 | H89: =C89*SQRT(360)/D89 -> 644.4 | I89: 155 | J89: 5.3 | K89: 91 | L89: 8 | M89: 1550 | N89: 1% | O89: 256,615
A90: half_I | B90: IPE 220_half | C90: 220 | D90: 5.9 | E90: 110 | F90: 9.2 | G90: 1298 | H90: =C90*SQRT(360)/D90 -> 707.5 | I90: 100.8 | J90: 5.9 | K90: 110 | L90: 9.2 | M90: 1607 | N90: 4% | O90: 145,735
A91: half_I | B91: IPE 200 R_half | C91: 204 | D91: 6.6 | E91: 98 | F91: 10.5 | G91: 1346.4 | H91: =C91*SQRT(360)/D91 -> 586.5 | I91: 91.5 | J91: 6.6 | K91: 98 | L91: 10.5 | M91: 1633 | N91: 2% | O91: 127,793
A92: HP | B92: HP 160*8.0 | C92: 160 | D92: 8 | E92: 30 | G92: 1280 | H92: =C92*SQRT(360)/D92 -> 379.5 | I92: 143.72 | J92: 8 | K92: 30 | L92: 16.28 | M92: 1638 | N92: 0% | O92: 212,039
A93: L | B93: L 100 x 75 x 10 | C93: 100 | D93: 10 | E93: 75 | F93: 10 | G93: 1000 | H93: =C93*SQRT(360)/D93 -> 189.7 | I93: 90 | J93: 10 | K93: 75 | L93: 10 | M93: 1650 | N93: 1% | O93: 112,500
A94: flat | B94: F 140 x 11 | C94: 140 | D94: 12 | E94: 241 | F94: =C94*D94 -> 1680 | G94: 1680 | H94: =C94*SQRT(360)/(D94-1) -> 241.5 | I94: =C94 -> 140 | J94: =D94 -> 12 | K94: 0 | L94: 0 | M94: 1680 | N94: 2% | O94: 169,867
A95: L | B95: L 100*11.0*65*11.0 | C95: 100 | D95: 11 | E95: 65 | F95: 11 | G95: 1100 | H95: =C95*SQRT(360)/D95 -> 172.5 | I95: 89 | J95: 11 | K95: 65 | L95: 11 | M95: 1694 | N95: 1% | O95: 109,752
A96: built_t | B96: =CONCATENATE("T ",C96," x ",D96, ", ",E96," x ",F96) -> T 160 x 7, 90 x 7 | C96: 160 | D96: 7 | E96: =C96/2+10 -> 90 | F96: =D96 -> 7 | G96: 1120 | H96: =C96*SQRT(360)/(D96-1) -> 506.0 | I96: =C96 -> 160 | J96: =D96 -> 7 | K96: =E96 -> 90 | L96: =F96 -> 7 | M96: =I96*J96+K96*L96 -> 1750 | N96: 3% | O96: 267,733
A97: cropped_I | B97: IPE 180 O_cropped | C97: 182 | D97: 6 | E97: 92 | F97: 9 | G97: 1092 | H97: =C97*SQRT(360)/D97 -> 575.5 | I97: 155 | J97: 6 | K97: 92 | L97: 9 | M97: 1758 | N97: 0% | O97: 269,752
A98: built_t | B98: =CONCATENATE("T ",C98," x ",D98, ", ",E98," x ",F98) -> T 140 x 8, 80 x 8 | C98: 140 | D98: 8 | E98: =C98/2+10 -> 80 | F98: =D98 -> 8 | G98: 1120 | H98: =C98*SQRT(360)/(D98-1) -> 379.5 | I98: =C98 -> 140 | J98: =D98 -> 8 | K98: =E98 -> 80 | L98: =F98 -> 8 | M98: =I98*J98+K98*L98 -> 1760 | N98: 0% | O98: 216,533
A99: HP | B99: HP 160*9.0 | C99: 160 | D99: 9 | E99: 31 | G99: 1440 | H99: =C99*SQRT(360)/D99 -> 337.3 | I99: 143.72 | J99: 9 | K99: 31 | L99: 16.28 | M99: 1798 | N99: 2% | O99: 217,041
A100: L | B100: L 100*11.0*75*11.0 | C100: 100 | D100: 11 | E100: 75 | F100: 11 | G100: 1100 | H100: =C100*SQRT(360)/D100 -> 172.5 | I100: 89 | J100: 11 | K100: 75 | L100: 11 | M100: 1804 | N100: 0% | O100: 116,279
A101: cropped_I | B101: IPE 200_cropped | C101: 200 | D101: 5.6 | E101: 100 | F101: 8.5 | G101: 1120 | H101: =C101*SQRT(360)/D101 -> 677.6 | I101: 171 | J101: 5.6 | K101: 100 | L101: 8.5 | M101: 1808 | N101: 0% | O101: 319,132
A102: half_I | B102: IPE 220 O_half | C102: 222 | D102: 6.6 | E102: 112 | F102: 10.2 | G102: 1465.2 | H102: =C102*SQRT(360)/D102 -> 638.2 | I102: 100.8 | J102: 6.6 | K102: 112 | L102: 10.2 | M102: 1808 | N102: 0% | O102: 155,684
A103: cropped_I | B103: IPE 180 R_cropped | C103: 183 | D103: 6.4 | E103: 89 | F103: 9.5 | G103: 1171.2 | H103: =C103*SQRT(360)/D103 -> 542.5 | I103: 152 | J103: 6.4 | K103: 89 | L103: 9.5 | M103: 1818 | N103: 1% | O103: 264,348
A104: flat | B104: F 140 x 12 | C104: 140 | D104: 13 | E104: 221 | F104: =C104*D104 -> 1820 | G104: 1820 | H104: =C104*SQRT(360)/(D104-1) -> 221.4 | I104: =C104 -> 140 | J104: =D104 -> 13 | K104: 0 | L104: 0 | M104: 1820 | N104: 0% | O104: 173,133
A105: L | B105: L 130*10.0*65*10.0 | C105: 130 | D105: 10 | E105: 65 | F105: 10 | G105: 1300 | H105: =C105*SQRT(360)/D105 -> 246.7 | I105: 120 | J105: 10 | K105: 65 | L105: 10 | M105: 1850 | N105: 2% | O105: 172,000
A106: half_I | B106: IPE 240_half | C106: 240 | D106: 6.2 | E106: 120 | F106: 9.8 | G106: 1488 | H106: =C106*SQRT(360)/D106 -> 734.5 | I106: 110.2 | J106: 6.2 | K106: 120 | L106: 9.8 | M106: 1859 | N106: 0% | O106: 179,906
A107: L | B107: L 120*10.0*80*10.0 | C107: 120 | D107: 10 | E107: 80 | F107: 10 | G107: 1200 | H107: =C107*SQRT(360)/D107 -> 227.7 | I107: 110 | J107: 10 | K107: 80 | L107: 10 | M107: 1900 | N107: 2% | O107: 159,500
A108: L | B108: L 125 x 75 x 10 | C108: 125 | D108: 10 | E108: 75 | F108: 10 | G108: 1250 | H108: =C108*SQRT(360)/D108 -> 237.2 | I108: 115 | J108: 10 | K108: 75 | L108: 10 | M108: 1900 | N108: 0% | O108: 167,708
A109: HP | B109: HP 180*8.0 | C109: 180 | D109: 8 | E109: 33 | G109: 1440 | H109: =C109*SQRT(360)/D109 -> 426.9 | I109: 161.5 | J109: 8 | K109: 33 | L109: 18.5 | M109: 1903 | N109: 0% | O109: 274,389
A110: flat | B110: F 140 x 13 | C110: 160 | D110: 12 | E110: 276 | F110: =C110*D110 -> 1920 | G110: 1920 | H110: =C110*SQRT(360)/(D110-1) -> 276.0 | I110: =C110 -> 160 | J110: =D110 -> 12 | K110: 0 | L110: 0 | M110: 1920 | N110: 1% | O110: 221,867
A111: L | B111: L 150*9.0*75*9.0 | C111: 150 | D111: 9 | E111: 75 | F111: 9 | G111: 1350 | H111: =C111*SQRT(360)/D111 -> 316.2 | I111: 141 | J111: 9 | K111: 75 | L111: 9 | M111: 1944 | N111: 1% | O111: 225,812
A112: half_I | B112: IPE 220 R_half | C112: 225 | D112: 6.7 | E112: 108 | F112: 11.8 | G112: 1507.5 | H112: =C112*SQRT(360)/D112 -> 637.2 | I112: 100.7 | J112: 6.7 | K112: 108 | L112: 11.8 | M112: 1949 | N112: 0% | O112: 164,482
A113: L | B113: L 130*10.0*75*10.0 | C113: 130 | D113: 10 | E113: 75 | F113: 10 | G113: 1300 | H113: =C113*SQRT(360)/D113 -> 246.7 | I113: 120 | J113: 10 | K113: 75 | L113: 10 | M113: 1950 | N113: 0% | O113: 180,000
A114: L | B114: L 100 x 75 x 12 | C114: 100 | D114: 12 | E114: 75 | F114: 12 | G114: 1200 | H114: =C114*SQRT(360)/D114 -> 158.1 | I114: 88 | J114: 12 | K114: 75 | L114: 12 | M114: 1956 | N114: 0% | O114: 119,915
A115: built_t | B115: =CONCATENATE("T ",C115," x ",D115, ", ",E115," x ",F115) -> T 180 x 7, 100 x 7 | C115: 180 | D115: 7 | E115: =C115/2+10 -> 100 | F115: =D115 -> 7 | G115: 1260 | H115: =C115*SQRT(360)/(D115-1) -> 569.2 | I115: =C115 -> 180 | J115: =D115 -> 7 | K115: =E115 -> 100 | L115: =F115 -> 7 | M115: =I115*J115+K115*L115 -> 1960 | N115: 0% | O115: 337,800
A116: flat | B116: F 160 x 11 | C116: 140 | D116: 14 | E116: 204 | F116: =C116*D116 -> 1960 | G116: 1960 | H116: =C116*SQRT(360)/(D116-1) -> 204.3 | I116: =C116 -> 140 | J116: 14 | K116: 0 | L116: 0 | M116: 1960 | N116: 0% | O116: 176,400
A117: built_t | B117: =CONCATENATE("T ",C117," x ",D117, ", ",E117," x ",F117) -> T 140 x 9, 80 x 9 | C117: 140 | D117: 9 | E117: =C117/2+10 -> 80 | F117: =D117 -> 9 | G117: 1260 | H117: =C117*SQRT(360)/(D117-1) -> 332.0 | I117: 140 | J117: 9 | K117: =E117 -> 80 | L117: =F117 -> 9 | M117: =I117*J117+K117*L117 -> 1980 | N117: 1% | O117: 227,267
A118: built_t | B118: =CONCATENATE("T ",C118," x ",D118, ", ",E118," x ",F118) -> T 160 x 8, 90 x 8 | C118: 160 | D118: 8 | E118: =C118/2+10 -> 90 | F118: =D118 -> 8 | G118: 1280 | H118: =C118*SQRT(360)/(D118-1) -> 433.7 | I118: 160 | J118: 8 | K118: =E118 -> 90 | L118: =F118 -> 8 | M118: =I118*J118+K118*L118 -> 2000 | N118: 1% | O118: 281,600
A119: cropped_I | B119: IPE 200 O_cropped | C119: 202 | D119: 6.2 | E119: 102 | F119: 9.5 | G119: 1252.4 | H119: =C119*SQRT(360)/D119 -> 618.2 | I119: 171 | J119: 6.2 | K119: 102 | L119: 9.5 | M119: 2029 | N119: 1% | O119: 335,622
A120: flat | B120: F 160 x 12 | C120: 160 | D120: 13 | E120: 253 | F120: =C120*D120 -> 2080 | G120: 2080 | H120: =C120*SQRT(360)/(D120-1) -> 253.0 | I120: =C120 -> 160 | J120: =D120 -> 13 | K120: 0 | L120: 0 | M120: 2080 | N120: 3% | O120: 226,133
A121: HP | B121: HP 180*9.0 | C121: 180 | D121: 9 | E121: 34 | G121: 1620 | H121: =C121*SQRT(360)/D121 -> 379.5 | I121: 161.5 | J121: 9 | K121: 34 | L121: 18.5 | M121: 2083 | N121: 0% | O121: 280,727
A122: half_I | B122: IPE 240 O_half | C122: 242 | D122: 7 | E122: 122 | F122: 10.8 | G122: 1694 | H122: 655.9 | I122: 110.2 | J122: 7 | K122: 122 | L122: 10.8 | M122: 2089 | N122: 0% | O122: 191,928
A123: L | B123: L 130*10.0*90*10.0 | C123: 130 | D123: 10 | E123: 90 | F123: 10 | G123: 1300 | H123: 246.7 | I123: 120 | J123: 10 | K123: 90 | L123: 10 | M123: 2100 | N123: 1% | O123: 192,000
A124: cropped_I | B124: IPE 220_cropped | C124: 220 | D124: 5.9 | E124: 110 | F124: 9.2 | G124: 1298 | H124: 707.5 | I124: 189.6 | J124: 5.9 | K124: 110 | L124: 9.2 | M124: 2131 | N124: 1% | O124: 402,920
A125: L | B125: L 150 x 75 x 10 | C125: 150 | D125: 10 | E125: 75 | F125: 10 | G125: 1500 | H125: 284.6 | I125: 140 | J125: 10 | K125: 75 | L125: 10 | M125: 2150 | N125: 1% | O125: 233,333
A126: cropped_I | B126: IPE 200 R_cropped | C126: 204 | D126: 6.6 | E126: 98 | F126: 10.5 | G126: 1346.4 | H126: 586.5 | I126: 171 | J126: 6.6 | K126: 98 | L126: 10.5 | M126: 2158 | N126: 0% | O126: 344,411
A127: built_t | B127: =CONCATENATE("T ",C127," x ",D127, ", ",E127," x ",F127) -> T 200 x 7, 110 x 7 | C127: 200 | D127: 7 | E127: =C127/2+10 -> 110 | F127: =D127 -> 7 | G127: 1400 | H127: =C127*SQRT(360)/(D127-1) -> 632.5 | I127: =C127 -> 200 | J127: =D127 -> 7 | K127: =E127 -> 110 | L127: =F127 -> 7 | M127: =I127*J127+K127*L127 -> 2170 | N127: 1% | O127: 416,000
A128: L | B128: L 130*12.0*65*12.0 | C128: 130 | D128: 12 | E128: 65 | F128: 12 | G128: 1560 | H128: =C128*SQRT(360)/D128 -> 205.5 | I128: 118 | J128: 12 | K128: 65 | L128: 12 | M128: 2196 | N128: 1% | O128: 182,035
A129: half_I | B129: IPE 270_half | C129: 270 | D129: 6.6 | E129: 135 | F129: 10.2 | G129: 1782 | H129: =C129*SQRT(360)/D129 -> 776.2 | I129: 124.8 | J129: 6.6 | K129: 135 | L129: 10.2 | M129: 2201 | N129: 0% | O129: 235,533
A130: flat | B130: F 160 x 13 | C130: 160 | D130: 14 | E130: 234 | F130: =C130*D130 -> 2240 | G130: 2240 | H130: =C130*SQRT(360)/(D130-1) -> 233.5 | I130: =C130 -> 160 | J130: =D130 -> 14 | K130: 0 | L130: 0 | M130: 2240 | N130: 2% | O130: 230,400
A131: L | B131: L 120*12.0*80*12.0 | C131: 120 | D131: 12 | E131: 80 | F131: 12 | G131: 1440 | H131: =C131*SQRT(360)/D131 -> 189.7 | I131: 108 | J131: 12 | K131: 80 | L131: 12 | M131: 2256 | N131: 1% | O131: 170,208
A132: L | B132: L 125 x 75 x 12 | C132: 125 | D132: 12 | E132: 75 | F132: 12 | G132: 1500 | H132: 197.6 | I132: 113 | J132: 12 | K132: 75 | L132: 12 | M132: 2256 | N132: =M132/M131-1 -> 0% | O132: 178,465
A133: HP | B133: HP 180*10.0 | C133: 180 | D133: 10 | E133: 35 | G133: =C133*D133 -> 1800 | H133: 341.5 | I133: 161.5 | J133: 10 | K133: 35 | L133: 18.5 | M133: 2263 | N133: 0% | O133: 287,066
A134: half_I | B134: IPE 240 R_half | C134: 245 | D134: 7.5 | E134: 118 | F134: 12.3 | G134: 1837.5 | H134: 619.8 | I134: 110.2 | J134: 7.5 | K134: 118 | L134: 12.3 | M134: 2278 | N134: 1% | O134: 202,770
A135: L | B135: L 150*10.0*90*10.0 | C135: 150 | D135: 10 | E135: 90 | F135: 10 | G135: 1500 | H135: 284.6 | I135: 140 | J135: 10 | K135: 90 | L135: 10 | M135: 2300 | N135: 1% | O135: 247,333
A136: L | B136: L 160*10.0*80*10.0 | C136: 160 | D136: 10 | E136: 80 | F136: 10 | G136: 1600 | H136: 303.6 | I136: 150 | J136: 10 | K136: 80 | L136: 10 | M136: 2300 | N136: 0% | O136: 267,500
A137: L | B137: L 130*12.0*75*12.0 | C137: 130 | D137: 12 | E137: 75 | F137: 12 | G137: 1560 | H137: 205.5 | I137: 118 | J137: 12 | K137: 75 | L137: 12 | M137: 2316 | N137: 1% | O137: 191,475
A138: L | B138: L 150*11.0*75*11.0 | C138: 150 | D138: 11 | E138: 75 | F138: 11 | G138: 1650 | H138: 258.7 | I138: 139 | J138: 11 | K138: 75 | L138: 11 | M138: 2354 | N138: 2% | O138: 240,679
A139: HP | B139: HP 200*9.0 | C139: 200 | D139: 9 | E139: 37 | G139: 1800 | H139: 421.6 | I139: 179.28 | J139: 9 | K139: 37 | L139: 20.72 | M139: 2380 | N139: 1% | O139: 354,116
A140: cropped_I | B140: IPE 220 O_cropped | C140: 222 | D140: 6.6 | E140: 112 | F140: 10.2 | G140: 1465.2 | H140: 638.2 | I140: 189.6 | J140: 6.6 | K140: 112 | L140: 10.2 | M140: 2394 | N140: 1% | O140: 423,597
A141: L | B141: L 150*10.0*100*10.0 | C141: 150 | D141: 10 | E141: 100 | F141: 10 | G141: 1500 | H141: 284.6 | I141: 140 | J141: 10 | K141: 100 | L141: 10 | M141: 2400 | N141: 0% | O141: 256,667
A142: HP | B142: HP 180*11.0 | C142: 180 | D142: 11 | E142: 36 | G142: 1980 | H142: 310.5 | I142: 161.5 | J142: 11 | K142: 36 | L142: 18.5 | M142: 2443 | N142: 2% | O142: 293,405
A143: cropped_I | B143: IPE 240_cropped | C143: 240 | D143: 6.2 | E143: 120 | F143: 9.8 | G143: 1488 | H143: 734.5 | I143: 205.4 | J143: 6.2 | K143: 120 | L143: 9.8 | M143: 2449 | N143: 0% | O143: 485,890
A144: built_t | B144: =CONCATENATE("T ",C144," x ",D144, ", ",E144," x ",F144) -> T 200 x 8, 110 x 8 | C144: 200 | D144: 8 | E144: =C144/2+10 -> 110 | F144: =D144 -> 8 | G144: 1600 | H144: =C144*SQRT(360)/(D144-1) -> 542.1 | I144: =C144 -> 200 | J144: =D144 -> 8 | K144: =E144 -> 110 | L144: =F144 -> 8 | M144: =I144*J144+K144*L144 -> 2480 | N144: 1% | O144: 437,333
A145: L | B145: L 130*12.0*90*12.0 | C145: 130 | D145: 12 | E145: 90 | F145: 12 | G145: 1560 | H145: =C145*SQRT(360)/D145 -> 205.5 | I145: 118 | J145: 12 | K145: 90 | L145: 12 | M145: 2496 | N145: 1% | O145: 205,635
A146: built_t | B146: =CONCATENATE("T ",C146," x ",D146, ", ",E146," x ",F146) -> T 180 x 9, 100 x 9 | C146: 180 | D146: 9 | E146: =C146/2+10 -> 100 | F146: =D146 -> 9 | G146: 1620 | H146: =C146*SQRT(360)/(D146-1) -> 426.9 | I146: =C146 -> 180 | J146: =D146 -> 9 | K146: =E146 -> 100 | L146: =F146 -> 9 | M146: =I146*J146+K146*L146 -> 2520 | N146: 1% | O146: 372,600
A147: flat | B147: F 180 x 13 | C147: 180 | D147: 14 | E147: 263 | F147: =C147*D147 -> 2520 | G147: 2520 | H147: =C147*SQRT(360)/(D147-1) -> 262.7 | I147: =C147 -> 180 | J147: =D147 -> 14 | K147: 0 | L147: 0 | M147: 2520 | N147: 0% | O147: 291,600
A148: cropped_I | B148: IPE 220 R_cropped | C148: 225 | D148: 6.7 | E148: 108 | F148: 11.8 | G148: 1507.5 | H148: =C148*SQRT(360)/D148 -> 637.2 | I148: 186.4 | J148: 6.7 | K148: 108 | L148: 11.8 | M148: 2523 | N148: 0% | O148: 428,797
A149: L | B149: L 150 x 75 x 12 | C149: 150 | D149: 12 | E149: 75 | F149: 12 | G149: 1800 | H149: 237.2 | I149: 138 | J149: 12 | K149: 75 | L149: 12 | M149: 2556 | N149: 1% | O149: 247,848
A150: HP | B150: HP 200*10.0 | C150: 200 | D150: 10 | E150: 38 | G150: 2000 | H150: 379.5 | I150: 179.28 | J150: 10 | K150: 38 | L150: 20.72 | M150: 2580 | N150: 1% | O150: =1/6*I150*(4*K150*L150+J150*I150+40*I150) -> 361,950
A151: half_I | B151: IPE 300_half | C151: 300 | D151: 7.1 | E151: 150 | F151: 10.7 | G151: 2130 | H151: 801.7 | I151: 139.3 | J151: 7.1 | K151: 150 | L151: 10.7 | M151: 2594 | N151: 1% | O151: 301,376
A152: half_I | B152: IPE 270 O_half | C152: 274 | D152: 7.5 | E152: 136 | F152: 12.2 | G152: 2055 | H152: 693.2 | I152: 124.8 | J152: 7.5 | K152: 136 | L152: 12.2 | M152: 2595 | N152: 0% | O152: 261,348
A153: L | B153: L 180*10.0*90*10.0 | C153: 180 | D153: 10 | E153: 90 | F153: 10 | G153: 1800 | H153: 341.5 | I153: 170 | J153: 10 | K153: 90 | L153: 10 | M153: 2600 | N153: 0% | O153: 342,833
A154: L | B154: L 120*14.0*80*14.0 | C154: 120 | D154: 14 | E154: 80 | F154: 14 | G154: 1680 | H154: 162.6 | I154: 106 | J154: 14 | K154: 80 | L154: 14 | M154: 2604 | N154: 0% | O154: 180,271
A155: flat | B155: F 180 x 14 | C155: 180 | D155: 15 | E155: 244 | F155: =C155*D155 -> 2700 | G155: 2700 | H155: =C155*SQRT(360)/(D155-1) -> 243.9 | I155: =C155 -> 180 | J155: =D155 -> 15 | K155: 0 | L155: 0 | M155: 2700 | N155: 4% | O155: 297,000
A156: half_I | B156: IPE 270 R_half | C156: 276 | D156: 7.7 | E156: 133 | F156: 13.1 | G156: 2125.2 | H156: =C156*SQRT(360)/D156 -> 680.1 | I156: 124.9 | J156: 7.7 | K156: 133 | L156: 13.1 | M156: 2704 | N156: 0% | O156: 269,096
A157: built_t | B157: =CONCATENATE("T ",C157," x ",D157, ", ",E157," x ",F157) -> T 220 x 8, 120 x 8 | C157: 220 | D157: 8 | E157: =C157/2+10 -> 120 | F157: =D157 -> 8 | G157: 1760 | H157: =C157*SQRT(360)/(D157-1) -> 596.3 | I157: =C157 -> 220 | J157: =D157 -> 8 | K157: =E157 -> 120 | L157: =F157 -> 8 | M157: =I157*J157+K157*L157 -> 2720 | N157: 1% | O157: 528,000
A158: L | B158: L 150*12.0*90*12.0 | C158: 150 | D158: 12 | E158: 90 | F158: 12 | G158: 1800 | H158: =C158*SQRT(360)/D158 -> 237.2 | I158: 138 | J158: 12 | K158: 90 | L158: 12 | M158: 2736 | N158: 1% | O158: 264,408
A159: L | B159: L 160*12.0*80*12.0 | C159: 160 | D159: 12 | E159: 80 | F159: 12 | G159: 1920 | H159: =C159*SQRT(360)/D159 -> 253.0 | I159: 148 | J159: 12 | K159: 80 | L159: 12 | M159: 2736 | N159: 0% | O159: 284,555
A160: cropped_I | B160: IPE 240 O_cropped | C160: 242 | D160: 7 | E160: 122 | F160: 10.8 | G160: 1694 | H160: =C160*SQRT(360)/D160 -> 655.9 | I160: 205.4 | J160: 7 | K160: 122 | L160: 10.8 | M160: 2755 | N160: 1% | O160: 510,905
A161: HP | B161: HP 200*11.0 | C161: 200 | D161: 11 | E161: 39 | G161: 2200 | H161: =C161*SQRT(360)/D161 -> 345.0 | I161: 179.28 | J161: 11 | K161: 39 | L161: 20.72 | M161: 2780 | N161: 1% | O161: 369,783
A162: built_t | B162: =CONCATENATE("T ",C162," x ",D162, ", ",E162," x ",F162) -> T 200 x 9, 110 x 9 | C162: 200 | D162: 9 | E162: =C162/2+10 -> 110 | F162: =D162 -> 9 | G162: 1800 | H162: =C162*SQRT(360)/(D162-1) -> 474.3 | I162: =C162 -> 200 | J162: =D162 -> 9 | K162: =E162 -> 110 | L162: =F162 -> 9 | M162: =I162*J162+K162*L162 -> 2790 | N162: 0% | O162: 458,667
A163: L | B163: L 200*9.0*90*12.0 | C163: 200 | D163: 9 | E163: 90 | F163: 12 | G163: 1800 | H163: =C163*SQRT(360)/D163 -> 421.6 | I163: 191 | J163: 9 | K163: 90 | L163: 12 | M163: 2799 | N163: 0% | O163: 435,448
A164: built_t | B164: =CONCATENATE("T ",C164," x ",D164, ", ",E164," x ",F164) -> T 180 x 10, 100 x 10 | C164: 180 | D164: 10 | E164: =C164/2+10 -> 100 | F164: =D164 -> 10 | G164: 1800 | H164: =C164*SQRT(360)/(D164-1) -> 379.5 | I164: =C164 -> 180 | J164: =D164 -> 10 | K164: =E164 -> 100 | L164: =F164 -> 10 | M164: =I164*J164+K164*L164 -> 2800 | N164: 0% | O164: 390,000
A165: L | B165: L 150*12.0*100*12.0 | C165: 150 | D165: 12 | E165: 100 | F165: 12 | G165: 1800 | H165: =C165*SQRT(360)/D165 -> 237.2 | I165: 138 | J165: 12 | K165: 100 | L165: 12 | M165: 2856 | N165: 2% | O165: 275,448
A166: flat | B166: F 180 x 15 | C166: 180 | D166: 16 | E166: 228 | F166: =C166*D166 -> 2880 | G166: 2880 | H166: =C166*SQRT(360)/(D166-1) -> 227.7 | I166: =C166 -> 180 | J166: =D166 -> 16 | K166: 0 | L166: 0 | M166: 2880 | N166: 1% | O166: 302,400
A167: HP | B167: HP 200*11.5 | C167: 200 | D167: 11.5 | E167: 39.5 | G167: 2300 | H167: =C167*SQRT(360)/D167 -> 330.0 | I167: 179.28 | J167: 11.5 | K167: 39.5 | L167: 20.72 | M167: 2880 | N167: 0% | O167: 373,700
A168: L | B168: L 200*10.0*100*10.0 | C168: 200 | D168: 10 | E168: 100 | F168: 10 | G168: 2000 | H168: 379.5 | I168: 190 | J168: 10 | K168: 100 | L168: 10 | M168: 2900 | N168: 1% | O168: 427,500
A169: HP | B169: HP 220*10.0 | C169: 220 | D169: 10 | E169: 41 | G169: 2200 | H169: 417.4 | I169: 197.06 | J169: 10 | K169: 41 | L169: 22.94 | M169: 2911 | N169: 0% | O169: 447,167
A170: cropped_I | B170: IPE 270_cropped | C170: 270 | D170: 6.6 | E170: 135 | F170: 10.2 | G170: 1782 | H170: 776.2 | I170: 234.6 | J170: 6.6 | K170: 135 | L170: 10.2 | M170: 2925 | N170: 0% | O170: 642,818
A171: HP | B171: HP 200*12.0 | C171: 200 | D171: 12 | E171: 40 | G171: 2400 | H171: 316.2 | I171: 179.28 | J171: 12 | K171: 40 | L171: 20.72 | M171: 2980 | N171: 2% | O171: 377,616
A172: cropped_I | B172: IPE 240 R_cropped | C172: 245 | D172: 7.5 | E172: 118 | F172: 12.3 | G172: 1837.5 | H172: 619.8 | I172: 205.4 | J172: 7.5 | K172: 118 | L172: 12.3 | M172: 2992 | N172: 0% | O172: 532,743
A173: flat | B173: F 200 x 14 | C173: 200 | D173: 15 | E173: 271 | F173: =C173*D173 -> 3000 | G173: 3000 | H173: =C173*SQRT(360)/(D173-1) -> 271.1 | I173: =C173 -> 200 | J173: =D173 -> 15 | K173: 0 | L173: 0 | M173: 3000 | N173: 0% | O173: 366,667
A174: L | B174: L 225*9.0*90*12.0 | C174: 225 | D174: 9 | E174: 90 | F174: 12 | G174: 2025 | H174: =C174*SQRT(360)/D174 -> 474.3 | I174: 216 | J174: 9 | K174: 90 | L174: 12 | M174: 3024 | N174: 1% | O174: 536,544
A175: half_I | B175: IPE 300 O_half | C175: 304 | D175: 8 | E175: 152 | F175: 12.7 | G175: 2432 | H175: =C175*SQRT(360)/D175 -> 721.0 | I175: 139.3 | J175: 8 | K175: 152 | L175: 12.7 | M175: 3045 | N175: 1% | O175: 334,506
A176: built_t | B176: =CONCATENATE("T ",C176," x ",D176, ", ",E176," x ",F176) -> T 220 x 9, 120 x 9 | C176: 220 | D176: 9 | E176: =C176/2+10 -> 120 | F176: =D176 -> 9 | G176: 1980 | H176: =C176*SQRT(360)/(D176-1) -> 521.8 | I176: =C176 -> 220 | J176: 9 | K176: 120 | L176: 9 | M176: =I176*J176+K176*L176 -> 3060 | N176: 0% | O176: 553,667
A177: built_t | B177: =CONCATENATE("T ",C177," x ",D177, ", ",E177," x ",F177) -> T 180 x 11, 100 x 11 | C177: 180 | D177: 11 | E177: =C177/2+10 -> 100 | F177: =D177 -> 11 | G177: 1980 | H177: =C177*SQRT(360)/(D177-1) -> 341.5 | I177: 180 | J177: 11 | K177: 100 | L177: 11 | M177: =I177*J177+K177*L177 -> 3080 | N177: 1% | O177: 407,400
A178: L | B178: L 180*12.0*90*12.0 | C178: 180 | D178: 12 | E178: 90 | F178: 12 | G178: 2160 | H178: =C178*SQRT(360)/D178 -> 284.6 | I178: 168 | J178: 12 | K178: 90 | L178: 12 | M178: 3096 | N178: 1% | O178: 365,568
A179: built_t | B179: =CONCATENATE("T ",C179," x ",D179, ", ",E179," x ",F179) -> T 200 x 10, 110 x 10 | C179: 200 | D179: 10 | E179: =C179/2+10 -> 110 | F179: =D179 -> 10 | G179: 2000 | H179: =C179*SQRT(360)/(D179-1) -> 421.6 | I179: =C179 -> 200 | J179: =D179 -> 10 | K179: =E179 -> 110 | L179: =F179 -> 10 | M179: =I179*J179+K179*L179 -> 3100 | N179: 0% | O179: 480,000
A180: HP | B180: HP 220*11.0 | C180: 220 | D180: 11 | E180: 42 | G180: 2420 | H180: =C180*SQRT(360)/D180 -> 379.5 | I180: 197.06 | J180: 11 | K180: 42 | L180: 22.94 | M180: 3131 | N180: 1% | O180: 456,653
A181: L | B181: L 150 x 75 x 15 | C181: 150 | D181: 15 | E181: 75 | F181: 15 | G181: 2250 | H181: =C181*SQRT(360)/D181 -> 189.7 | I181: 135 | J181: 15 | K181: 75 | L181: 15 | M181: 3150 | N181: 1% | O181: 268,313
A182: L | B182: L 160*14.0*80*14.0 | C182: 160 | D182: 14 | E182: 80 | F182: 14 | G182: 2240 | H182: =C182*SQRT(360)/D182 -> 216.8 | I182: 146 | J182: 14 | K182: 80 | L182: 14 | M182: 3164 | N182: 0% | O182: 300,857
A183: half_I | B183: IPE 300 R_half | C183: 306 | D183: 8.5 | E183: 147 | F183: 13.7 | G183: 2601 | H183: =C183*SQRT(360)/D183 -> 683.1 | I183: 139.3 | J183: 8.5 | K183: 147 | L183: 13.7 | M183: 3198 | N183: 1% | O183: 343,877
A184: flat | B184: F 200 x 15 | C184: 200 | D184: 16 | E184: 253 | F184: =C184*D184 -> 3200 | G184: 3200 | H184: =C184*SQRT(360)/(D184-1) -> 253.0 | I184: =C184 -> 200 | J184: =D184 -> 16 | K184: 0 | L184: 0 | M184: 3200 | N184: 0% | O184: 373,333
A185: HP | B185: HP 220*11.5 | C185: 220 | D185: 11.5 | E185: 42.5 | G185: 2530 | H185: =C185*SQRT(360)/D185 -> 363.0 | I185: 197.06 | J185: 11.5 | K185: 42.5 | L185: 22.94 | M185: 3241 | N185: 1% | O185: 461,396
A186: L | B186: L 200*10.5*90*14.0 | C186: 200 | D186: 10.5 | E186: 90 | F186: 14 | G186: 2100 | H186: =C186*SQRT(360)/D186 -> 361.4 | I186: 189.5 | J186: 10.5 | K186: 90 | L186: 14 | M186: 3250 | N186: 0% | O186: 461,425
A187: HP | B187: HP 240*10.0 | C187: 240 | D187: 10 | E187: 44 | G187: 2400 | H187: =C187*SQRT(360)/D187 -> 455.4 | I187: 214.84 | J187: 10 | K187: 44 | L187: 25.16 | M187: 3255 | N187: 0% | O187: 543,193
A188: L | B188: L 250*10.0*90*10.0 | C188: 250 | D188: 10 | E188: 90 | F188: 10 | G188: 2500 | H188: =C188*SQRT(360)/D188 -> 474.3 | I188: 240 | J188: 10 | K188: 90 | L188: 10 | M188: 3300 | N188: 1% | O188: 624,000
A189: L | B189: L 150*14.0*100*14.0 | C189: 150 | D189: 14 | E189: 100 | F189: 14 | G189: 2100 | H189: =C189*SQRT(360)/D189 -> 203.3 | I189: 136 | J189: 14 | K189: 100 | L189: 14 | M189: 3304 | N189: 0% | O189: 293,397
A190: built_t | B190: =CONCATENATE("T ",C190," x ",D190, ", ",E190," x ",F190) -> T 240 x 9, 130 x 9 | C190: 240 | D190: 9 | E190: =C190/2+10 -> 130 | F190: =D190 -> 9 | G190: 2160 | H190: =C190*SQRT(360)/(D190-1) -> 569.2 | I190: =C190 -> 240 | J190: =D190 -> 9 | K190: =E190 -> 130 | L190: =F190 -> 9 | M190: =I190*J190+K190*L190 -> 3330 | N190: 1% | O190: 657,600
A191: L | B191: L 250*9.0*90*13.0 | C191: 250 | D191: 9 | E191: 90 | F191: 13 | G191: 2250 | H191: =C191*SQRT(360)/D191 -> 527.0 | I191: 241 | J191: 9 | K191: 90 | L191: 13 | M191: 3339 | N191: 0% | O191: 662,308
A192: HP | B192: HP 220*12.0 | C192: 220 | D192: 12 | E192: 43 | G192: 2640 | H192: =C192*SQRT(360)/D192 -> 347.9 | I192: 197.06 | J192: 12 | K192: 43 | L192: 22.94 | M192: 3351 | N192: 0% | O192: 466,139
A193: built_t | B193: =CONCATENATE("T ",C193," x ",D193, ", ",E193," x ",F193) -> T 180 x 12, 100 x 12 | C193: 180 | D193: 12 | E193: =C193/2+10 -> 100 | F193: =D193 -> 12 | G193: 2160 | H193: =C193*SQRT(360)/(D193-1) -> 310.5 | I193: =C193 -> 180 | J193: =D193 -> 12 | K193: =E193 -> 100 | L193: =F193 -> 12 | M193: =I193*J193+K193*L193 -> 3360 | N193: 0% | O193: 424,800
A194: L | B194: L 150 x 90 x 15 | C194: 150 | D194: 15 | E194: 90 | F194: 15 | G194: 2250 | H194: =C194*SQRT(360)/D194 -> 189.7 | I194: 135 | J194: 15 | K194: 90 | L194: 15 | M194: 3375 | N194: 0% | O194: 288,563
A195: built_t | B195: =CONCATENATE("T ",C195," x ",D195, ", ",E195," x ",F195) -> T 220 x 10, 120 x 10 | C195: 220 | D195: 10 | E195: =C195/2+10 -> 120 | F195: =D195 -> 10 | G195: 2200 | H195: =C195*SQRT(360)/(D195-1) -> 463.8 | I195: =C195 -> 220 | J195: =D195 -> 10 | K195: =E195 -> 120 | L195: =F195 -> 10 | M195: =I195*J195+K195*L195 -> 3400 | N195: 1% | O195: 579,333
A196: flat | B196: F 200 x 16 | C196: 200 | D196: 17 | E196: 237 | F196: =C196*D196 -> 3400 | G196: 3400 | H196: =C196*SQRT(360)/(D196-1) -> 237.2 | I196: =C196 -> 200 | J196: =D196 -> 17 | K196: 0 | L196: 0 | M196: 3400 | N196: =M196/M195-1 -> 0% | O196: 380,000
A197: built_t | B197: =CONCATENATE("T ",C197," x ",D197, ", ",E197," x ",F197) -> T 200 x 11, 110 x 11 | C197: 200 | D197: 11 | E197: =C197/2+10 -> 110 | F197: =D197 -> 11 | G197: =C197*D197 -> 2200 | H197: =C197*SQRT(360)/(D197-1) -> 379.5 | I197: =C197 -> 200 | J197: =D197 -> 11 | K197: =E197 -> 110 | L197: =F197 -> 11 | M197: =I197*J197+K197*L197 -> 3410 | N197: 0% | O197: 501,333
A198: cropped_I | B198: IPE 270 O_cropped | C198: 274 | D198: 7.5 | E198: 136 | F198: 12.2 | G198: 2055 | H198: =C198*SQRT(360)/D198 -> 693.2 | I198: 234.6 | J198: 7.5 | K198: 136 | L198: 12.2 | M198: 3419 | N198: 0% | O198: 695,210
A199: L | B199: L 200*12.0*100*12.0 | C199: 200 | D199: 12 | E199: 100 | F199: 12 | G199: 2400 | H199: 316.2 | I199: 188 | J199: 12 | K199: 100 | L199: 12 | M199: 3456 | N199: 1% | O199: 456,715
A200: cropped_I | B200: IPE 300_cropped | C200: 300 | D200: 7.1 | E200: 150 | F200: 10.7 | G200: 2130 | H200: 801.7 | I200: 263.6 | J200: 7.1 | K200: 150 | L200: 10.7 | M200: 3477 | N200: 1% | O200: 827,509
A201: half_I | B201: IPE 330 O_half | C201: 334 | D201: 8.5 | E201: 162 | F201: 13.5 | G201: 2839 | H201: 745.6 | I201: 153.5 | J201: 8.5 | K201: 162 | L201: 13.5 | M201: 3492 | N201: 0% | O201: 414,265
... 313 more rows

Sheet fort
C2: h | D2: tw | G2: A | I2: hw | J2: tw | M2: A
I3: mm | J3: mm
A4: flat | B4: F 60 x 5 | C4: 60 | D4: 6 | E4: 228 | F4: =C4*D4 -> 360 | H4: =C4*SQRT(360)/(D4-1) -> 227.6839915 | I4: =C4 -> 60 | J4: =D4 -> 6 | K4: 0 | L4: 0 | M4: 360
A5: flat | B5: F 60 x 6 | C5: 60 | D5: 7 | E5: 190 | F5: =C5*D5 -> 420 | H5: 189.7366596 | I5: 60 | J5: 7 | K5: 0 | L5: 0 | M5: 420 | N5: =M5/M4-1 -> 17%
A6: flat | B6: F 60 x 7 | C6: 60 | D6: 8 | E6: 163 | F6: =C6*D6 -> 480 | H6: 162.6314225 | I6: 60 | J6: 8 | K6: 0 | L6: 0 | M6: 480 | N6: =M6/M5-1 -> 14%
A7: flat | B7: F 80 x 6 | C7: 80 | D7: 7 | E7: 244 | F7: =C7*D7 -> 560 | H7: 252.9822128 | I7: 80 | J7: 7 | K7: 0 | L7: 0 | M7: 560 | N7: 17%
A8: flat | B8: F 80 x 7 | C8: 80 | D8: 8 | E8: 217 | F8: =C8*D8 -> 640 | H8: 216.8418967 | I8: 80 | J8: 8 | K8: 0 | L8: 0 | M8: 640 | N8: 14%
A9: built_t | B9: =CONCATENATE("T ",C9," x ",D9, ", ",E9," x ",F9) -> T 80 x 5, 50 x 5 | C9: 80 | D9: 5 | E9: =C9/2+10 -> 50 | F9: =D9 -> 5 | G9: =C9*D9+E9*F9 -> 650 | H9: 379.5 | I9: 80 | J9: 5 | K9: =E9 -> 50 | L9: =F9 -> 5 | M9: =I9*J9+K9*L9 -> 650 | N9: 2% | O9: =1/6*I9*(4*K9*L9+J9*I9+40*I9) -> 61,333
A10: flat | B10: F 80 x 8 | C10: 80 | D10: 9 | E10: 190 | F10: =C10*D10 -> 720 | H10: 189.7366596 | I10: 80 | J10: 9 | K10: 0 | L10: 0 | M10: 720 | N10: 11%
A11: built_t | B11: =CONCATENATE("T ",C11," x ",D11, ", ",E11," x ",F11) -> T 80 x 6, 50 x 6 | C11: 80 | D11: 6 | E11: =C11/2+10 -> 50 | F11: =D11 -> 6 | G11: =C11*D11+E11*F11 -> 780 | H11: 303.6 | I11: 80 | J11: 6 | K11: =E11 -> 50 | L11: =F11 -> 6 | M11: =I11*J11+K11*L11 -> 780 | N11: 8% | O11: =1/6*I11*(4*K11*L11+J11*I11+40*I11) -> 65,067
A12: flat | B12: F 80 x 9 | C12: 100 | D12: 8 | E12: 271 | F12: =C12*D12 -> 800 | H12: 271.0523709 | I12: 100 | J12: 8 | K12: 0 | L12: 0 | M12: 800 | N12: 3%
A13: flat | B13: F 100 x 7 | C13: 80 | D13: 10 | E13: 169 | F13: =C13*D13 -> 800 | H13: 168.6548085 | I13: 80 | J13: 10 | K13: 0 | L13: 0 | M13: 800 | N13: 0%
A14: flat | B14: F 100 x 8 | C14: 100 | D14: 9 | E14: 237 | F14: =C14*D14 -> 900 | H14: 237.1708245 | I14: 100 | J14: 9 | K14: 0 | L14: 0 | M14: 900 | N14: 13%
A15: built_t | B15: =CONCATENATE("T ",C15," x ",D15, ", ",E15," x ",F15) -> T 80 x 7, 50 x 7 | C15: 80 | D15: 7 | E15: =C15/2+10 -> 50 | F15: =D15 -> 7 | G15: =C15*D15+E15*F15 -> 910 | H15: 253.0 | I15: 80 | J15: 7 | K15: =E15 -> 50 | L15: =F15 -> 7 | M15: =I15*J15+K15*L15 -> 910 | N15: 1% | O15: =1/6*I15*(4*K15*L15+J15*I15+40*I15) -> 68,800
A16: built_t | B16: =CONCATENATE("T ",C16," x ",D16, ", ",E16," x ",F16) -> T 100 x 6, 60 x 6 | C16: 100 | D16: 6 | E16: =C16/2+10 -> 60 | F16: =D16 -> 6 | G16: =C16*D16+E16*F16 -> 960 | H16: 379.5 | I16: 100 | J16: 6 | K16: =E16 -> 60 | L16: =F16 -> 6 | M16: =I16*J16+K16*L16 -> 960 | N16: 5% | O16: =1/6*I16*(4*K16*L16+J16*I16+40*I16) -> 100,667
A17: flat | B17: F 100 x 9 | C17: 100 | D17: 10 | E17: 211 | F17: =C17*D17 -> 1000 | H17: 210.8185107 | I17: 100 | J17: 10 | K17: 0 | L17: 0 | M17: 1000 | N17: 4%
A18: built_t | B18: =CONCATENATE("T ",C18," x ",D18, ", ",E18," x ",F18) -> T 80 x 8, 50 x 8 | C18: 80 | D18: 8 | E18: =C18/2+10 -> 50 | F18: =D18 -> 8 | G18: =C18*D18+E18*F18 -> 1040 | H18: 216.8 | I18: 80 | J18: 8 | K18: =E18 -> 50 | L18: 8 | M18: =I18*J18+K18*L18 -> 1040 | N18: 4% | O18: =1/6*I18*(4*K18*L18+J18*I18+40*I18) -> 72,533
A19: built_t | B19: =CONCATENATE("T ",C19," x ",D19, ", ",E19," x ",F19) -> T 100 x 7, 60 x 7 | C19: 100 | D19: 7 | E19: =C19/2+10 -> 60 | F19: =D19 -> 7 | G19: =C19*D19+E19*F19 -> 1120 | H19: 316.2 | I19: 100 | J19: 7 | K19: 60 | L19: 7 | M19: =I19*J19+K19*L19 -> 1120 | N19: 8% | O19: =1/6*I19*(4*K19*L19+J19*I19+40*I19) -> 106,333
A20: built_t | B20: =CONCATENATE("T ",C20," x ",D20, ", ",E20," x ",F20) -> T 120 x 6, 70 x 6 | C20: 120 | D20: 6 | E20: =C20/2+10 -> 70 | F20: =D20 -> 6 | G20: =C20*D20+E20*F20 -> 1140 | H20: 455.4 | I20: 120 | J20: 6 | K20: 70 | L20: 6 | M20: =I20*J20+K20*L20 -> 1140 | N20: 2% | O20: =1/6*I20*(4*K20*L20+J20*I20+40*I20) -> 144,000
A21: built_t | B21: =CONCATENATE("T ",C21," x ",D21, ", ",E21," x ",F21) -> T 80 x 9, 50 x 9 | C21: 80 | D21: 9 | E21: =C21/2+10 -> 50 | F21: =D21 -> 9 | G21: =C21*D21+E21*F21 -> 1170 | H21: 189.7 | I21: 80 | J21: 9 | K21: 50 | L21: 9 | M21: =I21*J21+K21*L21 -> 1170 | N21: 3% | O21: =1/6*I21*(4*K21*L21+J21*I21+40*I21) -> 76,267
A22: flat | B22: F 120 x 9 | C22: 120 | D22: 10 | E22: 253 | F22: =C22*D22 -> 1200 | H22: 252.9822128 | I22: 120 | J22: 10 | K22: 0 | L22: 0 | M22: 1200 | N22: 3%
A23: built_t | B23: =CONCATENATE("T ",C23," x ",D23, ", ",E23," x ",F23) -> T 100 x 8, 60 x 8 | C23: 100 | D23: 8 | E23: =C23/2+10 -> 60 | F23: =D23 -> 8 | G23: =C23*D23+E23*F23 -> 1280 | H23: 271.1 | I23: 100 | J23: 8 | K23: =E23 -> 60 | L23: =F23 -> 8 | M23: =I23*J23+K23*L23 -> 1280 | N23: 7% | O23: =1/6*I23*(4*K23*L23+J23*I23+40*I23) -> 112,000
A24: built_t | B24: =CONCATENATE("T ",C24," x ",D24, ", ",E24," x ",F24) -> T 80 x 10, 50 x 10 | C24: 80 | D24: 10 | E24: =C24/2+10 -> 50 | F24: =D24 -> 10 | G24: =C24*D24+E24*F24 -> 1300 | H24: 168.7 | I24: 80 | J24: 10 | K24: =E24 -> 50 | L24: =F24 -> 10 | M24: =I24*J24+K24*L24 -> 1300 | N24: 2% | O24: =1/6*I24*(4*K24*L24+J24*I24+40*I24) -> 80,000
A25: flat | B25: F 120 x 10 | C25: 120 | D25: 11 | E25: 228 | F25: =C25*D25 -> 1320 | H25: 227.6839915 | I25: 120 | J25: 11 | K25: 0 | L25: 0 | M25: 1320 | N25: 2%
A26: built_t | B26: =CONCATENATE("T ",C26," x ",D26, ", ",E26," x ",F26) -> T 140 x 6, 80 x 6 | C26: 140 | D26: 6 | E26: =C26/2+10 -> 80 | F26: =D26 -> 6 | G26: =C26*D26+E26*F26 -> 1320 | H26: 531.3 | I26: 140 | J26: 6 | K26: =E26 -> 80 | L26: =F26 -> 6 | M26: =I26*J26+K26*L26 -> 1320 | N26: 0% | O26: =1/6*I26*(4*K26*L26+J26*I26+40*I26) -> 195,067
A27: built_t | B27: =CONCATENATE("T ",C27," x ",D27, ", ",E27," x ",F27) -> T 120 x 7, 70 x 7 | C27: 120 | D27: 7 | E27: =C27/2+10 -> 70 | F27: =D27 -> 7 | G27: =C27*D27+E27*F27 -> 1330 | H27: 379.5 | I27: 120 | J27: 7 | K27: =E27 -> 70 | L27: =F27 -> 7 | M27: =I27*J27+K27*L27 -> 1330 | N27: 1% | O27: =1/6*I27*(4*K27*L27+J27*I27+40*I27) -> 152,000
A28: flat | B28: F 120 x 11 | C28: 120 | D28: 12 | E28: 207 | F28: =C28*D28 -> 1440 | H28: 206.9854468 | I28: 120 | J28: 12 | K28: 0 | L28: 0 | M28: 1440 | N28: 8%
A29: built_t | B29: =CONCATENATE("T ",C29," x ",D29, ", ",E29," x ",F29) -> T 160 x 6, 90 x 6 | C29: 160 | D29: 6 | E29: =C29/2+10 -> 90 | F29: =D29 -> 6 | G29: =C29*D29+E29*F29 -> 1500 | H29: 607.2 | I29: 160 | J29: 6 | K29: =E29 -> 90 | L29: =F29 -> 6 | M29: =I29*J29+K29*L29 -> 1500 | N29: 4% | O29: =1/6*I29*(4*K29*L29+J29*I29+40*I29) -> 253,867
A30: built_t | B30: =CONCATENATE("T ",C30," x ",D30, ", ",E30," x ",F30) -> T 120 x 8, 70 x 8 | C30: 120 | D30: 8 | E30: =C30/2+10 -> 70 | F30: =D30 -> 8 | G30: =C30*D30+E30*F30 -> 1520 | H30: 325.3 | I30: 120 | J30: 8 | K30: =E30 -> 70 | L30: =F30 -> 8 | M30: =I30*J30+K30*L30 -> 1520 | N30: 1% | O30: =1/6*I30*(4*K30*L30+J30*I30+40*I30) -> 160,000
A31: flat | B31: F 140 x 10 | C31: 140 | D31: 11 | E31: 266 | F31: =C31*D31 -> 1540 | H31: 265.6313235 | I31: 140 | J31: 11 | K31: 0 | L31: 0 | M31: 1540 | N31: 1%
A32: built_t | B32: =CONCATENATE("T ",C32," x ",D32, ", ",E32," x ",F32) -> T 140 x 7, 80 x 7 | C32: 140 | D32: 7 | E32: =C32/2+10 -> 80 | F32: =D32 -> 7 | G32: =C32*D32+E32*F32 -> 1540 | H32: 442.7 | I32: 140 | J32: 7 | K32: =E32 -> 80 | L32: =F32 -> 7 | M32: =I32*J32+K32*L32 -> 1540 | N32: 0% | O32: =1/6*I32*(4*K32*L32+J32*I32+40*I32) -> 205,800
A33: flat | B33: F 140 x 11 | C33: 140 | D33: 12 | E33: 241 | F33: =C33*D33 -> 1680 | H33: 241.4830213 | I33: 140 | J33: 12 | K33: 0 | L33: 0 | M33: 1680 | N33: 9%
A34: built_t | B34: =CONCATENATE("T ",C34," x ",D34, ", ",E34," x ",F34) -> T 160 x 7, 90 x 7 | C34: 160 | D34: 7 | E34: =C34/2+10 -> 90 | F34: =D34 -> 7 | G34: =C34*D34+E34*F34 -> 1750 | H34: 506.0 | I34: 160 | J34: 7 | K34: =E34 -> 90 | L34: =F34 -> 7 | M34: =I34*J34+K34*L34 -> 1750 | N34: 4% | O34: =1/6*I34*(4*K34*L34+J34*I34+40*I34) -> 267,733
A35: built_t | B35: =CONCATENATE("T ",C35," x ",D35, ", ",E35," x ",F35) -> T 140 x 8, 80 x 8 | C35: 140 | D35: 8 | E35: =C35/2+10 -> 80 | F35: =D35 -> 8 | G35: =C35*D35+E35*F35 -> 1760 | H35: 379.5 | I35: 140 | J35: 8 | K35: =E35 -> 80 | L35: =F35 -> 8 | M35: =I35*J35+K35*L35 -> 1760 | N35: 1% | O35: =1/6*I35*(4*K35*L35+J35*I35+40*I35) -> 216,533
A36: flat | B36: F 140 x 12 | C36: 140 | D36: 13 | E36: 221 | F36: =C36*D36 -> 1820 | H36: 221.3594362 | I36: 140 | J36: 13 | K36: 0 | L36: 0 | M36: 1820 | N36: 3%
A37: flat | B37: F 140 x 13 | C37: 160 | D37: 12 | E37: 276 | F37: =C37*D37 -> 1920 | H37: 275.9805958 | I37: 160 | J37: 12 | K37: 0 | L37: 0 | M37: 1920 | N37: 5%
A38: flat | B38: F 160 x 11 | C38: 140 | D38: 14 | E38: 204 | F38: =C38*D38 -> 1960 | H38: 204.3317873 | I38: 140 | J38: 14 | K38: 0 | L38: 0 | M38: 1960 | N38: 2%
A39: built_t | B39: =CONCATENATE("T ",C39," x ",D39, ", ",E39," x ",F39) -> T 180 x 7, 100 x 7 | C39: 180 | D39: 7 | E39: =C39/2+10 -> 100 | F39: =D39 -> 7 | G39: =C39*D39+E39*F39 -> 1960 | H39: 569.2 | I39: 180 | J39: 7 | K39: =E39 -> 100 | L39: 7 | M39: =I39*J39+K39*L39 -> 1960 | N39: 0% | O39: =1/6*I39*(4*K39*L39+J39*I39+40*I39) -> 337,800
A40: built_t | B40: =CONCATENATE("T ",C40," x ",D40, ", ",E40," x ",F40) -> T 140 x 9, 80 x 9 | C40: 140 | D40: 9 | E40: =C40/2+10 -> 80 | F40: =D40 -> 9 | G40: =C40*D40+E40*F40 -> 1980 | H40: 332.0 | I40: 140 | J40: 9 | K40: 80 | L40: 9 | M40: =I40*J40+K40*L40 -> 1980 | N40: 1% | O40: =1/6*I40*(4*K40*L40+J40*I40+40*I40) -> 227,267
A41: built_t | B41: =CONCATENATE("T ",C41," x ",D41, ", ",E41," x ",F41) -> T 160 x 8, 90 x 8 | C41: 160 | D41: 8 | E41: =C41/2+10 -> 90 | F41: =D41 -> 8 | G41: =C41*D41+E41*F41 -> 2000 | H41: 433.7 | I41: 160 | J41: 8 | K41: 90 | L41: 8 | M41: =I41*J41+K41*L41 -> 2000 | N41: 1% | O41: =1/6*I41*(4*K41*L41+J41*I41+40*I41) -> 281,600
A42: flat | B42: F 160 x 12 | C42: 160 | D42: 13 | E42: 253 | F42: =C42*D42 -> 2080 | H42: 252.9822128 | I42: 160 | J42: 13 | K42: 0 | L42: 0 | M42: 2080 | N42: 4%
A43: built_t | B43: =CONCATENATE("T ",C43," x ",D43, ", ",E43," x ",F43) -> T 200 x 7, 110 x 7 | C43: 200 | D43: 7 | E43: =C43/2+10 -> 110 | F43: =D43 -> 7 | G43: =C43*D43+E43*F43 -> 2170 | H43: 632.5 | I43: 200 | J43: 7 | K43: =E43 -> 110 | L43: =F43 -> 7 | M43: =I43*J43+K43*L43 -> 2170 | N43: 4% | O43: =1/6*I43*(4*K43*L43+J43*I43+40*I43) -> 416,000
A44: flat | B44: F 160 x 13 | C44: 160 | D44: 14 | E44: 234 | F44: =C44*D44 -> 2240 | H44: 233.5220426 | I44: 160 | J44: 14 | K44: 0 | L44: 0 | M44: 2240 | N44: 3%
A45: built_t | B45: =CONCATENATE("T ",C45," x ",D45, ", ",E45," x ",F45) -> T 200 x 8, 110 x 8 | C45: 200 | D45: 8 | E45: =C45/2+10 -> 110 | F45: =D45 -> 8 | G45: =C45*D45+E45*F45 -> 2480 | H45: 542.1 | I45: 200 | J45: 8 | K45: =E45 -> 110 | L45: =F45 -> 8 | M45: =I45*J45+K45*L45 -> 2480 | N45: 11% | O45: =1/6*I45*(4*K45*L45+J45*I45+40*I45) -> 437,333
A46: flat | B46: F 180 x 13 | C46: 180 | D46: 14 | E46: 263 | F46: =C46*D46 -> 2520 | H46: 262.7122979 | I46: 180 | J46: 14 | K46: 0 | L46: 0 | M46: 2520 | N46: 2%
A47: built_t | B47: =CONCATENATE("T ",C47," x ",D47, ", ",E47," x ",F47) -> T 180 x 9, 100 x 9 | C47: 180 | D47: 9 | E47: =C47/2+10 -> 100 | F47: =D47 -> 9 | G47: =C47*D47+E47*F47 -> 2520 | H47: 426.9 | I47: 180 | J47: 9 | K47: =E47 -> 100 | L47: =F47 -> 9 | M47: =I47*J47+K47*L47 -> 2520 | N47: 0% | O47: =1/6*I47*(4*K47*L47+J47*I47+40*I47) -> 372,600
A48: flat | B48: F 180 x 14 | C48: 180 | D48: 15 | E48: 244 | F48: =C48*D48 -> 2700 | H48: 243.9471338 | I48: 180 | J48: 15 | K48: 0 | L48: 0 | M48: 2700 | N48: 7%
A49: built_t | B49: =CONCATENATE("T ",C49," x ",D49, ", ",E49," x ",F49) -> T 220 x 8, 120 x 8 | C49: 220 | D49: 8 | E49: =C49/2+10 -> 120 | F49: =D49 -> 8 | G49: =C49*D49+E49*F49 -> 2720 | H49: 596.3 | I49: 220 | J49: 8 | K49: =E49 -> 120 | L49: 8 | M49: =I49*J49+K49*L49 -> 2720 | N49: 1% | O49: =1/6*I49*(4*K49*L49+J49*I49+40*I49) -> 528,000
A50: built_t | B50: =CONCATENATE("T ",C50," x ",D50, ", ",E50," x ",F50) -> T 200 x 9, 110 x 9 | C50: 200 | D50: 9 | E50: =C50/2+10 -> 110 | F50: =D50 -> 9 | G50: =C50*D50+E50*F50 -> 2790 | H50: 474.3 | I50: 200 | J50: 9 | K50: 110 | L50: 9 | M50: =I50*J50+K50*L50 -> 2790 | N50: 3% | O50: =1/6*I50*(4*K50*L50+J50*I50+40*I50) -> 458,667
A51: built_t | B51: =CONCATENATE("T ",C51," x ",D51, ", ",E51," x ",F51) -> T 180 x 10, 100 x 10 | C51: 180 | D51: 10 | E51: =C51/2+10 -> 100 | F51: =D51 -> 10 | G51: =C51*D51+E51*F51 -> 2800 | H51: 379.5 | I51: 180 | J51: 10 | K51: 100 | L51: 10 | M51: =I51*J51+K51*L51 -> 2800 | N51: 0% | O51: =1/6*I51*(4*K51*L51+J51*I51+40*I51) -> 390,000
A52: flat | B52: F 180 x 15 | C52: 180 | D52: 16 | E52: 228 | F52: =C52*D52 -> 2880 | H52: 227.6839915 | I52: 180 | J52: 16 | K52: 0 | L52: 0 | M52: 2880 | N52: 3%
A53: flat | B53: F 200 x 14 | C53: 200 | D53: 15 | E53: 271 | F53: =C53*D53 -> 3000 | H53: 271.0523709 | I53: 200 | J53: 15 | K53: 0 | L53: 0 | M53: 3000 | N53: 4%
A54: built_t | B54: =CONCATENATE("T ",C54," x ",D54, ", ",E54," x ",F54) -> T 220 x 9, 120 x 9 | C54: 220 | D54: 9 | E54: =C54/2+10 -> 120 | F54: =D54 -> 9 | G54: =C54*D54+E54*F54 -> 3060 | H54: 521.8 | I54: 220 | J54: 9 | K54: =E54 -> 120 | L54: 9 | M54: =I54*J54+K54*L54 -> 3060 | N54: 2% | O54: =1/6*I54*(4*K54*L54+J54*I54+40*I54) -> 553,667
A55: built_t | B55: =CONCATENATE("T ",C55," x ",D55, ", ",E55," x ",F55) -> T 180 x 11, 100 x 11 | C55: 180 | D55: 11 | E55: =C55/2+10 -> 100 | F55: =D55 -> 11 | G55: =C55*D55+E55*F55 -> 3080 | H55: 341.5 | I55: 180 | J55: 11 | K55: 100 | L55: 11 | M55: =I55*J55+K55*L55 -> 3080 | N55: 1% | O55: =1/6*I55*(4*K55*L55+J55*I55+40*I55) -> 407,400
A56: built_t | B56: =CONCATENATE("T ",C56," x ",D56, ", ",E56," x ",F56) -> T 200 x 10, 110 x 10 | C56: 200 | D56: 10 | E56: =C56/2+10 -> 110 | F56: =D56 -> 10 | G56: =C56*D56+E56*F56 -> 3100 | H56: 421.6 | I56: 200 | J56: 10 | K56: 110 | L56: 10 | M56: =I56*J56+K56*L56 -> 3100 | N56: 1% | O56: =1/6*I56*(4*K56*L56+J56*I56+40*I56) -> 480,000
A57: flat | B57: F 200 x 15 | C57: 200 | D57: 16 | E57: 253 | F57: =C57*D57 -> 3200 | H57: 252.9822128 | I57: 200 | J57: 16 | K57: 0 | L57: 0 | M57: 3200 | N57: 3%
A58: built_t | B58: =CONCATENATE("T ",C58," x ",D58, ", ",E58," x ",F58) -> T 240 x 9, 130 x 9 | C58: 240 | D58: 9 | E58: =C58/2+10 -> 130 | F58: =D58 -> 9 | G58: =C58*D58+E58*F58 -> 3330 | H58: 569.2 | I58: 240 | J58: 9 | K58: =E58 -> 130 | L58: =F58 -> 9 | M58: =I58*J58+K58*L58 -> 3330 | N58: 4% | O58: =1/6*I58*(4*K58*L58+J58*I58+40*I58) -> 657,600
A59: built_t | B59: =CONCATENATE("T ",C59," x ",D59, ", ",E59," x ",F59) -> T 180 x 12, 100 x 12 | C59: 180 | D59: 12 | E59: =C59/2+10 -> 100 | F59: =D59 -> 12 | G59: =C59*D59+E59*F59 -> 3360 | H59: 310.5 | I59: 180 | J59: 12 | K59: =E59 -> 100 | L59: =F59 -> 12 | M59: =I59*J59+K59*L59 -> 3360 | N59: 1% | O59: =1/6*I59*(4*K59*L59+J59*I59+40*I59) -> 424,800
A60: flat | B60: F 200 x 16 | C60: 200 | D60: 17 | E60: 237 | F60: =C60*D60 -> 3400 | H60: 237.1708245 | I60: 200 | J60: 17 | K60: 0 | L60: 0 | M60: 3400 | N60: 1%
A61: built_t | B61: =CONCATENATE("T ",C61," x ",D61, ", ",E61," x ",F61) -> T 220 x 10, 120 x 10 | C61: 220 | D61: 10 | E61: =C61/2+10 -> 120 | F61: =D61 -> 10 | G61: =C61*D61+E61*F61 -> 3400 | H61: 463.8 | I61: 220 | J61: 10 | K61: =E61 -> 120 | L61: =F61 -> 10 | M61: =I61*J61+K61*L61 -> 3400 | N61: 0% | O61: =1/6*I61*(4*K61*L61+J61*I61+40*I61) -> 579,333
A62: built_t | B62: =CONCATENATE("T ",C62," x ",D62, ", ",E62," x ",F62) -> T 200 x 11, 110 x 11 | C62: 200 | D62: 11 | E62: =C62/2+10 -> 110 | F62: =D62 -> 11 | G62: =C62*D62+E62*F62 -> 3410 | H62: 379.5 | I62: 200 | J62: 11 | K62: =E62 -> 110 | L62: =F62 -> 11 | M62: =I62*J62+K62*L62 -> 3410 | N62: 0% | O62: =1/6*I62*(4*K62*L62+J62*I62+40*I62) -> 501,333
A63: flat | B63: F 220 x 16 | C63: 220 | D63: 16 | E63: 278 | F63: =C63*D63 -> 3520 | H63: 278.2804341 | I63: 220 | J63: 16 | K63: 0 | L63: 0 | M63: 3520 | N63: 3%
A64: flat | B64: F 220 x 15 | C64: 200 | D64: 18 | E64: 223 | F64: =C64*D64 -> 3600 | H64: 223.2195995 | I64: 200 | J64: 18 | K64: 0 | L64: 0 | M64: 3600 | N64: 2%
A65: built_t | B65: =CONCATENATE("T ",C65," x ",D65, ", ",E65," x ",F65) -> T 240 x 10, 130 x 10 | C65: 240 | D65: 10 | E65: =C65/2+10 -> 130 | F65: =D65 -> 10 | G65: =C65*D65+E65*F65 -> 3700 | H65: 506.0 | I65: 240 | J65: 10 | K65: =E65 -> 130 | L65: =F65 -> 10 | M65: =I65*J65+K65*L65 -> 3700 | N65: 3% | O65: =1/6*I65*(4*K65*L65+J65*I65+40*I65) -> 688,000
A66: built_t | B66: =CONCATENATE("T ",C66," x ",D66, ", ",E66," x ",F66) -> T 200 x 12, 110 x 12 | C66: 200 | D66: 12 | E66: =C66/2+10 -> 110 | F66: =D66 -> 12 | G66: =C66*D66+E66*F66 -> 3720 | H66: 345.0 | I66: 200 | J66: 12 | K66: =E66 -> 110 | L66: =F66 -> 12 | M66: =I66*J66+K66*L66 -> 3720 | N66: 1% | O66: =1/6*I66*(4*K66*L66+J66*I66+40*I66) -> 522,667
A67: flat | B67: F 200 x 18 | C67: 220 | D67: 17 | E67: 261 | F67: =C67*D67 -> 3740 | H67: 260.887907 | I67: 220 | J67: 17 | K67: 0 | L67: 0 | M67: 3740 | N67: 1%
A68: built_t | B68: =CONCATENATE("T ",C68," x ",D68, ", ",E68," x ",F68) -> T 220 x 11, 120 x 11 | C68: 220 | D68: 11 | E68: =C68/2+10 -> 120 | F68: =D68 -> 11 | G68: =C68*D68+E68*F68 -> 3740 | H68: =C68*SQRT(360)/(D68-1) -> 417.4 | I68: =C68 -> 220 | J68: =D68 -> 11 | K68: =E68 -> 120 | L68: =F68 -> 11 | M68: =I68*J68+K68*L68 -> 3740 | N68: 0% | O68: =1/6*I68*(4*K68*L68+J68*I68+40*I68) -> 605,000
A69: flat | B69: F 200 x 17 | C69: 200 | D69: 19 | E69: 211 | F69: =C69*D69 -> 3800 | H69: 210.8185107 | I69: 200 | J69: 19 | K69: 0 | L69: 0 | M69: 3800 | N69: 2%
A70: flat | B70: F 220 x 17 | C70: 220 | D70: 18 | E70: 246 | F70: =C70*D70 -> 3960 | H70: 245.5415595 | I70: 220 | J70: 18 | K70: 0 | L70: 0 | M70: 3960 | N70: =M70/M69-1 -> 4%
A71: built_t | B71: =CONCATENATE("T ",C71," x ",D71, ", ",E71," x ",F71) -> T 260 x 10, 140 x 10 | C71: 260 | D71: 10 | E71: =C71/2+10 -> 140 | F71: =D71 -> 10 | G71: =C71*D71+E71*F71 -> 4000 | H71: 548.1 | I71: 260 | J71: 10 | K71: =E71 -> 140 | L71: =F71 -> 10 | M71: =I71*J71+K71*L71 -> 4000 | N71: 1% | O71: =1/6*I71*(4*K71*L71+J71*I71+40*I71) -> 806,000
A72: built_t | B72: =CONCATENATE("T ",C72," x ",D72, ", ",E72," x ",F72) -> T 240 x 11, 130 x 11 | C72: 240 | D72: 11 | E72: =C72/2+10 -> 130 | F72: =D72 -> 11 | G72: =C72*D72+E72*F72 -> 4070 | H72: 455.4 | I72: 240 | J72: 11 | K72: =E72 -> 130 | L72: =F72 -> 11 | M72: =I72*J72+K72*L72 -> 4070 | N72: 2% | O72: =1/6*I72*(4*K72*L72+J72*I72+40*I72) -> 718,400
A73: flat | B73: F 220 x 18 | C73: 220 | D73: 19 | E73: 232 | F73: =C73*D73 -> 4180 | H73: 231.9003617 | I73: 220 | J73: 19 | K73: 0 | L73: 0 | M73: 4180 | N73: 3%
A74: built_t | B74: =CONCATENATE("T ",C74," x ",D74, ", ",E74," x ",F74) -> T 280 x 10, 150 x 10 | C74: 280 | D74: 10 | E74: =C74/2+10 -> 150 | F74: =D74 -> 10 | G74: =C74*D74+E74*F74 -> 4300 | H74: 590.3 | I74: 280 | J74: 10 | K74: =E74 -> 150 | L74: =F74 -> 10 | M74: =I74*J74+K74*L74 -> 4300 | N74: 3% | O74: =1/6*I74*(4*K74*L74+J74*I74+40*I74) -> 933,333
A75: flat | B75: F 240 x 17 | C75: 240 | D75: 18 | E75: 268 | F75: =C75*D75 -> 4320 | H75: 267.8635194 | I75: 240 | J75: 18 | K75: 0 | L75: 0 | M75: 4320 | N75: 0%
A76: built_t | B76: =CONCATENATE("T ",C76," x ",D76, ", ",E76," x ",F76) -> T 260 x 11, 140 x 11 | C76: 260 | D76: 11 | E76: =C76/2+10 -> 140 | F76: =D76 -> 11 | G76: =C76*D76+E76*F76 -> 4400 | H76: 493.3 | I76: 260 | J76: 11 | K76: =E76 -> 140 | L76: =F76 -> 11 | M76: =I76*J76+K76*L76 -> 4400 | N76: 2% | O76: =1/6*I76*(4*K76*L76+J76*I76+40*I76) -> 841,533
A77: flat | B77: F 240 x 18 | C77: 240 | D77: 19 | E77: 253 | F77: =C77*D77 -> 4560 | H77: 252.9822128 | I77: 240 | J77: 19 | K77: 0 | L77: 0 | M77: 4560 | N77: 4%
A78: built_t | B78: =CONCATENATE("T ",C78," x ",D78, ", ",E78," x ",F78) -> T 280 x 11, 150 x 11 | C78: 280 | D78: 11 | E78: =C78/2+10 -> 150 | F78: =D78 -> 11 | G78: =C78*D78+E78*F78 -> 4730 | H78: 531.3 | I78: 280 | J78: 11 | K78: =E78 -> 150 | L78: =F78 -> 11 | M78: =I78*J78+K78*L78 -> 4730 | N78: 4% | O78: =1/6*I78*(4*K78*L78+J78*I78+40*I78) -> 974,400
A79: built_t | B79: =CONCATENATE("T ",C79," x ",D79, ", ",E79," x ",F79) -> T 260 x 12, 140 x 12 | C79: 260 | D79: 12 | E79: =C79/2+10 -> 140 | F79: =D79 -> 12 | G79: =C79*D79+E79*F79 -> 4800 | H79: 448.5 | I79: 260 | J79: 12 | K79: =E79 -> 140 | L79: =F79 -> 12 | M79: =I79*J79+K79*L79 -> 4800 | N79: 1% | O79: =1/6*I79*(4*K79*L79+J79*I79+40*I79) -> 877,067
A80: flat | B80: F 260 x 18 | C80: 260 | D80: 19 | E80: 274 | F80: =C80*D80 -> 4940 | H80: 274.0640639 | I80: 260 | J80: 19 | K80: 0 | L80: 0 | M80: 4940 | N80: 3%
A81: built_t | B81: =CONCATENATE("T ",C81," x ",D81, ", ",E81," x ",F81) -> T 280 x 12, 150 x 12 | C81: 280 | D81: 12 | E81: =C81/2+10 -> 150 | F81: =D81 -> 12 | G81: =C81*D81+E81*F81 -> 5160 | H81: 483.0 | I81: 280 | J81: 12 | K81: =E81 -> 150 | L81: =F81 -> 12 | M81: =I81*J81+K81*L81 -> 5160 | N81: 4% | O81: =1/6*I81*(4*K81*L81+J81*I81+40*I81) -> 1,015,467
A82: built_t | B82: =CONCATENATE("T ",C82," x ",D82, ", ",E82," x ",F82) -> T 281 x 12, 150.5 x 12 | C82: 281 | D82: 12 | E82: =C82/2+10 -> 151 | F82: =D82 -> 12 | G82: =C82*D82+E82*F82 -> 5178 | H82: 484.7 | I82: 281 | J82: 12 | K82: =E82 -> 150.5 | L82: =F82 -> 12 | M82: =I82*J82+K82*L82 -> 5178 | N82: 0% | O82: =1/6*I82*(4*K82*L82+J82*I82+40*I82) -> 1,022,653
A83: flat | B83: F 260 x 19 | C83: 260 | D83: 20 | E83: 260 | F83: =C83*D83 -> 5200 | H83: 259.6396395 | I83: 260 | J83: 20 | K83: 0 | L83: 0 | M83: 5200 | N83: 0%
A84: flat | B84: F 260 x 20 | C84: 260 | D84: 21 | E84: 247 | F84: =C84*D84 -> 5460 | H84: 246.6576575 | I84: 260 | J84: 21 | K84: 0 | L84: 0 | M84: 5460 | N84: 5%
A85: built_t | B85: =CONCATENATE("T ",C85," x ",D85, ", ",E85," x ",F85) -> T 300 x 12, 160 x 12 | C85: 300 | D85: 12 | E85: =C85/2+10 -> 160 | F85: =D85 -> 12 | G85: =C85*D85+E85*F85 -> 5520 | H85: 517.5 | I85: 300 | J85: 12 | K85: =E85 -> 160 | L85: =F85 -> 12 | M85: =I85*J85+K85*L85 -> 5520 | N85: 1% | O85: =1/6*I85*(4*K85*L85+J85*I85+40*I85) -> 1,164,000
A86: flat | B86: F 260 x 21 | C86: 280 | D86: 20 | E86: 280 | F86: =C86*D86 -> 5600 | H86: 279.6119194 | I86: 280 | J86: 20 | K86: 0 | L86: 0 | M86: 5600 | N86: 1%
A87: built_t | B87: =CONCATENATE("T ",C87," x ",D87, ", ",E87," x ",F87) -> T 260 x 14, 140 x 14 | C87: 260 | D87: 14 | E87: =C87/2+10 -> 140 | F87: =D87 -> 14 | G87: =C87*D87+E87*F87 -> 5600 | H87: 379.5 | I87: 260 | J87: 14 | K87: =E87 -> 140 | L87: =F87 -> 14 | M87: =I87*J87+K87*L87 -> 5600 | N87: 0% | O87: =1/6*I87*(4*K87*L87+J87*I87+40*I87) -> 948,133
A88: flat | B88: F 280 x 19 | C88: 260 | D88: 22 | E88: 235 | F88: =C88*D88 -> 5720 | H88: 234.9120548 | I88: 260 | J88: 22 | K88: 0 | L88: 0 | M88: 5720 | N88: 2%
A89: flat | B89: F 280 x 20 | C89: 280 | D89: 21 | E89: 266 | F89: =C89*D89 -> 5880 | H89: 265.6313235 | I89: 280 | J89: 21 | K89: 0 | L89: 0 | M89: 5880 | N89: 3%
A90: built_t | B90: =CONCATENATE("T ",C90," x ",D90, ", ",E90," x ",F90) -> T 320 x 12, 170 x 12 | C90: 320 | D90: 12 | E90: =C90/2+10 -> 170 | F90: =D90 -> 12 | G90: =C90*D90+E90*F90 -> 5880 | H90: 552.0 | I90: 320 | J90: 12 | K90: =E90 -> 170 | L90: =F90 -> 12 | M90: =I90*J90+K90*L90 -> 5880 | N90: 0% | O90: =1/6*I90*(4*K90*L90+J90*I90+40*I90) -> 1,322,667
A91: built_t | B91: =CONCATENATE("T ",C91," x ",D91, ", ",E91," x ",F91) -> T 280 x 14, 150 x 14 | C91: 280 | D91: 14 | E91: =C91/2+10 -> 150 | F91: =D91 -> 14 | G91: =C91*D91+E91*F91 -> 6020 | H91: 408.7 | I91: 280 | J91: 14 | K91: =E91 -> 150 | L91: =F91 -> 14 | M91: =I91*J91+K91*L91 -> 6020 | N91: 2% | O91: =1/6*I91*(4*K91*L91+J91*I91+40*I91) -> 1,097,600
A92: flat | B92: F 280 x 21 | C92: 280 | D92: 22 | E92: 253 | F92: =C92*D92 -> 6160 | H92: 252.9822128 | I92: 280 | J92: 22 | K92: 0 | L92: 0 | M92: 6160 | N92: 2%
A93: built_t | B93: =CONCATENATE("T ",C93," x ",D93, ", ",E93," x ",F93) -> T 260 x 16, 140 x 16 | C93: 260 | D93: 16 | E93: =C93/2+10 -> 140 | F93: =D93 -> 16 | G93: =C93*D93+E93*F93 -> 6400 | H93: 328.9 | I93: 260 | J93: 16 | K93: =E93 -> 140 | L93: =F93 -> 16 | M93: =I93*J93+K93*L93 -> 6400 | N93: 4% | O93: =1/6*I93*(4*K93*L93+J93*I93+40*I93) -> 1,019,200
A94: flat | B94: F 280 x 22 | C94: 280 | D94: 23 | E94: 241 | F94: =C94*D94 -> 6440 | H94: 241.4830213 | I94: 280 | J94: 23 | K94: 0 | L94: 0 | M94: 6440 | N94: 1%
A95: built_t | B95: =CONCATENATE("T ",C95," x ",D95, ", ",E95," x ",F95) -> T 300 x 14, 160 x 14 | C95: 300 | D95: 14 | E95: =C95/2+10 -> 160 | F95: =D95 -> 14 | G95: =C95*D95+E95*F95 -> 6440 | H95: 437.9 | I95: 300 | J95: 14 | K95: =E95 -> 160 | L95: =F95 -> 14 | M95: =I95*J95+K95*L95 -> 6440 | N95: 0% | O95: =1/6*I95*(4*K95*L95+J95*I95+40*I95) -> 1,258,000
A96: flat | B96: F 300 x 21 | C96: 300 | D96: 22 | E96: 271 | F96: =C96*D96 -> 6600 | H96: 271.0523709 | I96: 300 | J96: 22 | K96: 0 | L96: 0 | M96: 6600 | N96: 2%
A97: built_t | B97: =CONCATENATE("T ",C97," x ",D97, ", ",E97," x ",F97) -> T 320 x 14, 170 x 14 | C97: 320 | D97: 14 | E97: =C97/2+10 -> 170 | F97: =D97 -> 14 | G97: =C97*D97+E97*F97 -> 6860 | H97: 467.0 | I97: 320 | J97: 14 | K97: =E97 -> 170 | L97: =F97 -> 14 | M97: =I97*J97+K97*L97 -> 6860 | N97: 4% | O97: =1/6*I97*(4*K97*L97+J97*I97+40*I97) -> 1,429,333
A98: built_t | B98: =CONCATENATE("T ",C98," x ",D98, ", ",E98," x ",F98) -> T 280 x 16, 150 x 16 | C98: 280 | D98: 16 | E98: =C98/2+10 -> 150 | F98: =D98 -> 16 | G98: =C98*D98+E98*F98 -> 6880 | H98: 354.2 | I98: 280 | J98: 16 | K98: =E98 -> 150 | L98: =F98 -> 16 | M98: =I98*J98+K98*L98 -> 6880 | N98: 0% | O98: =1/6*I98*(4*K98*L98+J98*I98+40*I98) -> 1,179,733
A99: flat | B99: F 300 x 22 | C99: 300 | D99: 23 | E99: 259 | F99: =C99*D99 -> 6900 | H99: 258.7318086 | I99: 300 | J99: 23 | K99: 0 | L99: 0 | M99: 6900 | N99: 0%
A100: flat | B100: F 300 x 23 | C100: 300 | D100: 24 | E100: 247 | F100: =C100*D100 -> 7200 | H100: 247.4825995 | I100: 300 | J100: 24 | K100: 0 | L100: 0 | M100: 7200 | N100: 4%
A101: built_t | B101: =CONCATENATE("T ",C101," x ",D101, ", ",E101," x ",F101) -> T 340 x 14, 180 x 14 | C101: 340 | D101: 14 | E101: =C101/2+10 -> 180 | F101: =D101 -> 14 | G101: =C101*D101+E101*F101 -> 7280 | H101: 496.2 | I101: 340 | J101: 14 | K101: =E101 -> 180 | L101: =F101 -> 14 | M101: =I101*J101+K101*L101 -> 7280 | N101: 1% | O101: =1/6*I101*(4*K101*L101+J101*I101+40*I101) -> 1,611,600
A102: flat | B102: F 300 x 24 | C102: 320 | D102: 23 | E102: 276 | F102: =C102*D102 -> 7360 | H102: 275.9805958 | I102: 320 | J102: 23 | K102: 0 | L102: 0 | M102: 7360 | N102: 1%
A103: built_t | B103: =CONCATENATE("T ",C103," x ",D103, ", ",E103," x ",F103) -> T 300 x 16, 160 x 16 | C103: 300 | D103: 16 | E103: =C103/2+10 -> 160 | F103: =D103 -> 16 | G103: =C103*D103+E103*F103 -> 7360 | H103: 379.5 | I103: 300 | J103: 16 | K103: =E103 -> 160 | L103: =F103 -> 16 | M103: =I103*J103+K103*L103 -> 7360 | N103: 0% | O103: =1/6*I103*(4*K103*L103+J103*I103+40*I103) -> 1,352,000
A104: flat | B104: F 320 x 22 | C104: 300 | D104: 25 | E104: 237 | F104: =C104*D104 -> 7500 | H104: 237.1708245 | I104: 300 | J104: 25 | K104: 0 | L104: 0 | M104: 7500 | N104: 2%
A105: flat | B105: F 320 x 23 | C105: 320 | D105: 24 | E105: 264 | F105: =C105*D105 -> 7680 | H105: 263.9814395 | I105: 320 | J105: 24 | K105: 0 | L105: 0 | M105: 7680 | N105: 2%
A106: built_t | B106: =CONCATENATE("T ",C106," x ",D106, ", ",E106," x ",F106) -> T 360 x 14, 190 x 14 | C106: 360 | D106: 14 | E106: =C106/2+10 -> 190 | F106: =D106 -> 14 | G106: =C106*D106+E106*F106 -> 7700 | H106: 525.4 | I106: 360 | J106: 14 | K106: =E106 -> 190 | L106: =F106 -> 14 | M106: =I106*J106+K106*L106 -> 7700 | N106: 0% | O106: =1/6*I106*(4*K106*L106+J106*I106+40*I106) -> 1,804,800
A107: built_t | B107: =CONCATENATE("T ",C107," x ",D107, ", ",E107," x ",F107) -> T 320 x 16, 170 x 16 | C107: 320 | D107: 16 | E107: =C107/2+10 -> 170 | F107: =D107 -> 16 | G107: =C107*D107+E107*F107 -> 7840 | H107: 404.8 | I107: 320 | J107: 16 | K107: =E107 -> 170 | L107: =F107 -> 16 | M107: =I107*J107+K107*L107 -> 7840 | N107: 2% | O107: =1/6*I107*(4*K107*L107+J107*I107+40*I107) -> 1,536,000
A108: flat | B108: F 320 x 24 | C108: 320 | D108: 25 | E108: 253 | F108: =C108*D108 -> 8000 | H108: 252.9822128 | I108: 320 | J108: 25 | K108: 0 | L108: 0 | M108: 8000 | N108: 2%
A109: built_t | B109: =CONCATENATE("T ",C109," x ",D109, ", ",E109," x ",F109) -> T 380 x 14, 200 x 14 | C109: 380 | D109: 14 | E109: =C109/2+10 -> 200 | F109: =D109 -> 14 | G109: =C109*D109+E109*F109 -> 8120 | H109: 554.6 | I109: 380 | J109: 14 | K109: =E109 -> 200 | L109: =F109 -> 14 | M109: =I109*J109+K109*L109 -> 8120 | N109: 1% | O109: =1/6*I109*(4*K109*L109+J109*I109+40*I109) -> 2,008,933
A110: flat | B110: F 320 x 26 | C110: 340 | D110: 24 | E110: 269 | F110: =C110*D110 -> 8160 | H110: 280.4802794 | I110: 340 | J110: 24 | K110: 0 | L110: 0 | M110: 8160 | N110: 0%
A111: built_t | B111: =CONCATENATE("T ",C111," x ",D111, ", ",E111," x ",F111) -> T 300 x 18, 160 x 18 | C111: 300 | D111: 18 | E111: =C111/2+10 -> 160 | F111: =D111 -> 18 | G111: =C111*D111+E111*F111 -> 8280 | H111: 334.8 | I111: 300 | J111: 18 | K111: =E111 -> 160 | L111: =F111 -> 18 | M111: =I111*J111+K111*L111 -> 8280 | N111: 1% | O111: =1/6*I111*(4*K111*L111+J111*I111+40*I111) -> 1,446,000
A112: flat | B112: F 320 x 25 | C112: 320 | D112: 26 | E112: 243 | F112: =C112*D112 -> 8320 | H112: 242.8629243 | I112: 320 | J112: 26 | K112: 0 | L112: 0 | M112: 8320 | N112: 0%
A113: built_t | B113: =CONCATENATE("T ",C113," x ",D113, ", ",E113," x ",F113) -> T 340 x 16, 180 x 16 | C113: 340 | D113: 16 | E113: =C113/2+10 -> 180 | F113: =D113 -> 16 | G113: =C113*D113+E113*F113 -> 8320 | H113: 430.1 | I113: 340 | J113: 16 | K113: =E113 -> 180 | L113: =F113 -> 16 | M113: =I113*J113+K113*L113 -> 8320 | N113: 0% | O113: =1/6*I113*(4*K113*L113+J113*I113+40*I113) -> 1,731,733
A114: flat | B114: F 340 x 25 | C114: 340 | D114: 25 | E114: 258 | F114: =C114*D114 -> 8500 | H114: 268.7936011 | I114: 340 | J114: 25 | K114: 0 | L114: 0 | M114: 8500 | N114: 2%
A115: flat | B115: F 340 x 24 | C115: 320 | D115: 27 | E115: 234 | F115: =C115*D115 -> 8640 | H115: 233.5220426 | I115: 320 | J115: 27 | K115: 0 | L115: 0 | M115: 8640 | N115: 2%
A116: built_t | B116: =CONCATENATE("T ",C116," x ",D116, ", ",E116," x ",F116) -> T 360 x 16, 190 x 16 | C116: 360 | D116: 16 | E116: =C116/2+10 -> 190 | F116: =D116 -> 16 | G116: =C116*D116+E116*F116 -> 8800 | H116: 455.4 | I116: 360 | J116: 16 | K116: =E116 -> 190 | L116: =F116 -> 16 | M116: =I116*J116+K116*L116 -> 8800 | N116: 2% | O116: =1/6*I116*(4*K116*L116+J116*I116+40*I116) -> 1,939,200
A117: built_t | B117: =CONCATENATE("T ",C117," x ",D117, ", ",E117," x ",F117) -> T 320 x 18, 170 x 18 | C117: 320 | D117: 18 | E117: =C117/2+10 -> 170 | F117: =D117 -> 18 | G117: =C117*D117+E117*F117 -> 8820 | H117: 357.2 | I117: 320 | J117: 18 | K117: =E117 -> 170 | L117: =F117 -> 18 | M117: =I117*J117+K117*L117 -> 8820 | N117: 0% | O117: =1/6*I117*(4*K117*L117+J117*I117+40*I117) -> 1,642,667
A118: flat | B118: F 360 x 24 | C118: 340 | D118: 26 | E118: 248 | F118: =C118*D118 -> 8840 | H118: 258.0418571 | I118: 340 | J118: 26 | K118: 0 | L118: 0 | M118: 8840 | N118: 0%
A119: flat | B119: F 340 x 26 | C119: 340 | D119: 27 | E119: 239 | F119: =C119*D119 -> 9180 | H119: 248.1171703 | I119: 340 | J119: 27 | K119: 0 | L119: 0 | M119: 9180 | N119: 4%
A120: built_t | B120: =CONCATENATE("T ",C120," x ",D120, ", ",E120," x ",F120) -> T 380 x 16, 200 x 16 | C120: 380 | D120: 16 | E120: =MIN(C120/2+10,200) -> 200 | F120: =D120 -> 16 | G120: =C120*D120+E120*F120 -> 9280 | H120: 480.7 | I120: 380 | J120: 16 | K120: =E120 -> 200 | L120: =F120 -> 16 | M120: =I120*J120+K120*L120 -> 9280 | N120: 1% | O120: =1/6*I120*(4*K120*L120+J120*I120+40*I120) -> 2,158,400
A121: flat | B121: F 360 x 25 | C121: 360 | D121: 26 | E121: 285 | F121: =C121*D121 -> 9360 | H121: 273.2207898 | I121: 360 | J121: 26 | K121: 0 | L121: 0 | M121: 9360 | N121: 1%
A122: built_t | B122: =CONCATENATE("T ",C122," x ",D122, ", ",E122," x ",F122) -> T 340 x 18, 180 x 18 | C122: 340 | D122: 18 | E122: =MIN(C122/2+10,200) -> 180 | F122: =D122 -> 18 | G122: =C122*D122+E122*F122 -> 9360 | H122: 379.5 | I122: 340 | J122: 18 | K122: =E122 -> 180 | L122: =F122 -> 18 | M122: =I122*J122+K122*L122 -> 9360 | N122: 0% | O122: =1/6*I122*(4*K122*L122+J122*I122+40*I122) -> 1,851,867
A123: built_t | B123: =CONCATENATE("T ",C123," x ",D123, ", ",E123," x ",F123) -> T 400 x 16, 200 x 16 | C123: 400 | D123: 16 | E123: =MIN(C123/2+10,200) -> 200 | F123: =D123 -> 16 | G123: =C123*D123+E123*F123 -> 9600 | H123: 506.0 | I123: 400 | J123: 16 | K123: =E123 -> 200 | L123: =F123 -> 16 | M123: =I123*J123+K123*L123 -> 9600 | N123: 3% | O123: =1/6*I123*(4*K123*L123+J123*I123+40*I123) -> 2,346,667
A124: flat | B124: F 340 x 27 | C124: 360 | D124: 27 | E124: 273 | F124: =C124*D124 -> 9720 | H124: 262.7122979 | I124: 360 | J124: 27 | K124: 0 | L124: 0 | M124: 9720 | N124: 1%
A125: built_t | B125: =CONCATENATE("T ",C125," x ",D125, ", ",E125," x ",F125) -> T 320 x 20, 170 x 20 | C125: 320 | D125: 20 | E125: =MIN(C125/2+10,200) -> 170 | F125: =D125 -> 20 | G125: =C125*D125+E125*F125 -> 9800 | H125: 319.6 | I125: 320 | J125: 20 | K125: =E125 -> 170 | L125: 20 | M125: =I125*J125+K125*L125 -> 9800 | N125: 1% | O125: =1/6*I125*(4*K125*L125+J125*I125+40*I125) -> 1,749,333
A126: built_t | B126: =CONCATENATE("T ",C126," x ",D126, ", ",E126," x ",F126) -> T 360 x 18, 190 x 18 | C126: 360 | D126: 18 | E126: =MIN(C126/2+10,200) -> 190 | F126: =D126 -> 18 | G126: =C126*D126+E126*F126 -> 9900 | H126: 401.8 | I126: 360 | J126: 18 | K126: 190 | L126: 18 | M126: =I126*J126+K126*L126 -> 9900 | N126: 1% | O126: =1/6*I126*(4*K126*L126+J126*I126+40*I126) -> 2,073,600
A127: built_t | B127: =CONCATENATE("T ",C127," x ",D127, ", ",E127," x ",F127) -> T 420 x 16, 200 x 16 | C127: 420 | D127: 16 | E127: =MIN(C127/2+10,200) -> 200 | F127: =D127 -> 16 | G127: =C127*D127+E127*F127 -> 9920 | H127: 531.3 | I127: 420 | J127: 16 | K127: 200 | L127: 16 | M127: =I127*J127+K127*L127 -> 9920 | N127: 0% | O127: =1/6*I127*(4*K127*L127+J127*I127+40*I127) -> 2,542,400
A128: flat | B128: F 360 x 26 | C128: 360 | D128: 28 | E128: 263 | F128: =C128*D128 -> 10080 | H128: 252.9822128 | I128: 360 | J128: 28 | K128: 0 | L128: 0 | M128: 10080 | N128: 2%
A129: built_t | B129: =CONCATENATE("T ",C129," x ",D129, ", ",E129," x ",F129) -> T 440 x 16, 200 x 16 | C129: 440 | D129: 16 | E129: =MIN(C129/2+10,200) -> 200 | F129: =D129 -> 16 | G129: =C129*D129+E129*F129 -> 10240 | H129: 556.6 | I129: 440 | J129: 16 | K129: =E129 -> 200 | L129: =F129 -> 16 | M129: =I129*J129+K129*L129 -> 10240 | N129: 2% | O129: =1/6*I129*(4*K129*L129+J129*I129+40*I129) -> 2,745,600
A130: flat | B130: F 380 x 27 | C130: 380 | D130: 27 | E130: 277 | F130: =C130*D130 -> 10260 | H130: 277.3074256 | I130: 380 | J130: 27 | K130: 0 | L130: 0 | M130: 10260 | N130: 0%
A131: built_t | B131: =CONCATENATE("T ",C131," x ",D131, ", ",E131," x ",F131) -> T 340 x 20, 180 x 20 | C131: 340 | D131: 20 | E131: =MIN(C131/2+10,200) -> 180 | F131: =D131 -> 20 | G131: =C131*D131+E131*F131 -> 10400 | H131: 339.5 | I131: 340 | J131: 20 | K131: =E131 -> 180 | L131: =F131 -> 20 | M131: =I131*J131+K131*L131 -> 10400 | N131: 1% | O131: =1/6*I131*(4*K131*L131+J131*I131+40*I131) -> 1,972,000
A132: flat | B132: F 360 x 27 | C132: 360 | D132: 29 | E132: 253 | F132: =C132*D132 -> 10440 | H132: =C132*SQRT(360)/(D132-1) -> 243.9471338 | I132: =C132 -> 360 | J132: =D132 -> 29 | K132: 0 | L132: 0 | M132: 10440 | N132: 0%
A133: built_t | B133: =CONCATENATE("T ",C133," x ",D133, ", ",E133," x ",F133) -> T 380 x 18, 200 x 18 | C133: 380 | D133: 18 | E133: =MIN(C133/2+10,200) -> 200 | F133: =D133 -> 18 | G133: =C133*D133+E133*F133 -> 10440 | H133: 424.1 | I133: 380 | J133: 18 | K133: =E133 -> 200 | L133: =F133 -> 18 | M133: =I133*J133+K133*L133 -> 10440 | N133: 0% | O133: =1/6*I133*(4*K133*L133+J133*I133+40*I133) -> 2,307,867
A134: flat | B134: F 360 x 29 | C134: 380 | D134: 28 | E134: 267 | F134: =C134*D134 -> 10640 | H134: 267.0367802 | I134: 380 | J134: 28 | K134: 0 | L134: 0 | M134: 10640 | N134: =M134/M133-1 -> 2%
A135: flat | B135: F 380 x 26 | C135: 360 | D135: 30 | E135: 244 | F135: =C135*D135 -> 10800 | H135: 235.5351637 | I135: 360 | J135: 30 | K135: 0 | L135: 0 | M135: 10800 | N135: 2%
A136: built_t | B136: =CONCATENATE("T ",C136," x ",D136, ", ",E136," x ",F136) -> T 400 x 18, 200 x 18 | C136: 400 | D136: 18 | E136: =MIN(C136/2+10,200) -> 200 | F136: =D136 -> 18 | G136: =C136*D136+E136*F136 -> 10800 | H136: 446.4 | I136: 400 | J136: 18 | K136: =E136 -> 200 | L136: =F136 -> 18 | M136: =I136*J136+K136*L136 -> 10800 | N136: 0% | O136: =1/6*I136*(4*K136*L136+J136*I136+40*I136) -> 2,506,667
A137: built_t | B137: =CONCATENATE("T ",C137," x ",D137, ", ",E137," x ",F137) -> T 360 x 20, 190 x 20 | C137: 360 | D137: 20 | E137: =MIN(C137/2+10,200) -> 190 | F137: =D137 -> 20 | G137: =C137*D137+E137*F137 -> 11000 | H137: 359.5 | I137: 360 | J137: 20 | K137: =E137 -> 190 | L137: =F137 -> 20 | M137: =I137*J137+K137*L137 -> 11000 | N137: 2% | O137: =1/6*I137*(4*K137*L137+J137*I137+40*I137) -> 2,208,000
A138: flat | B138: F 380 x 28 | C138: 380 | D138: 29 | E138: 257 | F138: =C138*D138 -> 11020 | H138: 257.4997523 | I138: 380 | J138: 29 | K138: 0 | L138: 0 | M138: 11020 | N138: 0%
A139: flat | B139: F 360 x 28 | C139: 360 | D139: 31 | E139: 236 | F139: =C139*D139 -> 11160 | H139: 227.6839915 | I139: 360 | J139: 31 | K139: 0 | L139: 0 | M139: 11160 | N139: 1%
A140: built_t | B140: =CONCATENATE("T ",C140," x ",D140, ", ",E140," x ",F140) -> T 420 x 18, 200 x 18 | C140: 420 | D140: 18 | E140: =MIN(C140/2+10,200) -> 200 | F140: =D140 -> 18 | G140: =C140*D140+E140*F140 -> 11160 | H140: 468.8 | I140: 420 | J140: 18 | K140: =E140 -> 200 | L140: =F140 -> 18 | M140: =I140*J140+K140*L140 -> 11160 | N140: 0% | O140: =1/6*I140*(4*K140*L140+J140*I140+40*I140) -> 2,713,200
A141: flat | B141: F 400 x 28 | C141: 400 | D141: 28 | E141: 281 | F141: =C141*D141 -> 11200 | H141: 281.0913476 | I141: 400 | J141: 28 | K141: 0 | L141: 0 | M141: 11200 | N141: 0%
A142: flat | B142: F 400 x 27 | C142: 380 | D142: 30 | E142: 249 | F142: =C142*D142 -> 11400 | H142: 248.6204505 | I142: 380 | J142: 30 | K142: 0 | L142: 0 | M142: 11400 | N142: 2%
A143: built_t | B143: =CONCATENATE("T ",C143," x ",D143, ", ",E143," x ",F143) -> T 340 x 22, 180 x 22 | C143: 340 | D143: 22 | E143: =MIN(C143/2+10,200) -> 180 | F143: =D143 -> 22 | G143: =C143*D143+E143*F143 -> 11440 | H143: 307.2 | I143: 340 | J143: 22 | K143: =E143 -> 180 | L143: =F143 -> 22 | M143: =I143*J143+K143*L143 -> 11440 | N143: 0% | O143: =1/6*I143*(4*K143*L143+J143*I143+40*I143) -> 2,092,133
A144: built_t | B144: =CONCATENATE("T ",C144," x ",D144, ", ",E144," x ",F144) -> T 440 x 18, 200 x 18 | C144: 440 | D144: 18 | E144: =MIN(C144/2+10,200) -> 200 | F144: =D144 -> 18 | G144: =C144*D144+E144*F144 -> 11520 | H144: 491.1 | I144: 440 | J144: 18 | K144: =E144 -> 200 | L144: =F144 -> 18 | M144: =I144*J144+K144*L144 -> 11520 | N144: 1% | O144: =1/6*I144*(4*K144*L144+J144*I144+40*I144) -> 2,927,467
A145: flat | B145: F 380 x 30 | C145: 400 | D145: 29 | E145: 271 | F145: =C145*D145 -> 11600 | H145: 271.0523709 | I145: 400 | J145: 29 | K145: 0 | L145: 0 | M145: 11600 | N145: 1%
A146: built_t | B146: =CONCATENATE("T ",C146," x ",D146, ", ",E146," x ",F146) -> T 380 x 20, 200 x 20 | C146: 380 | D146: 20 | E146: =MIN(C146/2+10,200) -> 200 | F146: =D146 -> 20 | G146: =C146*D146+E146*F146 -> 11600 | H146: 379.5 | I146: 380 | J146: 20 | K146: =E146 -> 200 | L146: =F146 -> 20 | M146: =I146*J146+K146*L146 -> 11600 | N146: 0% | O146: =1/6*I146*(4*K146*L146+J146*I146+40*I146) -> 2,457,333
A147: flat | B147: F 380 x 29 | C147: 380 | D147: 31 | E147: 240 | F147: =C147*D147 -> 11780 | H147: 240.3331022 | I147: 380 | J147: 31 | K147: 0 | L147: 0 | M147: 11780 | N147: 2%
A148: built_t | B148: =CONCATENATE("T ",C148," x ",D148, ", ",E148," x ",F148) -> T 460 x 18, 200 x 18 | C148: 460 | D148: 18 | E148: =MIN(C148/2+10,200) -> 200 | F148: =D148 -> 18 | G148: =C148*D148+E148*F148 -> 11880 | H148: 513.4 | I148: 460 | J148: 18 | K148: =E148 -> 200 | L148: =F148 -> 18 | M148: =I148*J148+K148*L148 -> 11880 | N148: 1% | O148: =1/6*I148*(4*K148*L148+J148*I148+40*I148) -> 3,149,467
A149: flat | B149: F 400 x 29 | C149: 400 | D149: 30 | E149: 262 | F149: =C149*D149 -> 12000 | H149: 261.7057374 | I149: 400 | J149: 30 | K149: 0 | L149: 0 | M149: 12000 | N149: 1%
A150: built_t | B150: =CONCATENATE("T ",C150," x ",D150, ", ",E150," x ",F150) -> T 400 x 20, 200 x 20 | C150: 400 | D150: 20 | E150: =MIN(C150/2+10,200) -> 200 | F150: =D150 -> 20 | G150: =C150*D150+E150*F150 -> 12000 | H150: 399.4 | I150: 400 | J150: 20 | K150: =E150 -> 200 | L150: 20 | M150: =I150*J150+K150*L150 -> 12000 | N150: 0% | O150: =1/6*I150*(4*K150*L150+J150*I150+40*I150) -> 2,666,667
A151: built_t | B151: =CONCATENATE("T ",C151," x ",D151, ", ",E151," x ",F151) -> T 360 x 22, 190 x 22 | C151: 360 | D151: 22 | E151: =MIN(C151/2+10,200) -> 190 | F151: =D151 -> 22 | G151: =C151*D151+E151*F151 -> 12100 | H151: 325.3 | I151: 360 | J151: 22 | K151: 190 | L151: 22 | M151: =I151*J151+K151*L151 -> 12100 | N151: 1% | O151: =1/6*I151*(4*K151*L151+J151*I151+40*I151) -> 2,342,400
A152: built_t | B152: =CONCATENATE("T ",C152," x ",D152, ", ",E152," x ",F152) -> T 480 x 18, 200 x 18 | C152: 480 | D152: 18 | E152: =MIN(C152/2+10,200) -> 200 | F152: =D152 -> 18 | G152: =C152*D152+E152*F152 -> 12240 | H152: 535.7 | I152: 480 | J152: 18 | K152: 200 | L152: 18 | M152: =I152*J152+K152*L152 -> 12240 | N152: 1% | O152: =1/6*I152*(4*K152*L152+J152*I152+40*I152) -> 3,379,200
A153: flat | B153: F 420 x 28 | C153: 400 | D153: 31 | E153: 253 | F153: =C153*D153 -> 12400 | H153: 252.9822128 | I153: 400 | J153: 31 | K153: 0 | L153: 0 | M153: 12400 | N153: 1%
A154: built_t | B154: =CONCATENATE("T ",C154," x ",D154, ", ",E154," x ",F154) -> T 420 x 20, 200 x 20 | C154: 420 | D154: 20 | E154: =MIN(C154/2+10,200) -> 200 | F154: =D154 -> 20 | G154: =C154*D154+E154*F154 -> 12400 | H154: 419.4 | I154: 420 | J154: 20 | K154: =E154 -> 200 | L154: =F154 -> 20 | M154: =I154*J154+K154*L154 -> 12400 | N154: 0% | O154: =1/6*I154*(4*K154*L154+J154*I154+40*I154) -> 2,884,000
A155: flat | B155: F 400 x 31 | C155: 420 | D155: 30 | E155: 285 | F155: =C155*D155 -> 12600 | H155: 274.7910243 | I155: 420 | J155: 30 | K155: 0 | L155: 0 | M155: 12600 | N155: 2%
A156: built_t | B156: =CONCATENATE("T ",C156," x ",D156, ", ",E156," x ",F156) -> T 380 x 22, 200 x 22 | C156: 380 | D156: 22 | E156: =MIN(C156/2+10,200) -> 200 | F156: =D156 -> 22 | G156: =C156*D156+E156*F156 -> 12760 | H156: 343.3 | I156: 380 | J156: 22 | K156: =E156 -> 200 | L156: =F156 -> 22 | M156: =I156*J156+K156*L156 -> 12760 | N156: 1% | O156: =1/6*I156*(4*K156*L156+J156*I156+40*I156) -> 2,606,800
A157: flat | B157: F 400 x 30 | C157: 400 | D157: 32 | E157: 245 | F157: =C157*D157 -> 12800 | H157: 244.8214963 | I157: 400 | J157: 32 | K157: 0 | L157: 0 | M157: 12800 | N157: 0%
A158: built_t | B158: =CONCATENATE("T ",C158," x ",D158, ", ",E158," x ",F158) -> T 440 x 20, 200 x 20 | C158: 440 | D158: 20 | E158: =MIN(C158/2+10,200) -> 200 | F158: =D158 -> 20 | G158: =C158*D158+E158*F158 -> 12800 | H158: 439.4 | I158: 440 | J158: 20 | K158: =E158 -> 200 | L158: =F158 -> 20 | M158: =I158*J158+K158*L158 -> 12800 | N158: 0% | O158: =1/6*I158*(4*K158*L158+J158*I158+40*I158) -> 3,109,333
A159: flat | B159: F 420 x 30 | C159: 420 | D159: 31 | E159: 275 | F159: =C159*D159 -> 13020 | H159: 265.6313235 | I159: 420 | J159: 31 | K159: 0 | L159: 0 | M159: 13020 | N159: 2%
A160: flat | B160: F 420 x 29 | C160: 400 | D160: 33 | E160: 237 | F160: =C160*D160 -> 13200 | H160: 237.1708245 | I160: 400 | J160: 33 | K160: 0 | L160: 0 | M160: 13200 | N160: 1%
A161: built_t | B161: =CONCATENATE("T ",C161," x ",D161, ", ",E161," x ",F161) -> T 360 x 24, 190 x 24 | C161: 360 | D161: 24 | E161: =MIN(C161/2+10,200) -> 190 | F161: =D161 -> 24 | G161: =C161*D161+E161*F161 -> 13200 | H161: 297.0 | I161: 360 | J161: 24 | K161: =E161 -> 190 | L161: 24 | M161: =I161*J161+K161*L161 -> 13200 | N161: 0% | O161: =1/6*I161*(4*K161*L161+J161*I161+40*I161) -> 2,476,800
A162: built_t | B162: =CONCATENATE("T ",C162," x ",D162, ", ",E162," x ",F162) -> T 400 x 22, 200 x 22 | C162: 400 | D162: 22 | E162: =MIN(C162/2+10,200) -> 200 | F162: =D162 -> 22 | G162: =C162*D162+E162*F162 -> 13200 | H162: 361.4 | I162: 400 | J162: 22 | K162: 200 | L162: 22 | M162: =I162*J162+K162*L162 -> 13200 | N162: 0% | O162: =1/6*I162*(4*K162*L162+J162*I162+40*I162) -> 2,826,667
A163: built_t | B163: =CONCATENATE("T ",C163," x ",D163, ", ",E163," x ",F163) -> T 460 x 20, 200 x 20 | C163: 460 | D163: 20 | E163: =MIN(C163/2+10,200) -> 200 | F163: =D163 -> 20 | G163: =C163*D163+E163*F163 -> 13200 | H163: 459.4 | I163: 460 | J163: 20 | K163: 200 | L163: 20 | M163: =I163*J163+K163*L163 -> 13200 | N163: 0% | O163: =1/6*I163*(4*K163*L163+J163*I163+40*I163) -> 3,342,667
A164: flat | B164: F 400 x 32 | C164: 420 | D164: 32 | E164: 266 | F164: =C164*D164 -> 13440 | H164: 257.0625711 | I164: 420 | J164: 32 | K164: 0 | L164: 0 | M164: 13440 | N164: 2%
A165: flat | B165: F 420 x 33 | C165: 440 | D165: 31 | E165: 241 | F165: =C165*D165 -> 13640 | H165: 278.2804341 | I165: 440 | J165: 31 | K165: 0 | L165: 0 | M165: 13640 | N165: 1%
A166: built_t | B166: =CONCATENATE("T ",C166," x ",D166, ", ",E166," x ",F166) -> T 420 x 22, 200 x 22 | C166: 420 | D166: 22 | E166: =MIN(C166/2+10,200) -> 200 | F166: =D166 -> 22 | G166: =C166*D166+E166*F166 -> 13640 | H166: 379.5 | I166: 420 | J166: 22 | K166: =E166 -> 200 | L166: =F166 -> 22 | M166: =I166*J166+K166*L166 -> 13640 | N166: 0% | O166: =1/6*I166*(4*K166*L166+J166*I166+40*I166) -> 3,054,800
A167: flat | B167: F 420 x 31 | C167: 420 | D167: 33 | E167: 257 | F167: =C167*D167 -> 13860 | H167: 249.0293657 | I167: 420 | J167: 33 | K167: 0 | L167: 0 | M167: 13860 | N167: 2%
A168: built_t | B168: =CONCATENATE("T ",C168," x ",D168, ", ",E168," x ",F168) -> T 500 x 20, 200 x 20 | C168: 500 | D168: 20 | E168: =MIN(C168/2+10,200) -> 200 | F168: =D168 -> 20 | G168: =C168*D168+E168*F168 -> 14000 | H168: 499.3 | I168: 500 | J168: 20 | K168: =E168 -> 200 | L168: =F168 -> 20 | M168: =I168*J168+K168*L168 -> 14000 | N168: 1% | O168: =1/6*I168*(4*K168*L168+J168*I168+40*I168) -> 3,833,333
A169: built_t | B169: =CONCATENATE("T ",C169," x ",D169, ", ",E169," x ",F169) -> T 440 x 22, 200 x 22 | C169: 440 | D169: 22 | E169: =MIN(C169/2+10,200) -> 200 | F169: =D169 -> 22 | G169: =C169*D169+E169*F169 -> 14080 | H169: 397.5 | I169: 440 | J169: 22 | K169: =E169 -> 200 | L169: =F169 -> 22 | M169: =I169*J169+K169*L169 -> 14080 | N169: 1% | O169: =1/6*I169*(4*K169*L169+J169*I169+40*I169) -> 3,291,200
A170: flat | B170: F 420 x 32 | C170: 420 | D170: 34 | E170: 249 | F170: =C170*D170 -> 14280 | H170: 241.4830213 | I170: 420 | J170: 34 | K170: 0 | L170: 0 | M170: 14280 | N170: 1%
A171: built_t | B171: =CONCATENATE("T ",C171," x ",D171, ", ",E171," x ",F171) -> T 400 x 24, 200 x 24 | C171: 400 | D171: 24 | E171: =MIN(C171/2+10,200) -> 200 | F171: =D171 -> 24 | G171: =C171*D171+E171*F171 -> 14400 | H171: 330.0 | I171: 400 | J171: 24 | K171: =E171 -> 200 | L171: =F171 -> 24 | M171: =I171*J171+K171*L171 -> 14400 | N171: 1% | O171: =1/6*I171*(4*K171*L171+J171*I171+40*I171) -> 2,986,667
A172: flat | B172: F 420 x 34 | C172: 440 | D172: 33 | E172: 234 | F172: =C172*D172 -> 14520 | H172: 260.887907 | I172: 440 | J172: 33 | K172: 0 | L172: 0 | M172: 14520 | N172: 1%
A173: built_t | B173: =CONCATENATE("T ",C173," x ",D173, ", ",E173," x ",F173) -> T 460 x 22, 200 x 22 | C173: 460 | D173: 22 | E173: =MIN(C173/2+10,200) -> 200 | F173: =D173 -> 22 | G173: =C173*D173+E173*F173 -> 14520 | H173: 415.6 | I173: 460 | J173: 22 | K173: =E173 -> 200 | L173: =F173 -> 22 | M173: =I173*J173+K173*L173 -> 14520 | N173: 0% | O173: =1/6*I173*(4*K173*L173+J173*I173+40*I173) -> 3,535,867
A174: flat | B174: F 420 x 36 | C174: 460 | D174: 32 | E174: 221 | F174: =C174*D174 -> 14720 | H174: 281.5447207 | I174: 460 | J174: 32 | K174: 0 | L174: 0 | M174: 14720 | N174: 1%
A175: built_t | B175: =CONCATENATE("T ",C175," x ",D175, ", ",E175," x ",F175) -> T 540 x 20, 200 x 20 | C175: 540 | D175: 20 | E175: =MIN(C175/2+10,200) -> 200 | F175: =D175 -> 20 | G175: =C175*D175+E175*F175 -> 14800 | H175: 539.3 | I175: 540 | J175: 20 | K175: =E175 -> 200 | L175: 20 | M175: =I175*J175+K175*L175 -> 14800 | N175: 1% | O175: =1/6*I175*(4*K175*L175+J175*I175+40*I175) -> 4,356,000
A176: built_t | B176: =CONCATENATE("T ",C176," x ",D176, ", ",E176," x ",F176) -> T 420 x 24, 200 x 24 | C176: 420 | D176: 24 | E176: =MIN(C176/2+10,200) -> 200 | F176: =D176 -> 24 | G176: =C176*D176+E176*F176 -> 14880 | H176: 346.5 | I176: 420 | J176: 24 | K176: 200 | L176: 24 | M176: =I176*J176+K176*L176 -> 14880 | N176: 1% | O176: =1/6*I176*(4*K176*L176+J176*I176+40*I176) -> 3,225,600
A177: built_t | B177: =CONCATENATE("T ",C177," x ",D177, ", ",E177," x ",F177) -> T 440 x 24, 200 x 24 | C177: 440 | D177: 24 | E177: =MIN(C177/2+10,200) -> 200 | F177: =D177 -> 24 | G177: =C177*D177+E177*F177 -> 15360 | H177: 363.0 | I177: 440 | J177: 24 | K177: 200 | L177: 24 | M177: =I177*J177+K177*L177 -> 15360 | N177: 3% | O177: =1/6*I177*(4*K177*L177+J177*I177+40*I177) -> 3,473,067
A178: flat | B178: F 420 x 35 | C178: 440 | D178: 35 | E178: 228 | F178: =C178*D178 -> 15400 | H178: 245.5415595 | I178: 440 | J178: 35 | K178: 0 | L178: 0 | M178: 15400 | N178: 0%
A179: built_t | B179: =CONCATENATE("T ",C179," x ",D179, ", ",E179," x ",F179) -> T 500 x 22, 200 x 22 | C179: 500 | D179: 22 | E179: =MIN(C179/2+10,200) -> 200 | F179: =D179 -> 22 | G179: =C179*D179+E179*F179 -> 15400 | H179: 451.8 | I179: 500 | J179: 22 | K179: =E179 -> 200 | L179: =F179 -> 22 | M179: =I179*J179+K179*L179 -> 15400 | N179: 0% | O179: =1/6*I179*(4*K179*L179+J179*I179+40*I179) -> 4,050,000
A180: built_t | B180: =CONCATENATE("T ",C180," x ",D180, ", ",E180," x ",F180) -> T 400 x 26, 200 x 26 | C180: 400 | D180: 26 | E180: =MIN(C180/2+10,200) -> 200 | F180: =D180 -> 26 | G180: =C180*D180+E180*F180 -> 15600 | H180: 303.6 | I180: 400 | J180: 26 | K180: =E180 -> 200 | L180: =F180 -> 26 | M180: =I180*J180+K180*L180 -> 15600 | N180: 1% | O180: =1/6*I180*(4*K180*L180+J180*I180+40*I180) -> 3,146,667
A181: flat | B181: F 420 x 37 | C181: 460 | D181: 34 | E181: 215 | F181: =C181*D181 -> 15640 | H181: 264.4814043 | I181: 460 | J181: 34 | K181: 0 | L181: 0 | M181: 15640 | N181: 0%
A182: built_t | B182: =CONCATENATE("T ",C182," x ",D182, ", ",E182," x ",F182) -> T 460 x 24, 200 x 24 | C182: 460 | D182: 24 | E182: =MIN(C182/2+10,200) -> 200 | F182: =D182 -> 24 | G182: =C182*D182+E182*F182 -> 15840 | H182: 379.5 | I182: 460 | J182: 24 | K182: =E182 -> 200 | L182: 24 | M182: =I182*J182+K182*L182 -> 15840 | N182: 1% | O182: =1/6*I182*(4*K182*L182+J182*I182+40*I182) -> 3,729,067
A183: built_t | B183: =CONCATENATE("T ",C183," x ",D183, ", ",E183," x ",F183) -> T 420 x 26, 200 x 26 | C183: 420 | D183: 26 | E183: =MIN(C183/2+10,200) -> 200 | F183: =D183 -> 26 | G183: =C183*D183+E183*F183 -> 16120 | H183: 318.8 | I183: 420 | J183: 26 | K183: 200 | L183: 26 | M183: =I183*J183+K183*L183 -> 16120 | N183: 2% | O183: =1/6*I183*(4*K183*L183+J183*I183+40*I183) -> 3,396,400
A184: built_t | B184: =CONCATENATE("T ",C184," x ",D184, ", ",E184," x ",F184) -> T 540 x 22, 200 x 22 | C184: 540 | D184: 22 | E184: =MIN(C184/2+10,200) -> 200 | F184: =D184 -> 22 | G184: =C184*D184+E184*F184 -> 16280 | H184: 487.9 | I184: 540 | J184: 22 | K184: 200 | L184: 22 | M184: =I184*J184+K184*L184 -> 16280 | N184: 1% | O184: =1/6*I184*(4*K184*L184+J184*I184+40*I184) -> 4,597,200
A185: flat | B185: F 420 x 39 | C185: 480 | D185: 34 | E185: 209 | F185: =C185*D185 -> 16320 | H185: 275.9805958 | I185: 480 | J185: 34 | K185: 0 | L185: 0 | M185: 16320 | N185: 0%
A186: flat | B186: F 420 x 38 | C186: 460 | D186: 36 | E186: 209 | F186: =C186*D186 -> 16560 | H186: 249.3681812 | I186: 460 | J186: 36 | K186: 0 | L186: 0 | M186: 16560 | N186: 1%
A187: built_t | B187: =CONCATENATE("T ",C187," x ",D187, ", ",E187," x ",F187) -> T 440 x 26, 200 x 26 | C187: 440 | D187: 26 | E187: =MIN(C187/2+10,200) -> 200 | F187: =D187 -> 26 | G187: =C187*D187+E187*F187 -> 16640 | H187: 333.9 | I187: 440 | J187: 26 | K187: =E187 -> 200 | L187: 26 | M187: =I187*J187+K187*L187 -> 16640 | N187: 0% | O187: =1/6*I187*(4*K187*L187+J187*I187+40*I187) -> 3,654,933
A188: built_t | B188: =CONCATENATE("T ",C188," x ",D188, ", ",E188," x ",F188) -> T 500 x 24, 200 x 24 | C188: 500 | D188: 24 | E188: =MIN(C188/2+10,200) -> 200 | F188: =D188 -> 24 | G188: =C188*D188+E188*F188 -> 16800 | H188: 412.5 | I188: 500 | J188: 24 | K188: 200 | L188: 24 | M188: =I188*J188+K188*L188 -> 16800 | N188: 1% | O188: =1/6*I188*(4*K188*L188+J188*I188+40*I188) -> 4,266,667
A189: built_t | B189: =CONCATENATE("T ",C189," x ",D189, ", ",E189," x ",F189) -> T 460 x 26, 200 x 26 | C189: 460 | D189: 26 | E189: =MIN(C189/2+10,200) -> 200 | F189: =D189 -> 26 | G189: =C189*D189+E189*F189 -> 17160 | H189: 349.1 | I189: 460 | J189: 26 | K189: 200 | L189: 26 | M189: =I189*J189+K189*L189 -> 17160 | N189: 2% | O189: =1/6*I189*(4*K189*L189+J189*I189+40*I189) -> 3,922,267
A190: built_t | B190: =CONCATENATE("T ",C190," x ",D190, ", ",E190," x ",F190) -> T 580 x 22, 200 x 22 | C190: 580 | D190: 22 | E190: =MIN(C190/2+10,200) -> 200 | F190: =D190 -> 22 | G190: =C190*D190+E190*F190 -> 17160 | H190: 524.0 | I190: 580 | J190: 22 | K190: 200 | L190: 22 | M190: =I190*J190+K190*L190 -> 17160 | N190: 0% | O190: =1/6*I190*(4*K190*L190+J190*I190+40*I190) -> 5,177,467
A191: flat | B191: F 420 x 40 | C191: 480 | D191: 36 | E191: 209 | F191: =C191*D191 -> 17280 | H191: 260.210276 | I191: 480 | J191: 36 | K191: 0 | L191: 0 | M191: 17280 | N191: 1%
A192: built_t | B192: =CONCATENATE("T ",C192," x ",D192, ", ",E192," x ",F192) -> T 420 x 28, 200 x 28 | C192: 420 | D192: 28 | E192: =MIN(C192/2+10,200) -> 200 | F192: =D192 -> 28 | G192: =C192*D192+E192*F192 -> 17360 | H192: 295.1 | I192: 420 | J192: 28 | K192: =E192 -> 200 | L192: =F192 -> 28 | M192: =I192*J192+K192*L192 -> 17360 | N192: 0% | O192: =1/6*I192*(4*K192*L192+J192*I192+40*I192) -> 3,567,200
A193: flat | B193: F 420 x 42 | C193: 500 | D193: 35 | E193: 209 | F193: =C193*D193 -> 17500 | H193: 279.0244994 | I193: 500 | J193: 35 | K193: 0 | L193: 0 | M193: 17500 | N193: 1%
A194: built_t | B194: =CONCATENATE("T ",C194," x ",D194, ", ",E194," x ",F194) -> T 540 x 24, 200 x 24 | C194: 540 | D194: 24 | E194: =MIN(C194/2+10,200) -> 200 | F194: =D194 -> 24 | G194: =C194*D194+E194*F194 -> 17760 | H194: 445.5 | I194: 540 | J194: 24 | K194: =E194 -> 200 | L194: 24 | M194: =I194*J194+K194*L194 -> 17760 | N194: 1% | O194: =1/6*I194*(4*K194*L194+J194*I194+40*I194) -> 4,838,400
A195: built_t | B195: =CONCATENATE("T ",C195," x ",D195, ", ",E195," x ",F195) -> T 440 x 28, 200 x 28 | C195: 440 | D195: 28 | E195: =MIN(C195/2+10,200) -> 200 | F195: =D195 -> 28 | G195: =C195*D195+E195*F195 -> 17920 | H195: 309.2 | I195: 440 | J195: 28 | K195: 200 | L195: 28 | M195: =I195*J195+K195*L195 -> 17920 | N195: 1% | O195: =1/6*I195*(4*K195*L195+J195*I195+40*I195) -> 3,836,800
A196: built_t | B196: =CONCATENATE("T ",C196," x ",D196, ", ",E196," x ",F196) -> T 500 x 26, 200 x 26 | C196: 500 | D196: 26 | E196: =MIN(C196/2+10,200) -> 200 | F196: =D196 -> 26 | G196: =C196*D196+E196*F196 -> 18200 | H196: =C196*SQRT(360)/(D196-1) -> 379.5 | I196: =C196 -> 500 | J196: =D196 -> 26 | K196: 200 | L196: 26 | M196: =I196*J196+K196*L196 -> 18200 | N196: 2% | O196: =1/6*I196*(4*K196*L196+J196*I196+40*I196) -> 4,483,333
A197: flat | B197: F 420 x 41 | C197: 480 | D197: 38 | E197: 209 | F197: =C197*D197 -> 18240 | H197: 246.1448557 | I197: 480 | J197: 38 | K197: 0 | L197: 0 | M197: 18240 | N197: 0%
A198: flat | B198: F 420 x 43 | C198: 500 | D198: 37 | E198: 209 | F198: =C198*D198 -> 18500 | H198: 263.5231383 | I198: 500 | J198: 37 | K198: 0 | L198: 0 | M198: 18500 | N198: =M198/M197-1 -> 1%
A199: built_t | B199: =CONCATENATE("T ",C199," x ",D199, ", ",E199," x ",F199) -> T 580 x 24, 200 x 24 | C199: 580 | D199: 24 | E199: =MIN(C199/2+10,200) -> 200 | F199: =D199 -> 24 | G199: =C199*D199+E199*F199 -> 18720 | H199: 478.5 | I199: 580 | J199: 24 | K199: =E199 -> 200 | L199: =F199 -> 24 | M199: =I199*J199+K199*L199 -> 18720 | N199: 1% | O199: =1/6*I199*(4*K199*L199+J199*I199+40*I199) -> 5,444,267
A200: built_t | B200: =CONCATENATE("T ",C200," x ",D200, ", ",E200," x ",F200) -> T 540 x 26, 200 x 26 | C200: 540 | D200: 26 | E200: =MIN(C200/2+10,200) -> 200 | F200: =D200 -> 26 | G200: =C200*D200+E200*F200 -> 19240 | H200: 409.8 | I200: 540 | J200: 26 | K200: =E200 -> 200 | L200: =F200 -> 26 | M200: =I200*J200+K200*L200 -> 19240 | N200: 3% | O200: =1/6*I200*(4*K200*L200+J200*I200+40*I200) -> 5,079,600
A201: flat | B201: F 420 x 45 | C201: 525 | D201: 37 | E201: 209 | F201: =C201*D201 -> 19425 | H201: 276.6992953 | I201: 525 | J201: 37 | K201: 0 | L201: 0 | M201: 19425 | N201: 1%
... 52 more rows
